Workbook

Sheet Foglio1

Sheet densità f(x,y)
E27: rho= | F27: 0.2
C29: Y
B30: X | C30: -4 | D30: -3.9 | E30: -3.8 | F30: -3.7 | G30: -3.6 | H30: -3.5 | I30: -3.4 | J30: -3.3 | K30: -3.2 | L30: -3.1 | M30: -3 | N30: -2.9 | O30: -2.8 | P30: -2.7 | Q30: -2.6 | R30: -2.5 | S30: -2.4 | T30: -2.3 | U30: -2.2 | V30: -2.1 | W30: -2 | X30: -1.9 | Y30: -1.8 | Z30: -1.7 | AA30: -1.6 | AB30: -1.5 | AC30: -1.4 | AD30: -1.3 | AE30: -1.2 | AF30: -1.1 | AG30: -1 | AH30: -0.9 | AI30: -0.8 | AJ30: -0.7 | AK30: -0.6 | AL30: -0.5 | AM30: -0.4 | AN30: -0.3 | AO30: -0.2 | AP30: -0.1 | AQ30: 0 | AR30: 0.1 | AS30: 0.2 | AT30: 0.3 | AU30: 0.4 | AV30: 0.5 | AW30: 0.6 | AX30: 0.7 | AY30: 0.8 | AZ30: 0.9 | BA30: 1 | BB30: 1.1 | BC30: 1.2 | BD30: 1.3 | BE30: 1.4 | BF30: 1.5 | BG30: 1.6 | BH30: 1.7 | BI30: 1.8 | BJ30: 1.9 | BK30: 2 | BL30: 2.1 | BM30: 2.2 | BN30: 2.3 | BO30: 2.4 | BP30: 2.5 | BQ30: 2.6 | BR30: 2.7 | BS30: 2.8 | BT30: 2.9 | BU30: 3 | BV30: 3.1 | BW30: 3.2 | BX30: 3.3 | BY30: 3.4 | BZ30: 3.5 | CA30: 3.6 | CB30: 3.7 | CC30: 3.8 | CD30: 3.9 | CE30: 4
B31: -4 | C31: =(1/(2*PI()*SQRT(1-rho^2)))*EXP(-(1/(2*(1-rho^2)))*($B31^2+C$30^2-2*rho*$B31*C$30)) -> 2.630821746e-07 | D31: 3.652534275e-07 | E31: 5.01849246e-07 | F31: 6.823832393e-07 | G31: 9.182470155e-07 | H31: 1.222832011e-06 | I31: 1.611573701e-06 | J31: 2.101888351e-06 | K31: 2.712971392e-06 | L31: 3.465428033e-06 | M31: =(1/(2*PI()*SQRT(1-rho^2)))*EXP(-(1/(2*(1-rho^2)))*($B31^2+M$30^2-2*rho*$B31*M$30)) -> 4.380711506e-06 | N31: 5.480352857e-06 | O31: 6.78497871e-06 | P31: 8.313129692e-06 | Q31: 1.007991156e-05 | R31: 1.209553233e-05 | S31: 1.436380004e-05 | T31: 1.688067521e-05 | U31: 1.963298688e-05 | V31: 2.259742938e-05 | W31: =(1/(2*PI()*SQRT(1-rho^2)))*EXP(-(1/(2*(1-rho^2)))*($B31^2+W$30^2-2*rho*$B31*W$30)) -> 2.57399559e-05 | X31: 2.901567367e-05 | Y31: 3.236932307e-05 | Z31: 3.573638969e-05 | AA31: 3.904485664e-05 | AB31: 4.221755608e-05 | AC31: 4.517502947e-05 | AD31: 4.783875837e-05 | AE31: 5.013458832e-05 | AF31: 5.19961402e-05 | AG31: =(1/(2*PI()*SQRT(1-rho^2)))*EXP(-(1/(2*(1-rho^2)))*($B31^2+AG$30^2-2*rho*$B31*AG$30)) -> 5.336799147e-05 | AH31: 5.420841504e-05 | AI31: 5.449148706e-05 | AJ31: 5.420841504e-05 | AK31: 5.336799147e-05 | AL31: 5.19961402e-05 | AM31: 5.013458832e-05 | AN31: 4.783875837e-05 | AO31: 4.517502947e-05 | AP31: 4.221755608e-05 | AQ31: =(1/(2*PI()*SQRT(1-rho^2)))*EXP(-(1/(2*(1-rho^2)))*($B31^2+AQ$30^2-2*rho*$B31*AQ$30)) -> 3.904485664e-05 | AR31: 3.573638969e-05 | AS31: 3.236932307e-05 | AT31: 2.901567367e-05 | AU31: 2.57399559e-05 | AV31: 2.259742938e-05 | AW31: 1.963298688e-05 | AX31: 1.688067521e-05 | AY31: 1.436380004e-05 | AZ31: 1.209553233e-05 | BA31: =(1/(2*PI()*SQRT(1-rho^2)))*EXP(-(1/(2*(1-rho^2)))*($B31^2+BA$30^2-2*rho*$B31*BA$30)) -> 1.007991156e-05 | BB31: 8.313129692e-06 | BC31: 6.78497871e-06 | BD31: 5.480352857e-06 | BE31: 4.380711506e-06 | BF31: 3.465428033e-06 | BG31: 2.712971392e-06 | BH31: 2.101888351e-06 | BI31: 1.611573701e-06 | BJ31: 1.222832011e-06 | BK31: =(1/(2*PI()*SQRT(1-rho^2)))*EXP(-(1/(2*(1-rho^2)))*($B31^2+BK$30^2-2*rho*$B31*BK$30)) -> 9.182470155e-07 | BL31: 6.823832393e-07 | BM31: 5.01849246e-07 | BN31: 3.652534275e-07 | BO31: 2.630821746e-07 | BP31: 1.875273624e-07 | BQ31: 1.32286025e-07 | BR31: 9.235052897e-08 | BS31: 6.380297171e-08 | BT31: 4.362330101e-08 | BU31: =(1/(2*PI()*SQRT(1-rho^2)))*EXP(-(1/(2*(1-rho^2)))*($B31^2+BU$30^2-2*rho*$B31*BU$30)) -> 2.951700195e-08 | BV31: 1.976523859e-08 | BW31: 1.309809021e-08 | BX31: 8.58993728e-09 | BY31: 5.575041536e-09 | BZ31: 3.580818603e-09 | CA31: 2.276106788e-09 | CB31: 1.431789081e-09 | CC31: 8.913362252e-10 | CD31: 5.491363182e-10 | CE31: 3.34807268e-10
B32: -3.9 | C32: 3.652534275e-07 | D32: 5.081617324e-07 | E32: 6.996578532e-07 | F32: 9.533350678e-07 | G32: 1.285527948e-06 | H32: 1.715511275e-06 | I32: 2.265592141e-06 | J32: 2.961051639e-06 | K32: 3.829890281e-06 | L32: 4.902332712e-06 | M32: 6.210053362e-06 | N32: 7.785096147e-06 | O32: 9.65847874e-06 | P32: 1.185849501e-05 | Q32: 1.440875713e-05 | R32: 1.732605011e-05 | S32: 2.061810326e-05 | T32: 2.428141288e-05 | U32: 2.829927414e-05 | V32: 3.264019449e-05 | W32: 3.725686248e-05 | X32: 4.208583215e-05 | Y32: 4.704805324e-05 | Z32: 5.205033106e-05 | AA32: 5.698773991e-05 | AB32: 6.174694427e-05 | AC32: 6.621030765e-05 | AD32: 7.026059782e-05 | AE32: 7.37860352e-05 | AF32: 7.668538599e-05 | AG32: 7.887277849e-05 | AH32: 8.028192392e-05 | AI32: 8.086945238e-05 | AJ32: 8.06171298e-05 | AK32: 7.95327979e-05 | AL32: 7.76499694e-05 | AM32: 7.502610769e-05 | AN32: 7.173971424e-05 | AO32: 6.788642957e-05 | AP32: 6.357441792e-05 | AQ32: 5.891934583e-05 | AR32: 5.403927816e-05 | AS32: 4.90498023e-05 | AT32: 4.405965402e-05 | AU32: 3.916706267e-05 | AV32: 3.445696505e-05 | AW32: 2.999916323e-05 | AX32: 2.584742946e-05 | AY32: 2.203949686e-05 | AZ32: 1.859782222e-05 | BA32: 1.553097094e-05 | BB32: 1.283545361e-05 | BC32: 1.049783965e-05 | BD32: 8.496982967e-06 | BE32: 6.806214933e-06 | BF32: 5.395387861e-06 | BG32: 4.232683358e-06 | BH32: 3.286131889e-06 | BI32: 2.524819282e-06 | BJ32: 1.919781074e-06 | BK32: 1.444605329e-06 | BL32: 1.075778396e-06 | BM32: 7.928162141e-07 | BN32: 5.782269476e-07 | BO32: 4.173498203e-07 | BP32: 2.981111592e-07 | BQ32: 2.107328957e-07 | BR32: 1.474220804e-07 | BS32: 1.020631189e-07 | BT32: 6.99280205e-08 | BU32: 4.741434252e-08 | BV32: 3.181590858e-08 | BW32: 2.112783646e-08 | BX32: 1.388487013e-08 | BY32: 9.030352782e-09 | BZ32: 5.8122423e-09 | CA32: 3.702190857e-09 | CB32: 2.333726706e-09 | CC32: 1.455852201e-09 | CD32: 8.987950624e-10 | CE32: 5.491363182e-10
B33: -3.8 | C33: 5.01849246e-07 | D33: 6.996578532e-07 | E33: 9.653265467e-07 | F33: 1.318071243e-06 | G33: 1.781064386e-06 | H33: 2.381751534e-06 | I33: 3.152023063e-06 | J33: 4.128178033e-06 | K33: 5.350613116e-06 | L33: 6.863170375e-06 | M33: 8.712085115e-06 | N33: 1.094449024e-05 | O33: 1.36064574e-05 | P33: 1.674058742e-05 | Q33: 2.038320251e-05 | R33: 2.45612375e-05 | S33: 2.928897471e-05 | T33: 3.456481149e-05 | U33: 4.036828649e-05 | V33: 4.665761522e-05 | W33: 5.336799147e-05 | X33: 6.041089617e-05 | Y33: 6.767461561e-05 | Z33: 7.502610769e-05 | AA33: 8.23142705e-05 | AB33: 8.937456693e-05 | AC33: 9.603485087e-05 | AD33: 0.000102122134 | AE33: 0.0001074699373 | AF33: 0.0001119258004 | AG33: 0.000115358479 | AH33: 0.0001176643589 | AI33: 0.0001187726493 | AJ33: 0.0001186489922 | AK33: 0.0001172972317 | AL33: 0.0001147592155 | AM33: 0.000111112643 | AN33: 0.0001064671147 | AO33: 0.000100958663 | AP33: 9.47431446e-05 | AQ33: 8.79889427e-05 | AR33: 8.086945238e-05 | AS33: 7.355581375e-05 | AT33: 6.621030765e-05 | AU33: 5.898075212e-05 | AV33: 5.19961402e-05 | AW33: 4.536365145e-05 | AX33: 3.916706267e-05 | AY33: 3.346648495e-05 | AZ33: 2.829927414e-05 | BA33: 2.368190266e-05 | BB33: 1.96125465e-05 | BC33: 1.607413013e-05 | BD33: 1.303758259e-05 | BE33: 1.046508511e-05 | BF33: 8.313129692e-06 | BG33: 6.535253618e-06 | BH33: 5.084361666e-06 | BI33: 3.91459218e-06 | BJ33: 2.98272155e-06 | BK33: 2.249132281e-06 | BL33: 1.678391938e-06 | BM33: 1.239503821e-06 | BN33: 9.058962343e-07 | BO33: 6.552169712e-07 | BP33: 4.689946844e-07 | BQ33: 3.322207866e-07 | BR33: 2.328958678e-07 | BS33: 1.615745158e-07 | BT33: 1.109328172e-07 | BU33: 7.5374305e-08 | BV33: 5.06830449e-08 | BW33: 3.372703589e-08 | BX33: 2.22110838e-08 | BY33: 1.447562839e-08 | BZ33: 9.336437615e-09 | CA33: 5.959379914e-09 | CB33: 3.764411099e-09 | CC33: 2.353255686e-09 | CD33: 1.455852201e-09 | CE33: 8.913362252e-10
B34: -3.7 | C34: 6.823832393e-07 | D34: 9.533350678e-07 | E34: 1.318071243e-06 | F34: 1.803467418e-06 | G34: 2.442045861e-06 | H34: 3.272468159e-06 | I34: 4.339834247e-06 | J34: 5.695698014e-06 | K34: 7.397702572e-06 | L34: 9.508737906e-06 | M34: 1.209553233e-05 | N34: 1.522660899e-05 | O34: 1.896957074e-05 | P34: 2.338772134e-05 | Q34: 2.853608677e-05 | R34: 3.445696505e-05 | S34: 4.117520091e-05 | T34: 4.869344828e-05 | U34: 5.698773991e-05 | V34: 6.600372339e-05 | W34: 7.565393758e-05 | X34: 8.581648797e-05 | Y34: 9.633542919e-05 | Z34: 0.0001070230775 | AA34: 0.0001176643589 | AB34: 0.0001280231562 | AC34: 0.000137850462 | AD34: 0.0001468939878 | AE34: 0.0001549087379 | AF34: 0.0001616679417 | AG34: 0.0001669736734 | AH34: 0.0001706664651 | AI34: 0.000172633265 | AJ34: 0.000172813185 | AK34: 0.000171200632 | AL34: 0.0001678455966 | AM34: 0.0001628510787 | AN34: 0.0001563678361 | AO34: 0.0001485868282 | AP34: 0.0001397298835 | AQ34: 0.0001300392276 | AR34: 0.0001197665569 | AS34: 0.0001091623426 | AT34: 9.846598469e-05 | AU34: 8.789733527e-05 | AV34: 7.76499694e-05 | AW34: 6.788642957e-05 | AX34: 5.873551026e-05 | AY34: 5.029150396e-05 | AZ34: 4.261520675e-05 | BA34: 3.573638969e-05 | BB34: 2.965738466e-05 | BC34: 2.435741098e-05 | BD34: 1.97972787e-05 | BE34: 1.592413934e-05 | BF34: 1.267600905e-05 | BG34: 9.985853973e-06 | BH34: 7.785096147e-06 | BI34: 6.006463597e-06 | BJ34: 4.586166495e-06 | BK34: 3.465428033e-06 | BL34: 2.591433391e-06 | BM34: 1.917782343e-06 | BN34: 1.404541838e-06 | BO34: 1.01799617e-06 | BP34: 7.301863443e-07 | BQ34: 5.183192859e-07 | BR34: 3.641137921e-07 | BS34: 2.531354619e-07 | BT34: 1.741586098e-07 | BU34: 1.185804264e-07 | BV34: 7.990191083e-08 | BW34: 5.328162018e-08 | BX34: 3.516201689e-08 | BY34: 2.2963931e-08 | BZ34: 1.484208067e-08 | CA34: 9.49334887e-09 | CB34: 6.009248913e-09 | CC34: 3.764411099e-09 | CD34: 2.333726706e-09 | CE34: 1.431789081e-09
B35: -3.6 | C35: 9.182470155e-07 | D35: 1.285527948e-06 | E35: 1.781064386e-06 | F35: 2.442045861e-06 | G35: 3.313630741e-06 | H35: 4.449697674e-06 | I35: 5.91334201e-06 | J35: 7.776990894e-06 | K35: 1.012199881e-05 | L35: 1.303758259e-05 | M35: 1.66189646e-05 | N35: 2.096461791e-05 | O35: 2.61725501e-05 | P35: 3.233562258e-05 | Q35: 3.953598048e-05 | R35: 4.783875837e-05 | S35: 5.728532535e-05 | T35: 6.788642957e-05 | U35: 7.961568773e-05 | V35: 9.240392802e-05 | W35: 0.0001061349243 | X35: 0.0001206430463 | Y35: 0.0001357132887 | Z35: 0.0001510840275 | AA35: 0.0001664526951 | AB35: 0.0001814843617 | AC35: 0.0001958229932 | AD35: 0.0002091049242 | AE35: 0.0002209738765 | AF35: 0.000231096681 | AG35: 0.0002391787441 | AH35: 0.0002449782641 | AI35: 0.0002483182415 | AJ35: 0.0002490954498 | AK35: 0.0002472857347 | AL35: 0.0002429452612 | AM35: 0.000236207618 | AN35: 0.0002272769888 | AO35: 0.0002164178772 | AP35: 0.0002039421052 | AQ35: 0.0001901939781 | AR35: 0.0001755345967 | AS35: 0.0001603263067 | AT35: 0.0001449182063 | AU35: 0.0001296334893 | AV35: 0.0001147592155 | AW35: 0.000100538877 | AX35: 8.716790101e-05 | AY35: 7.479201706e-05 | AZ35: 6.350822905e-05 | BA35: 5.336799147e-05 | BB35: 4.438209647e-05 | BC35: 3.652673612e-05 | BD35: 2.975020895e-05 | BE35: 2.397978432e-05 | BF35: 1.9128311e-05 | BG35: 1.510024782e-05 | BH35: 1.179689257e-05 | BI35: 9.12068115e-06 | BJ35: 6.978515084e-06 | BK35: 5.284146732e-06 | BL35: 3.959704847e-06 | BM35: 2.936478738e-06 | BN35: 2.155097908e-06 | BO35: 1.56524833e-06 | BP35: 1.125059761e-06 | BQ35: 8.002838158e-07 | BR35: 5.633633308e-07 | BS35: 3.924724856e-07 | BT35: 2.705863942e-07 | BU35: 1.846200202e-07 | BV35: 1.246601749e-07 | BW35: 8.330148986e-08 | BX35: 5.508760674e-08 | BY35: 3.605214759e-08 | BZ35: 2.334987042e-08 | CA35: 1.496628146e-08 | CB35: 9.49334887e-09 | CC35: 5.959379914e-09 | CD35: 3.702190857e-09 | CE35: 2.276106788e-09
B36: -3.5 | C36: 1.222832011e-06 | D36: 1.715511275e-06 | E36: 2.381751534e-06 | F36: 3.272468159e-06 | G36: 4.449697674e-06 | H36: 5.987722696e-06 | I36: 7.973866356e-06 | J36: 1.05087806e-05 | K36: 1.370603375e-05 | L36: 1.769079573e-05 | M36: 2.259742938e-05 | N36: 2.856582735e-05 | O36: 3.573638969e-05 | P36: 4.42436189e-05 | Q36: 5.420841504e-05 | R36: 6.572928003e-05 | S36: 7.887277849e-05 | T36: 9.366374195e-05 | U36: 0.0001100758297 | V36: 0.0001280231562 | W36: 0.0001473537496 | X36: 0.0001678455966 | Y36: 0.0001892059597 | Z36: 0.0002110745008 | AA36: 0.0002330305332 | AB36: 0.0002546044477 | AC36: 0.0002752930469 | AD36: 0.0002945781959 | AE36: 0.0003119478903 | AF36: 0.0003269185821 | AG36: 0.0003390574252 | AH36: 0.0003480030192 | AI36: 0.0003534832693 | AJ36: 0.0003553291307 | AK36: 0.0003534832693 | AL36: 0.0003480030192 | AM36: 0.0003390574252 | AN36: 0.0003269185821 | AO36: 0.0003119478903 | AP36: 0.0002945781959 | AQ36: 0.0002752930469 | AR36: 0.0002546044477 | AS36: 0.0002330305332 | AT36: 0.0002110745008 | AU36: 0.0001892059597 | AV36: 0.0001678455966 | AW36: 0.0001473537496 | AX36: 0.0001280231562 | AY36: 0.0001100758297 | AZ36: 9.366374195e-05 | BA36: 7.887277849e-05 | BB36: 6.572928003e-05 | BC36: 5.420841504e-05 | BD36: 4.42436189e-05 | BE36: 3.573638969e-05 | BF36: 2.856582735e-05 | BG36: 2.259742938e-05 | BH36: 1.769079573e-05 | BI36: 1.370603375e-05 | BJ36: 1.05087806e-05 | BK36: 7.973866356e-06 | BL36: 5.987722696e-06 | BM36: 4.449697674e-06 | BN36: 3.272468159e-06 | BO36: 2.381751534e-06 | BP36: 1.715511275e-06 | BQ36: 1.222832011e-06 | BR36: 8.626132412e-07 | BS36: 6.022010951e-07 | BT36: 4.160476379e-07 | BU36: 2.844596553e-07 | BV36: 1.924750307e-07 | BW36: 1.288855457e-07 | BX36: 8.541027711e-08 | BY36: 5.601342726e-08 | BZ36: 3.635383745e-08 | CA36: 2.334987042e-08 | CB36: 1.484208067e-08 | CC36: 9.336437615e-09 | CD36: 5.8122423e-09 | CE36: 3.580818603e-09
B37: -3.4 | C37: 1.611573701e-06 | D37: 2.265592141e-06 | E37: 3.152023063e-06 | F37: 4.339834247e-06 | G37: 5.91334201e-06 | H37: 7.973866356e-06 | I37: 1.064096479e-05 | J37: 1.405300364e-05 | K37: 1.836679636e-05 | L37: 2.375602436e-05 | M37: 3.040816493e-05 | N37: 3.851968806e-05 | O37: 4.82893556e-05 | P37: 5.990956382e-05 | Q37: 7.355581375e-05 | R37: 8.937456693e-05 | S37: 0.0001074699373 | T37: 0.0001278898682 | U37: 0.0001506126269 | V37: 0.0001755345967 | W37: 0.0002024604358 | X37: 0.000231096681 | Y37: 0.00026104979 | Z37: 0.0002918294303 | AA37: 0.0003228575342 | AB37: 0.0003534832693 | AC37: 0.0003830036384 | AD37: 0.0004106889665 | AE37: 0.0004358120862 | AF37: 0.0004576796516 | AG37: 0.0004756637302 | AH37: 0.0004892316775 | AI37: 0.0004979723178 | AJ37: 0.0005016166364 | AK37: 0.0005000515312 | AL37: 0.0004933256427 | AM37: 0.0004816468434 | AN37: 0.0004653715671 | AO37: 0.0004449867422 | AP37: 0.0004210856072 | AQ37: 0.0003943390828 | AR37: 0.0003654646248 | AS37: 0.0003351945654 | AT37: 0.0003042458694 | AU37: 0.0002732930025 | AV37: 0.0002429452612 | AW37: 0.0002137294912 | AX37: 0.0001860786602 | AY37: 0.0001603263067 | AZ37: 0.0001367064813 | BA37: 0.000115358479 | BB37: 9.633542919e-05 | BC37: 7.961568773e-05 | BD37: 6.511594752e-05 | BE37: 5.270504363e-05 | BF37: 4.221755608e-05 | BG37: 3.346648495e-05 | BH37: 2.625446725e-05 | BI37: 2.038320251e-05 | BJ37: 1.566093647e-05 | BK37: 1.190800848e-05 | BL37: 8.960590739e-06 | BM37: 6.672832876e-06 | BN37: 4.917676464e-06 | BO37: 3.58662323e-06 | BP37: 2.588735387e-06 | BQ37: 1.849122414e-06 | BR37: 1.307132956e-06 | BS37: 9.144289461e-07 | BT37: 6.330766054e-07 | BU37: 4.337491773e-07 | BV37: 2.941014476e-07 | BW37: 1.973475593e-07 | BX37: 1.310516388e-07 | BY37: 8.612500331e-08 | BZ37: 5.601342726e-08 | CA37: 3.605214759e-08 | CB37: 2.2963931e-08 | CC37: 1.447562839e-08 | CD37: 9.030352782e-09 | CE37: 5.575041536e-09
B38: -3.3 | C38: 2.101888351e-06 | D38: 2.961051639e-06 | E38: 4.128178033e-06 | F38: 5.695698014e-06 | G38: 7.776990894e-06 | H38: 1.05087806e-05 | I38: 1.405300364e-05 | J38: 1.859782222e-05 | K38: 2.435741098e-05 | L38: 3.157012164e-05 | M38: 4.04946347e-05 | N38: 5.140375146e-05 | O38: 6.457556933e-05 | P38: 8.028192392e-05 | Q38: 9.877417219e-05 | R38: 0.0001202666253 | S38: 0.0001449182063 | T38: 0.000172813185 | U38: 0.0002039421052 | V38: 0.0002381842393 | W38: 0.0002752930469 | X38: 0.0003148861533 | Y38: 0.0003564412711 | Z38: 0.0003992992579 | AA38: 0.0004426751279 | AB38: 0.0004856773375 | AC38: 0.0005273350713 | AD38: 0.000566632619 | AE38: 0.0006025493006 | AF38: 0.0006341028438 | AG38: 0.0006603936889 | AH38: 0.0006806474577 | AI38: 0.0006942527973 | AJ38: 0.000700792022 | AK38: 0.0007000624104 | AL38: 0.0006920866437 | AM38: 0.0006771116347 | AN38: 0.0006555958317 | AO38: 0.0006281859086 | AP38: 0.0005956844946 | AQ38: 0.0005590111889 | AR38: 0.0005191594988 | AS38: 0.0004771525044 | AT38: 0.0004339999803 | AU38: 0.0003906594292 | AV38: 0.0003480030192 | AW38: 0.0003067918452 | AX38: 0.0002676582969 | AY38: 0.000231096681 | AZ38: 0.0001974616699 | BA38: 0.0001669736734 | BB38: 0.0001397298835 | BC38: 0.0001157195381 | BD38: 9.484188679e-05 | BE38: 7.692540265e-05 | BF38: 6.174694427e-05 | BG38: 4.90498023e-05 | BH38: 3.855983364e-05 | BI38: 2.999916323e-05 | BJ38: 2.30971944e-05 | BK38: 1.75988957e-05 | BL38: 1.327051277e-05 | BM38: 9.902984293e-06 | BN38: 7.313421016e-06 | BO38: 5.345042463e-06 | BP38: 3.865964335e-06 | BQ38: 2.767200489e-06 | BR38: 1.96019604e-06 | BS38: 1.374151096e-06 | BT38: 9.533350678e-07 | BU38: 6.545348088e-07 | BV38: 4.4472959e-07 | BW38: 2.990442137e-07 | BX38: 1.989989937e-07 | BY38: 1.310516388e-07 | BZ38: 8.541027711e-08 | CA38: 5.508760674e-08 | CB38: 3.516201689e-08 | CC38: 2.22110838e-08 | CD38: 1.388487013e-08 | CE38: 8.58993728e-09
B39: -3.2 | C39: 2.712971392e-06 | D39: 3.829890281e-06 | E39: 5.350613116e-06 | F39: 7.397702572e-06 | G39: 1.012199881e-05 | H39: 1.370603375e-05 | I39: 1.836679636e-05 | J39: 2.435741098e-05 | K39: 3.196722488e-05 | L39: 4.151976126e-05 | M39: 5.336799147e-05 | N39: 6.788642957e-05 | O39: 8.545966317e-05 | P39: 0.0001064671147 | Q39: 0.0001312640778 | R39: 0.0001601593871 | S39: 0.000193390441 | T39: 0.000231096681 | U39: 0.0002732930025 | V39: 0.0003198448887 | W39: 0.0003704472856 | X39: 0.0004246093156 | Y39: 0.0004816468434 | Z39: 0.0005406846222 | AA39: 0.0006006692732 | AB39: 0.0006603936889 | AC39: 0.0007185326565 | AD39: 0.0007736886168 | AE39: 0.0008244455959 | AF39: 0.0008694285489 | AG39: 0.0009073647224 | AH39: 0.0009371432532 | AI39: 0.0009578691246 | AJ39: 0.0009689078301 | AK39: 0.000969917635 | AL39: 0.0009608671476 | AM39: 0.0009420369405 | AN39: 0.0009140051038 | AO39: 0.0008776177685 | AP39: 0.0008339466978 | AQ39: 0.0007842369097 | AR39: 0.0007298478994 | AS39: 0.0006721923192 | AT39: 0.0006126759433 | AU39: 0.0005526424098 | AV39: 0.0004933256427 | AW39: 0.0004358120862 | AX39: 0.0003810140136 | AY39: 0.0003296542866 | AZ39: 0.0002822621236 | BA39: 0.0002391787441 | BB39: 0.0002005712387 | BC39: 0.0001664526951 | BD39: 0.0001367064813 | BE39: 0.000111112643 | BF39: 8.937456693e-05 | BG39: 7.114436734e-05 | BH39: 5.604581542e-05 | BI39: 4.369401584e-05 | BJ39: 3.371140325e-05 | BK39: 2.57399559e-05 | BL39: 1.944978771e-05 | BM39: 1.45444744e-05 | BN39: 1.076359373e-05 | BO39: 7.883020601e-06 | BP39: 5.71352491e-06 | BQ39: 4.098186213e-06 | BR39: 2.909077892e-06 | BS39: 2.043596315e-06 | BT39: 1.420728103e-06 | BU39: 9.774688599e-07 | BV39: 6.655351371e-07 | BW39: 4.484511549e-07 | BX39: 2.990442137e-07 | BY39: 1.973475593e-07 | BZ39: 1.288855457e-07 | CA39: 8.330148986e-08 | CB39: 5.328162018e-08 | CC39: 3.372703589e-08 | CD39: 2.112783646e-08 | CE39: 1.309809021e-08
B40: -3.1 | C40: 3.465428033e-06 | D40: 4.902332712e-06 | E40: 6.863170375e-06 | F40: 9.508737906e-06 | G40: 1.303758259e-05 | H40: 1.769079573e-05 | I40: 2.375602436e-05 | J40: 3.157012164e-05 | K40: 4.151976126e-05 | L40: 5.403927816e-05 | M40: 6.960498271e-05 | N40: 8.872524757e-05 | O40: 0.0001119258004 | P40: 0.0001397298835 | Q40: 0.000172633265 | R40: 0.0002110745008 | S40: 0.0002554013311 | T40: 0.0003058346171 | U40: 0.0003624317409 | V40: 0.0004250518474 | W40: 0.0004933256427 | X40: 0.000566632619 | Y40: 0.0006440885106 | Z40: 0.0007245454472 | AA40: 0.0008066066731 | AB40: 0.0008886568411 | AC40: 0.0009689078301 | AD40: 0.001045458846 | AE40: 0.001116368355 | AF40: 0.00117973426 | AG40: 0.00123377784 | AH40: 0.001276926319 | AI40: 0.001307888768 | AJ40: 0.001325720223 | AK40: 0.001329869579 | AL40: 0.001320207881 | AM40: 0.001297034982 | AN40: 0.001261064085 | AO40: 0.001213385286 | AP40: 0.001155410713 | AQ40: 0.001088805122 | AR40: 0.001015406688 | AS40: 0.0009371432532 | AT40: 0.0008559493086 | AU40: 0.0007736886168 | AV40: 0.0006920866437 | AW40: 0.0006126759433 | AX40: 0.000536756469 | AY40: 0.0004653715671 | AZ40: 0.0003992992579 | BA40: 0.0003390574252 | BB40: 0.0002849207739 | BC40: 0.0002369469213 | BD40: 0.0001950087616 | BE40: 0.0001588302712 | BF40: 0.0001280231562 | BG40: 0.000102122134 | BH40: 8.06171298e-05 | BI40: 6.298119284e-05 | BJ40: 4.869344828e-05 | BK40: 3.725686248e-05 | BL40: 2.821097694e-05 | BM40: 2.114005303e-05 | BN40: 1.567725844e-05 | BO40: 1.150562626e-05 | BP40: 8.356540192e-06 | BQ40: 6.006463597e-06 | BR40: 4.272551354e-06 | BS40: 3.007681418e-06 | BT40: 2.095330202e-06 | BU40: 1.444605329e-06 | BV40: 9.856484681e-07 | BW40: 6.655351371e-07 | BX40: 4.4472959e-07 | BY40: 2.941014476e-07 | BZ40: 1.924750307e-07 | CA40: 1.246601749e-07 | CB40: 7.990191083e-08 | CC40: 5.06830449e-08 | CD40: 3.181590858e-08 | CE40: 1.976523859e-08
B41: -3 | C41: =(1/(2*PI()*SQRT(1-rho^2)))*EXP(-(1/(2*(1-rho^2)))*($B41^2+C$30^2-2*rho*$B41*C$30)) -> 4.380711506e-06 | D41: 6.210053362e-06 | E41: 8.712085115e-06 | F41: 1.209553233e-05 | G41: 1.66189646e-05 | H41: 2.259742938e-05 | I41: 3.040816493e-05 | J41: 4.04946347e-05 | K41: 5.336799147e-05 | L41: 6.960498271e-05 | M41: =(1/(2*PI()*SQRT(1-rho^2)))*EXP(-(1/(2*(1-rho^2)))*($B41^2+M$30^2-2*rho*$B41*M$30)) -> 8.98412738e-05 | N41: 0.0001147592155 | O41: 0.0001450692414 | P41: 0.0001814843617 | Q41: 0.0002246876365 | R41: 0.0002752930469 | S41: 0.000333800827 | T41: 0.0004005490198 | U41: 0.0004756637302 | V41: 0.0005590111889 | W41: =(1/(2*PI()*SQRT(1-rho^2)))*EXP(-(1/(2*(1-rho^2)))*($B41^2+W$30^2-2*rho*$B41*W$30)) -> 0.0006501552337 | X41: 0.000748324087 | Y41: 0.000852390273 | Z41: 0.0009608671476 | AA41: 0.001071924763 | AB41: 0.001183426696 | AC41: 0.001292988074 | AD41: 0.00139805345 | AE41: 0.001495991518 | AF41: 0.001584202105 | AG41: =(1/(2*PI()*SQRT(1-rho^2)))*EXP(-(1/(2*(1-rho^2)))*($B41^2+AG$30^2-2*rho*$B41*AG$30)) -> 0.001660229551 | AH41: 0.001721875683 | AI41: 0.001767305157 | AJ41: 0.001795136164 | AK41: 0.001804510222 | AL41: 0.001795136164 | AM41: 0.001767305157 | AN41: 0.001721875683 | AO41: 0.001660229551 | AP41: 0.001584202105 | AQ41: =(1/(2*PI()*SQRT(1-rho^2)))*EXP(-(1/(2*(1-rho^2)))*($B41^2+AQ$30^2-2*rho*$B41*AQ$30)) -> 0.001495991518 | AR41: 0.00139805345 | AS41: 0.001292988074 | AT41: 0.001183426696 | AU41: 0.001071924763 | AV41: 0.0009608671476 | AW41: 0.000852390273 | AX41: 0.000748324087 | AY41: 0.0006501552337 | AZ41: 0.0005590111889 | BA41: =(1/(2*PI()*SQRT(1-rho^2)))*EXP(-(1/(2*(1-rho^2)))*($B41^2+BA$30^2-2*rho*$B41*BA$30)) -> 0.0004756637302 | BB41: 0.0004005490198 | BC41: 0.000333800827 | BD41: 0.0002752930469 | BE41: 0.0002246876365 | BF41: 0.0001814843617 | BG41: 0.0001450692414 | BH41: 0.0001147592155 | BI41: 8.98412738e-05 | BJ41: 6.960498271e-05 | BK41: =(1/(2*PI()*SQRT(1-rho^2)))*EXP(-(1/(2*(1-rho^2)))*($B41^2+BK$30^2-2*rho*$B41*BK$30)) -> 5.336799147e-05 | BL41: 4.04946347e-05 | BM41: 3.040816493e-05 | BN41: 2.259742938e-05 | BO41: 1.66189646e-05 | BP41: 1.209553233e-05 | BQ41: 8.712085115e-06 | BR41: 6.210053362e-06 | BS41: 4.380711506e-06 | BT41: 3.058229505e-06 | BU41: =(1/(2*PI()*SQRT(1-rho^2)))*EXP(-(1/(2*(1-rho^2)))*($B41^2+BU$30^2-2*rho*$B41*BU$30)) -> 2.112864244e-06 | BV41: 1.444605329e-06 | BW41: 9.774688599e-07 | BX41: 6.545348088e-07 | BY41: 4.337491773e-07 | BZ41: 2.844596553e-07 | CA41: 1.846200202e-07 | CB41: 1.185804264e-07 | CC41: 7.5374305e-08 | CD41: 4.741434252e-08 | CE41: 2.951700195e-08
B42: -2.9 | C42: 5.480352857e-06 | D42: 7.785096147e-06 | E42: 1.094449024e-05 | F42: 1.522660899e-05 | G42: 2.096461791e-05 | H42: 2.856582735e-05 | I42: 3.851968806e-05 | J42: 5.140375146e-05 | K42: 6.788642957e-05 | L42: 8.872524757e-05 | M42: 0.0001147592155 | N42: 0.0001468939878 | O42: 0.0001860786602 | P42: 0.0002332733998 | Q42: 0.0002894076233 | R42: 0.0003553291307 | S42: 0.0004317454401 | T42: 0.0005191594988 | U42: 0.0006178029088 | V42: 0.0007275706847 | W42: 0.0008479622815 | X42: 0.0009780340534 | Y42: 0.001116368355 | Z42: 0.001261064085 | AA42: 0.001409752574 | AB42: 0.001559641327 | AC42: 0.00170758634 | AD42: 0.001850191616 | AE42: 0.001983932283 | AF42: 0.002105295582 | AG42: 0.002210932141 | AH42: 0.002297808578 | AI42: 0.002363351826 | AJ42: 0.0024055756 | AK42: 0.002423180362 | AL42: 0.002415619743 | AM42: 0.002383128713 | AN42: 0.002326711452 | AO42: 0.002248089797 | AP42: 0.002149615975 | AQ42: 0.002034155767 | AR42: 0.001904950219 | AS42: 0.001765465173 | AT42: 0.001619238337 | AU42: 0.001469733184 | AV42: 0.001320207881 | AW42: 0.001173605784 | AX42: 0.001032471948 | AY42: 0.0008988979282 | AZ42: 0.0007744949624 | BA42: 0.0006603936889 | BB42: 0.0005572670056 | BC42: 0.0004653715671 | BD42: 0.0003846028162 | BE42: 0.0003145583177 | BF42: 0.0002546044477 | BG42: 0.0002039421052 | BH42: 0.0001616679417 | BI42: 0.0001268285476 | BJ42: 9.846598469e-05 | BK42: 7.565393758e-05 | BL42: 5.752451216e-05 | BM42: 4.32862986e-05 | BN42: 3.223473149e-05 | BO42: 2.375602436e-05 | BP42: 1.732605011e-05 | BQ42: 1.250551177e-05 | BR42: 8.9326326e-06 | BS42: 6.31442157e-06 | BT42: 4.417369967e-06 | BU42: 3.058229505e-06 | BV42: 2.095330202e-06 | BW42: 1.420728103e-06 | BX42: 9.533350678e-07 | BY42: 6.330766054e-07 | BZ42: 4.160476379e-07 | CA42: 2.705863942e-07 | CB42: 1.741586098e-07 | CC42: 1.109328172e-07 | CD42: 6.99280205e-08 | CE42: 4.362330101e-08
B43: -2.8 | C43: 6.78497871e-06 | D43: 9.65847874e-06 | E43: 1.36064574e-05 | F43: 1.896957074e-05 | G43: 2.61725501e-05 | H43: 3.573638969e-05 | I43: 4.82893556e-05 | J43: 6.457556933e-05 | K43: 8.545966317e-05 | L43: 0.0001119258004 | M43: 0.0001450692414 | N43: 0.0001860786602 | O43: 0.000236207618 | P43: 0.0002967340121 | Q43: 0.0003689069665 | R43: 0.0004538815021 | S43: 0.0005526424098 | T43: 0.0006659199638 | U43: 0.0007941013957 | V43: 0.0009371432532 | W43: 0.001094490775 | X43: 0.001265011074 | Y43: 0.001446947083 | Z43: 0.001637898815 | AA43: 0.001834837417 | AB43: 0.002034155767 | AC43: 0.002231757094 | AD43: 0.002423180362 | AE43: 0.002603758235 | AF43: 0.002768800544 | AG43: 0.002913793605 | AH43: 0.003034603813 | AI43: 0.003127672788 | AJ43: 0.003190191277 | AK43: 0.003220239953 | AL43: 0.003216887283 | AM43: 0.00318023749 | AN43: 0.003111425174 | AO43: 0.00301255697 | AP43: 0.002886604438 | AQ43: 0.002737255775 | AR43: 0.00256873667 | AS43: 0.002385612433 | AT43: 0.002192584262 | AU43: 0.001994292219 | AV43: 0.001795136164 | AW43: 0.001599123836 | AX43: 0.001409752574 | AY43: 0.001229928302 | AZ43: 0.001061922428 | BA43: 0.0009073647224 | BB43: 0.0007672680014 | BC43: 0.0006420788757 | BD43: 0.0005317478915 | BE43: 0.0004358120862 | BF43: 0.0003534832693 | BG43: 0.0002837360739 | BH43: 0.0002253908836 | BI43: 0.0001771879716 | BJ43: 0.000137850462 | BK43: 0.0001061349243 | BL43: 8.086945238e-05 | BM43: 6.097991141e-05 | BN43: 4.550563459e-05 | BO43: 3.360621955e-05 | BP43: 2.45612375e-05 | BQ43: 1.776466115e-05 | BR43: 1.271568353e-05 | BS43: 9.007382229e-06 | BT43: 6.31442157e-06 | BU43: 4.380711506e-06 | BV43: 3.007681418e-06 | BW43: 2.043596315e-06 | BX43: 1.374151096e-06 | BY43: 9.144289461e-07 | BZ43: 6.022010951e-07 | CA43: 3.924724856e-07 | CB43: 2.531354619e-07 | CC43: 1.615745158e-07 | CD43: 1.020631189e-07 | CE43: 6.380297171e-08
B44: -2.7 | C44: 8.313129692e-06 | D44: 1.185849501e-05 | E44: 1.674058742e-05 | F44: 2.338772134e-05 | G44: 3.233562258e-05 | H44: 4.42436189e-05 | I44: 5.990956382e-05 | J44: 8.028192392e-05 | K44: 0.0001064671147 | L44: 0.0001397298835 | M44: 0.0001814843617 | N44: 0.0002332733998 | O44: 0.0002967340121 | P44: 0.0003735472449 | Q44: 0.0004653715671 | R44: 0.00057375998 | S44: 0.0007000624104 | T44: 0.0008453165355 | U44: 0.00101013186 | V44: 0.00119457349 | W44: 0.00139805345 | X44: 0.001619238337 | Y44: 0.001855982508 | Z44: 0.002105295582 | AA44: 0.002363351826 | AB44: 0.002625546881 | AC44: 0.002886604438 | AD44: 0.003140731946 | AE44: 0.003381820621 | AF44: 0.003603681193 | AG44: 0.003800303289 | AH44: 0.003966123661 | AI44: 0.004096286684 | AJ44: 0.004186880209 | AK44: 0.004235130786 | AL44: 0.004239544679 | AM44: 0.004199984675 | AN44: 0.004117677167 | AO44: 0.003995149005 | AP44: 0.003836098661 | AQ44: 0.003645210849 | AR44: 0.003427927587 | AS44: 0.003190191277 | AT44: 0.002938176673 | AU44: 0.002678028465 | AV44: 0.002415619743 | AW44: 0.002156344032 | AX44: 0.001904950219 | AY44: 0.001665425883 | AZ44: 0.001440930679 | BA44: 0.00123377784 | BB44: 0.001045458846 | BC44: 0.0008767040593 | BD44: 0.0007275706847 | BE44: 0.0005975489203 | BF44: 0.0004856773375 | BG44: 0.0003906594292 | BH44: 0.0003109745747 | BI44: 0.0002449782641 | BJ44: 0.0001909881063 | BK44: 0.0001473537496 | BL44: 0.000112510268 | BM44: 8.501571787e-05 | BN44: 6.357441792e-05 | BO44: 4.704805324e-05 | BP44: 3.445696505e-05 | BQ44: 2.497402177e-05 | BR44: 1.791331854e-05 | BS44: 1.271568353e-05 | BT44: 8.9326326e-06 | BU44: 6.210053362e-06 | BV44: 4.272551354e-06 | BW44: 2.909077892e-06 | BX44: 1.96019604e-06 | BY44: 1.307132956e-06 | BZ44: 8.626132412e-07 | CA44: 5.633633308e-07 | CB44: 3.641137921e-07 | CC44: 2.328958678e-07 | CD44: 1.474220804e-07 | CE44: 9.235052897e-08
B45: -2.6 | C45: 1.007991156e-05 | D45: 1.440875713e-05 | E45: 2.038320251e-05 | F45: 2.853608677e-05 | G45: 3.953598048e-05 | H45: 5.420841504e-05 | I45: 7.355581375e-05 | J45: 9.877417219e-05 | K45: 0.0001312640778 | L45: 0.000172633265 | M45: 0.0002246876365 | N45: 0.0002894076233 | O45: 0.0003689069665 | P45: 0.0004653715671 | Q45: 0.0005809769921 | R45: 0.0007177845747 | S45: 0.0008776177685 | T45: 0.001061922428 | U45: 0.001271616861 | V45: 0.001506939656 | W45: 0.001767305157 | X45: 0.002051177892 | Y45: 0.002355977879 | Z45: 0.002678028465 | AA45: 0.00301255697 | AB45: 0.003353755882 | AC45: 0.003694908816 | AD45: 0.00402858102 | AE45: 0.004346869264 | AF45: 0.004641700919 | AG45: 0.004905167346 | AH45: 0.005129872866 | AI45: 0.005309278108 | AJ45: 0.005438015572 | AK45: 0.005512156228 | AL45: 0.005529408659 | AM45: 0.005489236692 | AN45: 0.005392887073 | AO45: 0.005243325196 | AP45: 0.005045083526 | AQ45: 0.004804033495 | AR45: 0.004527096915 | AS45: 0.00422191666 | AT45: 0.003896508425 | AU45: 0.003558915546 | AV45: 0.003216887283 | AW45: 0.002877597879 | AX45: 0.002547419476 | AY45: 0.002231757094 | AZ45: 0.00193494882 | BA45: 0.001660229551 | BB45: 0.001409752574 | BC45: 0.001184660075 | BD45: 0.0009851916152 | BE45: 0.0008108187088 | BF45: 0.0006603936889 | BG45: 0.0005323020841 | BH45: 0.0004246093156 | BI45: 0.0003351945654 | BJ45: 0.0002618668466 | BK45: 0.0002024604358 | BL45: 0.0001549087379 | BM45: 0.0001172972317 | BN45: 8.789733527e-05 | BO45: 6.518381197e-05 | BP45: 4.783875837e-05 | BQ45: 3.474530618e-05 | BR45: 2.497402177e-05 | BS45: 1.776466115e-05 | BT45: 1.250551177e-05 | BU45: 8.712085115e-06 | BV45: 6.006463597e-06 | BW45: 4.098186213e-06 | BX45: 2.767200489e-06 | BY45: 1.849122414e-06 | BZ45: 1.222832011e-06 | CA45: 8.002838158e-07 | CB45: 5.183192859e-07 | CC45: 3.322207866e-07 | CD45: 2.107328957e-07 | CE45: 1.32286025e-07
B46: -2.5 | C46: 1.209553233e-05 | D46: 1.732605011e-05 | E46: 2.45612375e-05 | F46: 3.445696505e-05 | G46: 4.783875837e-05 | H46: 6.572928003e-05 | I46: 8.937456693e-05 | J46: 0.0001202666253 | K46: 0.0001601593871 | L46: 0.0002110745008 | M46: 0.0002752930469 | N46: 0.0003553291307 | O46: 0.0004538815021 | P46: 0.00057375998 | Q46: 0.0007177845747 | R46: 0.0008886568411 | S46: 0.001088805122 | T46: 0.001320207881 | U46: 0.001584202105 | V46: 0.001881286547 | W46: 0.002210932141 | X46: 0.002571413831 | Y46: 0.002959679178 | Z46: 0.003371268927 | AA46: 0.003800303289 | AB46: 0.004239544679 | AC46: 0.004680543379 | AD46: 0.005113867036 | AE46: 0.005529408659 | AF46: 0.005916761231 | AG46: 0.006265640868 | AH46: 0.006566335252 | AI46: 0.006810150432 | AJ46: 0.006989827491 | AK46: 0.007099901257 | AL46: 0.007136976375 | AM46: 0.007099901257 | AN46: 0.006989827491 | AO46: 0.006810150432 | AP46: 0.006566335252 | AQ46: 0.006265640868 | AR46: 0.005916761231 | AS46: 0.005529408659 | AT46: 0.005113867036 | AU46: 0.004680543379 | AV46: 0.004239544679 | AW46: 0.003800303289 | AX46: 0.003371268927 | AY46: 0.002959679178 | AZ46: 0.002571413831 | BA46: 0.002210932141 | BB46: 0.001881286547 | BC46: 0.001584202105 | BD46: 0.001320207881 | BE46: 0.001088805122 | BF46: 0.0008886568411 | BG46: 0.0007177845747 | BH46: 0.00057375998 | BI46: 0.0004538815021 | BJ46: 0.0003553291307 | BK46: 0.0002752930469 | BL46: 0.0002110745008 | BM46: 0.0001601593871 | BN46: 0.0001202666253 | BO46: 8.937456693e-05 | BP46: 6.572928003e-05 | BQ46: 4.783875837e-05 | BR46: 3.445696505e-05 | BS46: 2.45612375e-05 | BT46: 1.732605011e-05 | BU46: 1.209553233e-05 | BV46: 8.356540192e-06 | BW46: 5.71352491e-06 | BX46: 3.865964335e-06 | BY46: 2.588735387e-06 | BZ46: 1.715511275e-06 | CA46: 1.125059761e-06 | CB46: 7.301863443e-07 | CC46: 4.689946844e-07 | CD46: 2.981111592e-07 | CE46: 1.875273624e-07
B47: -2.4 | C47: 1.436380004e-05 | D47: 2.061810326e-05 | E47: 2.928897471e-05 | F47: 4.117520091e-05 | G47: 5.728532535e-05 | H47: 7.887277849e-05 | I47: 0.0001074699373 | J47: 0.0001449182063 | K47: 0.000193390441 | L47: 0.0002554013311 | M47: 0.000333800827 | N47: 0.0004317454401 | O47: 0.0005526424098 | P47: 0.0007000624104 | Q47: 0.0008776177685 | R47: 0.001088805122 | S47: 0.001336814052 | T47: 0.001624306372 | U47: 0.001953174263 | V47: 0.002324289056 | W47: 0.002737255775 | X47: 0.003190191277 | Y47: 0.003679545392 | Z47: 0.004199984675 | AA47: 0.004744356832 | AB47: 0.00530375049 | AC47: 0.005867659761 | AD47: 0.006424256322 | AE47: 0.006960763801 | AF47: 0.007463920979 | AG47: 0.007920512208 | AH47: 0.008317936522 | AI47: 0.00864478178 | AJ47: 0.008891367627 | AK47: 0.009050221294 | AL47: 0.00911645367 | AM47: 0.00908800922 | AN47: 0.008965771945 | AO47: 0.008753519749 | AP47: 0.008457730511 | AQ47: 0.008087253739 | AR47: 0.007652871038 | AS47: 0.007166775816 | AT47: 0.006642007219 | AU47: 0.006091874759 | AV47: 0.005529408659 | AW47: 0.004966866756 | AX47: 0.004415322494 | AY47: 0.003884350842 | AZ47: 0.003381820621 | BA47: 0.002913793605 | BB47: 0.002484523465 | BC47: 0.002096541767 | BD47: 0.001750814094 | BE47: 0.001446947083 | BF47: 0.001183426696 | BG47: 0.0009578691246 | BH47: 0.0007672680014 | BI47: 0.0006082247625 | BJ47: 0.0004771525044 | BK47: 0.0003704472856 | BL47: 0.000284624136 | BM47: 0.0002164178772 | BN47: 0.0001628510787 | BO47: 0.0001212730347 | BP47: 8.937456693e-05 | BQ47: 6.518381197e-05 | BR47: 4.704805324e-05 | BS47: 3.360621955e-05 | BT47: 2.375602436e-05 | BU47: 1.66189646e-05 | BV47: 1.150562626e-05 | BW47: 7.883020601e-06 | BX47: 5.345042463e-06 | BY47: 3.58662323e-06 | BZ47: 2.381751534e-06 | CA47: 1.56524833e-06 | CB47: 1.01799617e-06 | CC47: 6.552169712e-07 | CD47: 4.173498203e-07 | CE47: 2.630821746e-07
B48: -2.3 | C48: 1.688067521e-05 | D48: 2.428141288e-05 | E48: 3.456481149e-05 | F48: 4.869344828e-05 | G48: 6.788642957e-05 | H48: 9.366374195e-05 | I48: 0.0001278898682 | J48: 0.000172813185 | K48: 0.000231096681 | L48: 0.0003058346171 | M48: 0.0004005490198 | N48: 0.0005191594988 | O48: 0.0006659199638 | P48: 0.0008453165355 | Q48: 0.001061922428 | R48: 0.001320207881 | S48: 0.001624306372 | T48: 0.001977742171 | U48: 0.002383128713 | V48: 0.002841851785 | W48: 0.003353755882 | X48: 0.003916855681 | Y48: 0.004527096915 | Z48: 0.005178191565 | AA48: 0.005861550798 | AB48: 0.006566335252 | AC48: 0.007279636113 | AD48: 0.00798679226 | AE48: 0.008671838978 | AF48: 0.009318073269 | AG48: 0.009908710411 | AH48: 0.01042759728 | AI48: 0.01085994094 | AJ48: 0.01119300702 | AK48: 0.01141674202 | AL48: 0.01152427726 | AM48: 0.01151227906 | AN48: 0.01138112039 | AO48: 0.01113486166 | AP48: 0.01078104188 | AQ48: 0.01033029537 | AR48: 0.009795821101 | AS48: 0.009192741542 | AT48: 0.008537394576 | AU48: 0.007846604391 | AV48: 0.007136976375 | AW48: 0.006424256322 | AX48: 0.005722786725 | AY48: 0.005045083526 | AZ48: 0.004401546148 | BA48: 0.003800303289 | BB48: 0.003247187412 | BC48: 0.002745823079 | BD48: 0.002297808578 | BE48: 0.001902966929 | BF48: 0.001559641327 | BG48: 0.001265011074 | BH48: 0.001015406688 | BI48: 0.0008066066731 | BJ48: 0.0006341028438 | BK48: 0.0004933256427 | BL48: 0.0003798252033 | BM48: 0.0002894076233 | BN48: 0.000218228895 | BO48: 0.0001628510787 | BP48: 0.0001202666253 | BQ48: 8.789733527e-05 | BR48: 6.357441792e-05 | BS48: 4.550563459e-05 | BT48: 3.223473149e-05 | BU48: 2.259742938e-05 | BV48: 1.567725844e-05 | BW48: 1.076359373e-05 | BX48: 7.313421016e-06 | BY48: 4.917676464e-06 | BZ48: 3.272468159e-06 | CA48: 2.155097908e-06 | CB48: 1.404541838e-06 | CC48: 9.058962343e-07 | CD48: 5.782269476e-07 | CE48: 3.652534275e-07
B49: -2.2 | C49: 1.963298688e-05 | D49: 2.829927414e-05 | E49: 4.036828649e-05 | F49: 5.698773991e-05 | G49: 7.961568773e-05 | H49: 0.0001100758297 | I49: 0.0001506126269 | J49: 0.0002039421052 | K49: 0.0002732930025 | L49: 0.0003624317409 | M49: 0.0004756637302 | N49: 0.0006178029088 | O49: 0.0007941013957 | P49: 0.00101013186 | Q49: 0.001271616861 | R49: 0.001584202105 | S49: 0.001953174263 | T49: 0.002383128713 | U49: 0.002877597879 | V49: 0.003438656616 | W49: 0.004066526559 | X49: 0.004759206138 | Y49: 0.005512156228 | Z49: 0.006318072705 | AA49: 0.007166775816 | AB49: 0.008045242126 | AC49: 0.00893779764 | AD49: 0.009826480923 | AE49: 0.01069157316 | AF49: 0.01151227906 | AG49: 0.01226752929 | AH49: 0.01293686356 | AI49: 0.01350134365 | AJ49: 0.0139444402 | AK49: 0.0142528356 | AL49: 0.01441708858 | AM49: 0.0144321142 | AN49: 0.01429744538 | AO49: 0.01401725695 | AP49: 0.01360015074 | AQ49: 0.01305871695 | AR49: 0.01240890314 | AS49: 0.01166923483 | AT49: 0.01085994094 | AU49: 0.01000204138 | AV49: 0.00911645367 | AW49: 0.008223170798 | AX49: 0.007340553216 | AY49: 0.006484766925 | AZ49: 0.005669386305 | BA49: 0.004905167346 | BB49: 0.004199984675 | BC49: 0.003558915546 | BD49: 0.002984446223 | BE49: 0.002476771448 | BF49: 0.002034155767 | BG49: 0.00165332632 | BH49: 0.001329869579 | BI49: 0.0010586091 | BJ49: 0.0008339466978 | BK49: 0.0006501552337 | BL49: 0.0005016166364 | BM49: 0.0003830036384 | BN49: 0.0002894076233 | BO49: 0.0002164178772 | BP49: 0.0001601593871 | BQ49: 0.0001172972317 | BR49: 8.501571787e-05 | BS49: 6.097991141e-05 | BT49: 4.32862986e-05 | BU49: 3.040816493e-05 | BV49: 2.114005303e-05 | BW49: 1.45444744e-05 | BX49: 9.902984293e-06 | BY49: 6.672832876e-06 | BZ49: 4.449697674e-06 | CA49: 2.936478738e-06 | CB49: 1.917782343e-06 | CC49: 1.239503821e-06 | CD49: 7.928162141e-07 | CE49: 5.01849246e-07
B50: -2.1 | C50: 2.259742938e-05 | D50: 3.264019449e-05 | E50: 4.665761522e-05 | F50: 6.600372339e-05 | G50: 9.240392802e-05 | H50: 0.0001280231562 | I50: 0.0001755345967 | J50: 0.0002381842393 | K50: 0.0003198448887 | L50: 0.0004250518474 | M50: 0.0005590111889 | N50: 0.0007275706847 | O50: 0.0009371432532 | P50: 0.00119457349 | Q50: 0.001506939656 | R50: 0.001881286547 | S50: 0.002324289056 | T50: 0.002841851785 | U50: 0.003438656616 | V50: 0.004117677167 | W50: 0.004879686014 | X50: 0.005722786725 | Y50: 0.006642007219 | Z50: 0.007628993145 | AA50: 0.008671838978 | AB50: 0.009755090095 | AC50: 0.01085994094 | AD50: 0.01196464291 | AE50: 0.0130451212 | AF50: 0.01407578403 | AG50: 0.01503049108 | AH50: 0.01588363303 | AI50: 0.01661126163 | AJ50: 0.01719220144 | AK50: 0.01760907175 | AL50: 0.01784914979 | AM50: 0.01790501563 | AN50: 0.01777493306 | AO50: 0.01746293922 | AP50: 0.01697863649 | AQ50: 0.01633670162 | AR50: 0.01555614716 | AS50: 0.01465938693 | AT50: 0.01367116964 | AU50: 0.01261745126 | AV50: 0.01152427726 | AW50: 0.01041674086 | AX50: 0.009318073269 | AY50: 0.0082489084 | AZ50: 0.007226748487 | BA50: 0.006265640868 | BB50: 0.005376060605 | BC50: 0.004564980351 | BD50: 0.003836098661 | BE50: 0.003190191277 | BF50: 0.002625546881 | BG50: 0.002138449164 | BH50: 0.001723670238 | BI50: 0.001374945659 | BJ50: 0.001085407917 | BK50: 0.0008479622815 | BL50: 0.0006555958317 | BM50: 0.0005016166364 | BN50: 0.0003798252033 | BO50: 0.000284624136 | BP50: 0.0002110745008 | BQ50: 0.0001549087379 | BR50: 0.000112510268 | BS50: 8.086945238e-05 | BT50: 5.752451216e-05 | BU50: 4.04946347e-05 | BV50: 2.821097694e-05 | BW50: 1.944978771e-05 | BX50: 1.327051277e-05 | BY50: 8.960590739e-06 | BZ50: 5.987722696e-06 | CA50: 3.959704847e-06 | CB50: 2.591433391e-06 | CC50: 1.678391938e-06 | CD50: 1.075778396e-06 | CE50: 6.823832393e-07
B51: -2 | C51: =(1/(2*PI()*SQRT(1-rho^2)))*EXP(-(1/(2*(1-rho^2)))*($B51^2+C$30^2-2*rho*$B51*C$30)) -> 2.57399559e-05 | D51: 3.725686248e-05 | E51: 5.336799147e-05 | F51: 7.565393758e-05 | G51: 0.0001061349243 | H51: 0.0001473537496 | I51: 0.0002024604358 | J51: 0.0002752930469 | K51: 0.0003704472856 | L51: 0.0004933256427 | M51: =(1/(2*PI()*SQRT(1-rho^2)))*EXP(-(1/(2*(1-rho^2)))*($B51^2+M$30^2-2*rho*$B51*M$30)) -> 0.0006501552337 | N51: 0.0008479622815 | O51: 0.001094490775 | P51: 0.00139805345 | Q51: 0.001767305157 | R51: 0.002210932141 | S51: 0.002737255775 | T51: 0.003353755882 | U51: 0.004066526559 | V51: 0.004879686014 | W51: =(1/(2*PI()*SQRT(1-rho^2)))*EXP(-(1/(2*(1-rho^2)))*($B51^2+W$30^2-2*rho*$B51*W$30)) -> 0.005794770521 | X51: 0.006810150432 | Y51: 0.007920512208 | Z51: 0.00911645367 | AA51: 0.01038423935 | AB51: 0.01170575822 | AC51: 0.01305871695 | AD51: 0.01441708858 | AE51: 0.01575181941 | AF51: 0.01703177772 | AG51: =(1/(2*PI()*SQRT(1-rho^2)))*EXP(-(1/(2*(1-rho^2)))*($B51^2+AG$30^2-2*rho*$B51*AG$30)) -> 0.01822490763 | AH51: 0.01929953257 | AI51: 0.02022573648 | AJ51: 0.02097674011 | AK51: 0.02153018441 | AL51: 0.02186923548 | AM51: 0.02198343488 | AN51: 0.02186923548 | AO51: 0.02153018441 | AP51: 0.02097674011 | AQ51: =(1/(2*PI()*SQRT(1-rho^2)))*EXP(-(1/(2*(1-rho^2)))*($B51^2+AQ$30^2-2*rho*$B51*AQ$30)) -> 0.02022573648 | AR51: 0.01929953257 | AS51: 0.01822490763 | AT51: 0.01703177772 | AU51: 0.01575181941 | AV51: 0.01441708858 | AW51: 0.01305871695 | AX51: 0.01170575822 | AY51: 0.01038423935 | AZ51: 0.00911645367 | BA51: =(1/(2*PI()*SQRT(1-rho^2)))*EXP(-(1/(2*(1-rho^2)))*($B51^2+BA$30^2-2*rho*$B51*BA$30)) -> 0.007920512208 | BB51: 0.006810150432 | BC51: 0.005794770521 | BD51: 0.004879686014 | BE51: 0.004066526559 | BF51: 0.003353755882 | BG51: 0.002737255775 | BH51: 0.002210932141 | BI51: 0.001767305157 | BJ51: 0.00139805345 | BK51: =(1/(2*PI()*SQRT(1-rho^2)))*EXP(-(1/(2*(1-rho^2)))*($B51^2+BK$30^2-2*rho*$B51*BK$30)) -> 0.001094490775 | BL51: 0.0008479622815 | BM51: 0.0006501552337 | BN51: 0.0004933256427 | BO51: 0.0003704472856 | BP51: 0.0002752930469 | BQ51: 0.0002024604358 | BR51: 0.0001473537496 | BS51: 0.0001061349243 | BT51: 7.565393758e-05 | BU51: =(1/(2*PI()*SQRT(1-rho^2)))*EXP(-(1/(2*(1-rho^2)))*($B51^2+BU$30^2-2*rho*$B51*BU$30)) -> 5.336799147e-05 | BV51: 3.725686248e-05 | BW51: 2.57399559e-05 | BX51: 1.75988957e-05 | BY51: 1.190800848e-05 | BZ51: 7.973866356e-06 | CA51: 5.284146732e-06 | CB51: 3.465428033e-06 | CC51: 2.249132281e-06 | CD51: 1.444605329e-06 | CE51: 9.182470155e-07
B52: -1.9 | C52: 2.901567367e-05 | D52: 4.208583215e-05 | E52: 6.041089617e-05 | F52: 8.581648797e-05 | G52: 0.0001206430463 | H52: 0.0001678455966 | I52: 0.000231096681 | J52: 0.0003148861533 | K52: 0.0004246093156 | L52: 0.000566632619 | M52: 0.000748324087 | N52: 0.0009780340534 | O52: 0.001265011074 | P52: 0.001619238337 | Q52: 0.002051177892 | R52: 0.002571413831 | S52: 0.003190191277 | T52: 0.003916855681 | U52: 0.004759206138 | V52: 0.005722786725 | W52: 0.006810150432 | X52: 0.008020139987 | Y52: 0.009347237794 | Z52: 0.01078104188 | AA52: 0.01230592528 | AB52: 0.01390093184 | AC52: 0.01553995128 | AD52: 0.01719220144 | AE52: 0.01882302541 | AF52: 0.02039498852 | AG52: 0.02186923548 | AH52: 0.02320704454 | AI52: 0.02437149496 | AJ52: 0.02532914924 | AK52: 0.02605164402 | AL52: 0.02651708414 | AM52: 0.02671114453 | AN52: 0.02662780249 | AO52: 0.02626964815 | AP52: 0.02564775072 | AQ52: 0.02478109035 | AR52: 0.02369559604 | AS52: 0.02242285781 | AT52: 0.02099860226 | AU52: 0.019461034 | AV52: 0.01784914979 | AW52: 0.01620112811 | AX52: 0.01455288433 | AY52: 0.01293686356 | AZ52: 0.01138112039 | BA52: 0.009908710411 | BB52: 0.008537394576 | BC52: 0.007279636113 | BD52: 0.006142852494 | BE52: 0.005129872866 | BF52: 0.004239544679 | BG52: 0.003467431818 | BH52: 0.002806549735 | BI52: 0.002248089797 | BJ52: 0.001782094236 | BK52: 0.00139805345 | BL52: 0.001085407917 | BM52: 0.0008339466978 | BN52: 0.0006341028438 | BO52: 0.0004771525044 | BP52: 0.0003553291307 | BQ52: 0.0002618668466 | BR52: 0.0001909881063 | BS52: 0.000137850462 | BT52: 9.846598469e-05 | BU52: 6.960498271e-05 | BV52: 4.869344828e-05 | BW52: 3.371140325e-05 | BX52: 2.30971944e-05 | BY52: 1.566093647e-05 | BZ52: 1.05087806e-05 | CA52: 6.978515084e-06 | CB52: 4.586166495e-06 | CC52: 2.98272155e-06 | CD52: 1.919781074e-06 | CE52: 1.222832011e-06
B53: -1.8 | C53: 3.236932307e-05 | D53: 4.704805324e-05 | E53: 6.767461561e-05 | F53: 9.633542919e-05 | G53: 0.0001357132887 | H53: 0.0001892059597 | I53: 0.00026104979 | J53: 0.0003564412711 | K53: 0.0004816468434 | L53: 0.0006440885106 | M53: 0.000852390273 | N53: 0.001116368355 | O53: 0.001446947083 | P53: 0.001855982508 | Q53: 0.002355977879 | R53: 0.002959679178 | S53: 0.003679545392 | T53: 0.004527096915 | U53: 0.005512156228 | V53: 0.006642007219 | W53: 0.007920512208 | X53: 0.009347237794 | Y53: 0.01091665069 | Z53: 0.01261745126 | AA53: 0.0144321142 | AB53: 0.01633670162 | AC53: 0.01830100317 | AD53: 0.02028904077 | AE53: 0.02225995245 | AF53: 0.02416924305 | AG53: 0.02597035971 | AH53: 0.02761652181 | AI53: 0.02906270905 | AJ53: 0.03026769211 | AK53: 0.03119597905 | AL53: 0.03181954986 | AM53: 0.03211926084 | AN53: 0.0320858207 | AO53: 0.03172026898 | AP53: 0.03103392238 | AQ53: 0.03004779287 | AR53: 0.02879151934 | AS53: 0.02730188852 | AT53: 0.02562104822 | AU53: 0.02379453367 | AV53: 0.02186923548 | AW53: 0.01989143446 | AX53: 0.01790501563 | AY53: 0.0159499529 | AZ53: 0.01406112939 | BA53: 0.01226752929 | BB53: 0.01059180805 | BC53: 0.009050221294 | BD53: 0.007652871038 | BE53: 0.006404211857 | BF53: 0.00530375049 | BG53: 0.004346869264 | BH53: 0.003525706623 | BI53: 0.00283003537 | BJ53: 0.002248089797 | BK53: 0.001767305157 | BL53: 0.001374945659 | BM53: 0.0010586091 | BN53: 0.0008066066731 | BO53: 0.0006082247625 | BP53: 0.0004538815021 | BQ53: 0.0003351945654 | BR53: 0.0002449782641 | BS53: 0.0001771879716 | BT53: 0.0001268285476 | BU53: 8.98412738e-05 | BV53: 6.298119284e-05 | BW53: 4.369401584e-05 | BX53: 2.999916323e-05 | BY53: 2.038320251e-05 | BZ53: 1.370603375e-05 | CA53: 9.12068115e-06 | CB53: 6.006463597e-06 | CC53: 3.91459218e-06 | CD53: 2.524819282e-06 | CE53: 1.611573701e-06
B54: -1.7 | C54: 3.573638969e-05 | D54: 5.205033106e-05 | E54: 7.502610769e-05 | F54: 0.0001070230775 | G54: 0.0001510840275 | H54: 0.0002110745008 | I54: 0.0002918294303 | J54: 0.0003992992579 | K54: 0.0005406846222 | L54: 0.0007245454472 | M54: 0.0009608671476 | N54: 0.001261064085 | O54: 0.001637898815 | P54: 0.002105295582 | Q54: 0.002678028465 | R54: 0.003371268927 | S54: 0.004199984675 | T54: 0.005178191565 | U54: 0.006318072705 | V54: 0.007628993145 | W54: 0.00911645367 | X54: 0.01078104188 | Y54: 0.01261745126 | Z54: 0.01461364785 | AA54: 0.01675026719 | AB54: 0.01900032105 | AC54: 0.02132928213 | AD54: 0.02369559604 | AE54: 0.02605164402 | AF54: 0.02834514821 | AG54: 0.03052097676 | AH54: 0.03252327141 | AI54: 0.03429778849 | AJ54: 0.03579431958 | AK54: 0.03696904262 | AL54: 0.03778665041 | AM54: 0.03822211252 | AN54: 0.03826194796 | AO54: 0.03790491839 | AP54: 0.03716209201 | AQ54: 0.03605627371 | AR54: 0.0346208422 | AS54: 0.03289807712 | AT54: 0.03093709275 | AU54: 0.02879151934 | AV54: 0.02651708414 | AW54: 0.02416924305 | AX54: 0.02180100079 | AY54: 0.019461034 | AZ54: 0.01719220144 | BA54: 0.01503049108 | BB54: 0.01300441883 | BC54: 0.01113486166 | BD54: 0.009435280202 | BE54: 0.00791226597 | BF54: 0.006566335252 | BG54: 0.005392887073 | BH54: 0.004383244527 | BI54: 0.003525706623 | BJ54: 0.002806549735 | BK54: 0.002210932141 | BL54: 0.001723670238 | BM54: 0.001329869579 | BN54: 0.001015406688 | BO54: 0.0007672680014 | BP54: 0.00057375998 | BQ54: 0.0004246093156 | BR54: 0.0003109745747 | BS54: 0.0002253908836 | BT54: 0.0001616679417 | BU54: 0.0001147592155 | BV54: 8.06171298e-05 | BW54: 5.604581542e-05 | BX54: 3.855983364e-05 | BY54: 2.625446725e-05 | BZ54: 1.769079573e-05 | CA54: 1.179689257e-05 | CB54: 7.785096147e-06 | CC54: 5.084361666e-06 | CD54: 3.286131889e-06 | CE54: 2.101888351e-06
B55: -1.6 | C55: 3.904485664e-05 | D55: 5.698773991e-05 | E55: 8.23142705e-05 | F55: 0.0001176643589 | G55: 0.0001664526951 | H55: 0.0002330305332 | I55: 0.0003228575342 | J55: 0.0004426751279 | K55: 0.0006006692732 | L55: 0.0008066066731 | M55: 0.001071924763 | N55: 0.001409752574 | O55: 0.001834837417 | P55: 0.002363351826 | Q55: 0.00301255697 | R55: 0.003800303289 | S55: 0.004744356832 | T55: 0.005861550798 | U55: 0.007166775816 | V55: 0.008671838978 | W55: 0.01038423935 | X55: 0.01230592528 | Y55: 0.0144321142 | Z55: 0.01675026719 | AA55: 0.01923931567 | AB55: 0.02186923548 | AC55: 0.02460105209 | AD55: 0.02738734037 | AE55: 0.03017325321 | AF55: 0.03289807712 | AG55: 0.035497273 | AH55: 0.03790491839 | AI55: 0.04005643 | AJ55: 0.04189141346 | AK55: 0.04335646714 | AL55: 0.04440775915 | AM55: 0.04501320434 | AN55: 0.04515409062 | AO55: 0.04482603952 | AP55: 0.04403923215 | AQ55: 0.04281788446 | AR55: 0.0411990093 | AS55: 0.03923055379 | AT55: 0.03696904262 | AU55: 0.0344768888 | AV55: 0.03181954986 | AW55: 0.02906270905 | AX55: 0.02626964815 | AY55: 0.02349895322 | AZ55: 0.02080266028 | BA55: 0.01822490763 | BB55: 0.01580112084 | BC55: 0.01355771661 | BD55: 0.01151227906 | BE55: 0.009674135457 | BF55: 0.008045242126 | BG55: 0.006621283344 | BH55: 0.005392887073 | BI55: 0.004346869264 | BJ55: 0.003467431818 | BK55: 0.002737255775 | BL55: 0.002138449164 | BM55: 0.00165332632 | BN55: 0.001265011074 | BO55: 0.0009578691246 | BP55: 0.0007177845747 | BQ55: 0.0005323020841 | BR55: 0.0003906594292 | BS55: 0.0002837360739 | BT55: 0.0002039421052 | BU55: 0.0001450692414 | BV55: 0.000102122134 | BW55: 7.114436734e-05 | BX55: 4.90498023e-05 | BY55: 3.346648495e-05 | BZ55: 2.259742938e-05 | CA55: 1.510024782e-05 | CB55: 9.985853973e-06 | CC55: 6.535253618e-06 | CD55: 4.232683358e-06 | CE55: 2.712971392e-06
B56: -1.5 | C56: 4.221755608e-05 | D56: 6.174694427e-05 | E56: 8.937456693e-05 | F56: 0.0001280231562 | G56: 0.0001814843617 | H56: 0.0002546044477 | I56: 0.0003534832693 | J56: 0.0004856773375 | K56: 0.0006603936889 | L56: 0.0008886568411 | M56: 0.001183426696 | N56: 0.001559641327 | O56: 0.002034155767 | P56: 0.002625546881 | Q56: 0.003353755882 | R56: 0.004239544679 | S56: 0.00530375049 | T56: 0.006566335252 | U56: 0.008045242126 | V56: 0.009755090095 | W56: 0.01170575822 | X56: 0.01390093184 | Y56: 0.01633670162 | Z56: 0.01900032105 | AA56: 0.02186923548 | AB56: 0.02491049523 | AC56: 0.0280806542 | AD56: 0.03132623347 | AE56: 0.0345847976 | AF56: 0.03778665041 | AG56: 0.04085711077 | AH56: 0.04371928066 | AI56: 0.04629717187 | AJ56: 0.04851901954 | AK56: 0.05032058359 | AL56: 0.05164822745 | AM56: 0.05246156869 | AN56: 0.05273551881 | AO56: 0.05246156869 | AP56: 0.05164822745 | AQ56: 0.05032058359 | AR56: 0.04851901954 | AS56: 0.04629717187 | AT56: 0.04371928066 | AU56: 0.04085711077 | AV56: 0.03778665041 | AW56: 0.0345847976 | AX56: 0.03132623347 | AY56: 0.0280806542 | AZ56: 0.02491049523 | BA56: 0.02186923548 | BB56: 0.01900032105 | BC56: 0.01633670162 | BD56: 0.01390093184 | BE56: 0.01170575822 | BF56: 0.009755090095 | BG56: 0.008045242126 | BH56: 0.006566335252 | BI56: 0.00530375049 | BJ56: 0.004239544679 | BK56: 0.003353755882 | BL56: 0.002625546881 | BM56: 0.002034155767 | BN56: 0.001559641327 | BO56: 0.001183426696 | BP56: 0.0008886568411 | BQ56: 0.0006603936889 | BR56: 0.0004856773375 | BS56: 0.0003534832693 | BT56: 0.0002546044477 | BU56: 0.0001814843617 | BV56: 0.0001280231562 | BW56: 8.937456693e-05 | BX56: 6.174694427e-05 | BY56: 4.221755608e-05 | BZ56: 2.856582735e-05 | CA56: 1.9128311e-05 | CB56: 1.267600905e-05 | CC56: 8.313129692e-06 | CD56: 5.395387861e-06 | CE56: 3.465428033e-06
B57: -1.4 | C57: 4.517502947e-05 | D57: 6.621030765e-05 | E57: 9.603485087e-05 | F57: 0.000137850462 | G57: 0.0001958229932 | H57: 0.0002752930469 | I57: 0.0003830036384 | J57: 0.0005273350713 | K57: 0.0007185326565 | L57: 0.0009689078301 | M57: 0.001292988074 | N57: 0.00170758634 | O57: 0.002231757094 | P57: 0.002886604438 | Q57: 0.003694908816 | R57: 0.004680543379 | S57: 0.005867659761 | T57: 0.007279636113 | U57: 0.00893779764 | V57: 0.01085994094 | W57: 0.01305871695 | X57: 0.01553995128 | Y57: 0.01830100317 | Z57: 0.02132928213 | AA57: 0.02460105209 | AB57: 0.0280806542 | AC57: 0.03172026898 | AD57: 0.03546031592 | AE57: 0.03923055379 | AF57: 0.04295189964 | AG57: 0.04653893201 | AH57: 0.04990298779 | AI57: 0.05295570855 | AJ57: 0.05561284556 | AK57: 0.05779809846 | AL57: 0.0594467454 | AM57: 0.06050882425 | AN57: 0.06095164693 | AO57: 0.06076147034 | AP57: 0.05994420482 | AQ57: 0.05852510904 | AR57: 0.05654749342 | AS57: 0.05407052483 | AT57: 0.05116628794 | AU57: 0.0479163066 | AV57: 0.04440775915 | AW57: 0.04072963159 | AX57: 0.03696904262 | AY57: 0.03320794684 | AZ57: 0.02952038012 | BA57: 0.02597035971 | BB57: 0.0226104957 | BC57: 0.01948131647 | BD57: 0.01661126163 | BE57: 0.01401725695 | BF57: 0.01170575822 | BG57: 0.009674135457 | BH57: 0.00791226597 | BI57: 0.006404211857 | BJ57: 0.005129872866 | BK57: 0.004066526559 | BL57: 0.003190191277 | BM57: 0.002476771448 | BN57: 0.001902966929 | BO57: 0.001446947083 | BP57: 0.001088805122 | BQ57: 0.0008108187088 | BR57: 0.0005975489203 | BS57: 0.0004358120862 | BT57: 0.0003145583177 | BU57: 0.0002246876365 | BV57: 0.0001588302712 | BW57: 0.000111112643 | BX57: 7.692540265e-05 | BY57: 5.270504363e-05 | BZ57: 3.573638969e-05 | CA57: 2.397978432e-05 | CB57: 1.592413934e-05 | CC57: 1.046508511e-05 | CD57: 6.806214933e-06 | CE57: 4.380711506e-06
B58: -1.3 | C58: 4.783875837e-05 | D58: 7.026059782e-05 | E58: 0.000102122134 | F58: 0.0001468939878 | G58: 0.0002091049242 | H58: 0.0002945781959 | I58: 0.0004106889665 | J58: 0.000566632619 | K58: 0.0007736886168 | L58: 0.001045458846 | M58: 0.00139805345 | N58: 0.001850191616 | O58: 0.002423180362 | P58: 0.003140731946 | Q58: 0.00402858102 | R58: 0.005113867036 | S58: 0.006424256322 | T58: 0.00798679226 | U58: 0.009826480923 | V58: 0.01196464291 | W58: 0.01441708858 | X58: 0.01719220144 | Y58: 0.02028904077 | Z58: 0.02369559604 | AA58: 0.02738734037 | AB58: 0.03132623347 | AC58: 0.03546031592 | AD58: 0.03972401341 | AE58: 0.04403923215 | AF58: 0.04831727754 | AG58: 0.05246156869 | AH58: 0.05637105832 | AI58: 0.05994420482 | AJ58: 0.06308328746 | AK58: 0.06569881419 | AL58: 0.06771374652 | AM58: 0.06906726443 | AN58: 0.06971781472 | AO58: 0.06964522981 | AP58: 0.06885176612 | AQ58: 0.06736198759 | AR58: 0.06522150265 | AS58: 0.06249464521 | AT58: 0.05926126429 | AU58: 0.05561284556 | AV58: 0.05164822745 | AW58: 0.04746919036 | AX58: 0.04317619103 | AY58: 0.03886448597 | AZ58: 0.0346208422 | BA58: 0.03052097676 | BB58: 0.02662780249 | BC58: 0.02299049516 | BD58: 0.01964433909 | BE58: 0.01661126163 | BF58: 0.01390093184 | BG58: 0.01151227906 | BH58: 0.009435280202 | BI58: 0.007652871038 | BJ58: 0.006142852494 | BK58: 0.004879686014 | BL58: 0.003836098661 | BM58: 0.002984446223 | BN58: 0.002297808578 | BO58: 0.001750814094 | BP58: 0.001320207881 | BQ58: 0.0009851916152 | BR58: 0.0007275706847 | BS58: 0.0005317478915 | BT58: 0.0003846028162 | BU58: 0.0002752930469 | BV58: 0.0001950087616 | BW58: 0.0001367064813 | BX58: 9.484188679e-05 | BY58: 6.511594752e-05 | BZ58: 4.42436189e-05 | CA58: 2.975020895e-05 | CB58: 1.97972787e-05 | CC58: 1.303758259e-05 | CD58: 8.496982967e-06 | CE58: 5.480352857e-06
B59: -1.2 | C59: 5.013458832e-05 | D59: 7.37860352e-05 | E59: 0.0001074699373 | F59: 0.0001549087379 | G59: 0.0002209738765 | H59: 0.0003119478903 | I59: 0.0004358120862 | J59: 0.0006025493006 | K59: 0.0008244455959 | L59: 0.001116368355 | M59: 0.001495991518 | N59: 0.001983932283 | O59: 0.002603758235 | P59: 0.003381820621 | Q59: 0.004346869264 | R59: 0.005529408659 | S59: 0.006960763801 | T59: 0.008671838978 | U59: 0.01069157316 | V59: 0.0130451212 | W59: 0.01575181941 | X59: 0.01882302541 | Y59: 0.02225995245 | Z59: 0.02605164402 | AA59: 0.03017325321 | AB59: 0.0345847976 | AC59: 0.03923055379 | AD59: 0.04403923215 | AE59: 0.04892503408 | AF59: 0.05378963962 | AG59: 0.05852510904 | AH59: 0.06301760992 | AI59: 0.06715180995 | AJ59: 0.07081571055 | AK59: 0.07390564484 | AL59: 0.07633113203 | AM59: 0.07801927227 | AN59: 0.07891838442 | AO59: 0.0790006339 | AP59: 0.07826346384 | AQ59: 0.07672972712 | AR59: 0.07444650967 | AS59: 0.0714827296 | AT59: 0.06792568296 | AU59: 0.06387677754 | AV59: 0.0594467454 | AW59: 0.05475064831 | AX59: 0.04990298779 | AY59: 0.04501320434 | AZ59: 0.04018180213 | BA59: 0.035497273 | BB59: 0.03103392238 | BC59: 0.026850628 | BD59: 0.02299049516 | BE59: 0.01948131647 | BF59: 0.01633670162 | BG59: 0.01355771661 | BH59: 0.01113486166 | BI59: 0.009050221294 | BJ59: 0.007279636113 | BK59: 0.005794770521 | BL59: 0.004564980351 | BM59: 0.003558915546 | BN59: 0.002745823079 | BO59: 0.002096541767 | BP59: 0.001584202105 | BQ59: 0.001184660075 | BR59: 0.0008767040593 | BS59: 0.0006420788757 | BT59: 0.0004653715671 | BU59: 0.000333800827 | BV59: 0.0002369469213 | BW59: 0.0001664526951 | BX59: 0.0001157195381 | BY59: 7.961568773e-05 | BZ59: 5.420841504e-05 | CA59: 3.652673612e-05 | CB59: 2.435741098e-05 | CC59: 1.607413013e-05 | CD59: 1.049783965e-05 | CE59: 6.78497871e-06
B60: -1.1 | C60: 5.19961402e-05 | D60: 7.668538599e-05 | E60: 0.0001119258004 | F60: 0.0001616679417 | G60: 0.000231096681 | H60: 0.0003269185821 | I60: 0.0004576796516 | J60: 0.0006341028438 | K60: 0.0008694285489 | L60: 0.00117973426 | M60: 0.001584202105 | N60: 0.002105295582 | O60: 0.002768800544 | P60: 0.003603681193 | Q60: 0.004641700919 | R60: 0.005916761231 | S60: 0.007463920979 | T60: 0.009318073269 | U60: 0.01151227906 | V60: 0.01407578403 | W60: 0.01703177772 | X60: 0.02039498852 | Y60: 0.02416924305 | Z60: 0.02834514821 | AA60: 0.03289807712 | AB60: 0.03778665041 | AC60: 0.04295189964 | AD60: 0.04831727754 | AE60: 0.05378963962 | AF60: 0.05926126429 | AG60: 0.06461290831 | AH60: 0.06971781472 | AI60: 0.07444650967 | AJ60: 0.07867214941 | AK60: 0.08227611744 | AL60: 0.08515353119 | AM60: 0.08721830336 | AN60: 0.08840741768 | AO60: 0.08868412298 | AP60: 0.0880398198 | AQ60: 0.08649450419 | AR60: 0.08409573704 | AS60: 0.08091621283 | AT60: 0.0770501013 | AU60: 0.0726084188 | AV60: 0.06771374652 | AW60: 0.06249464521 | AX60: 0.05708011895 | AY60: 0.05159445522 | AZ60: 0.04615271903 | BA60: 0.04085711077 | BB60: 0.03579431958 | BC60: 0.03103392238 | BD60: 0.02662780249 | BE60: 0.0226104957 | BF60: 0.01900032105 | BG60: 0.01580112084 | BH60: 0.01300441883 | BI60: 0.01059180805 | BJ60: 0.008537394576 | BK60: 0.006810150432 | BL60: 0.005376060605 | BM60: 0.004199984675 | BN60: 0.003247187412 | BO60: 0.002484523465 | BP60: 0.001881286547 | BQ60: 0.001409752574 | BR60: 0.001045458846 | BS60: 0.0007672680014 | BT60: 0.0005572670056 | BU60: 0.0004005490198 | BV60: 0.0002849207739 | BW60: 0.0002005712387 | BX60: 0.0001397298835 | BY60: 9.633542919e-05 | BZ60: 6.572928003e-05 | CA60: 4.438209647e-05 | CB60: 2.965738466e-05 | CC60: 1.96125465e-05 | CD60: 1.283545361e-05 | CE60: 8.313129692e-06
B61: -1 | C61: =(1/(2*PI()*SQRT(1-rho^2)))*EXP(-(1/(2*(1-rho^2)))*($B61^2+C$30^2-2*rho*$B61*C$30)) -> 5.336799147e-05 | D61: 7.887277849e-05 | E61: 0.000115358479 | F61: 0.0001669736734 | G61: 0.0002391787441 | H61: 0.0003390574252 | I61: 0.0004756637302 | J61: 0.0006603936889 | K61: 0.0009073647224 | L61: 0.00123377784 | M61: =(1/(2*PI()*SQRT(1-rho^2)))*EXP(-(1/(2*(1-rho^2)))*($B61^2+M$30^2-2*rho*$B61*M$30)) -> 0.001660229551 | N61: 0.002210932141 | O61: 0.002913793605 | P61: 0.003800303289 | Q61: 0.004905167346 | R61: 0.006265640868 | S61: 0.007920512208 | T61: 0.009908710411 | U61: 0.01226752929 | V61: 0.01503049108 | W61: =(1/(2*PI()*SQRT(1-rho^2)))*EXP(-(1/(2*(1-rho^2)))*($B61^2+W$30^2-2*rho*$B61*W$30)) -> 0.01822490763 | X61: 0.02186923548 | Y61: 0.02597035971 | Z61: 0.03052097676 | AA61: 0.035497273 | AB61: 0.04085711077 | AC61: 0.04653893201 | AD61: 0.05246156869 | AE61: 0.05852510904 | AF61: 0.06461290831 | AG61: =(1/(2*PI()*SQRT(1-rho^2)))*EXP(-(1/(2*(1-rho^2)))*($B61^2+AG$30^2-2*rho*$B61*AG$30)) -> 0.07059475687 | AH61: 0.07633113203 | AI61: 0.08167836935 | AJ61: 0.08649450419 | AK61: 0.09064546211 | AL61: 0.09401122686 | AM61: 0.09649159214 | AN61: 0.09801111362 | AO61: 0.09852291984 | AP61: 0.09801111362 | AQ61: =(1/(2*PI()*SQRT(1-rho^2)))*EXP(-(1/(2*(1-rho^2)))*($B61^2+AQ$30^2-2*rho*$B61*AQ$30)) -> 0.09649159214 | AR61: 0.09401122686 | AS61: 0.09064546211 | AT61: 0.08649450419 | AU61: 0.08167836935 | AV61: 0.07633113203 | AW61: 0.07059475687 | AX61: 0.06461290831 | AY61: 0.05852510904 | AZ61: 0.05246156869 | BA61: =(1/(2*PI()*SQRT(1-rho^2)))*EXP(-(1/(2*(1-rho^2)))*($B61^2+BA$30^2-2*rho*$B61*BA$30)) -> 0.04653893201 | BB61: 0.04085711077 | BC61: 0.035497273 | BD61: 0.03052097676 | BE61: 0.02597035971 | BF61: 0.02186923548 | BG61: 0.01822490763 | BH61: 0.01503049108 | BI61: 0.01226752929 | BJ61: 0.009908710411 | BK61: =(1/(2*PI()*SQRT(1-rho^2)))*EXP(-(1/(2*(1-rho^2)))*($B61^2+BK$30^2-2*rho*$B61*BK$30)) -> 0.007920512208 | BL61: 0.006265640868 | BM61: 0.004905167346 | BN61: 0.003800303289 | BO61: 0.002913793605 | BP61: 0.002210932141 | BQ61: 0.001660229551 | BR61: 0.00123377784 | BS61: 0.0009073647224 | BT61: 0.0006603936889 | BU61: =(1/(2*PI()*SQRT(1-rho^2)))*EXP(-(1/(2*(1-rho^2)))*($B61^2+BU$30^2-2*rho*$B61*BU$30)) -> 0.0004756637302 | BV61: 0.0003390574252 | BW61: 0.0002391787441 | BX61: 0.0001669736734 | BY61: 0.000115358479 | BZ61: 7.887277849e-05 | CA61: 5.336799147e-05 | CB61: 3.573638969e-05 | CC61: 2.368190266e-05 | CD61: 1.553097094e-05 | CE61: 1.007991156e-05
B62: -0.9 | C62: 5.420841504e-05 | D62: 8.028192392e-05 | E62: 0.0001176643589 | F62: 0.0001706664651 | G62: 0.0002449782641 | H62: 0.0003480030192 | I62: 0.0004892316775 | J62: 0.0006806474577 | K62: 0.0009371432532 | L62: 0.001276926319 | M62: 0.001721875683 | N62: 0.002297808578 | O62: 0.003034603813 | P62: 0.003966123661 | Q62: 0.005129872866 | R62: 0.006566335252 | S62: 0.008317936522 | T62: 0.01042759728 | U62: 0.01293686356 | V62: 0.01588363303 | W62: 0.01929953257 | X62: 0.02320704454 | Y62: 0.02761652181 | Z62: 0.03252327141 | AA62: 0.03790491839 | AB62: 0.04371928066 | AC62: 0.04990298779 | AD62: 0.05637105832 | AE62: 0.06301760992 | AF62: 0.06971781472 | AG62: 0.07633113203 | AH62: 0.08270575677 | AI62: 0.08868412298 | AJ62: 0.09410920624 | AK62: 0.09883128553 | AL62: 0.1027147652 | AM62: 0.105644626 | AN62: 0.1075320787 | AO62: 0.1083190324 | AP62: 0.1079810638 | AQ62: 0.1065286763 | AR62: 0.1040067579 | AS62: 0.1004922768 | AT62: 0.09609038028 | AU62: 0.09092917225 | AV62: 0.08515353119 | AW62: 0.07891838442 | AX62: 0.07238187165 | AY62: 0.06569881419 | AZ62: 0.05901485606 | BA62: 0.05246156869 | BB62: 0.04615271903 | BC62: 0.04018180213 | BD62: 0.0346208422 | BE62: 0.02952038012 | BF62: 0.02491049523 | BG62: 0.02080266028 | BH62: 0.01719220144 | BI62: 0.01406112939 | BJ62: 0.01138112039 | BK62: 0.00911645367 | BL62: 0.007226748487 | BM62: 0.005669386305 | BN62: 0.004401546148 | BO62: 0.003381820621 | BP62: 0.002571413831 | BQ62: 0.00193494882 | BR62: 0.001440930679 | BS62: 0.001061922428 | BT62: 0.0007744949624 | BU62: 0.0005590111889 | BV62: 0.0003992992579 | BW62: 0.0002822621236 | BX62: 0.0001974616699 | BY62: 0.0001367064813 | BZ62: 9.366374195e-05 | CA62: 6.350822905e-05 | CB62: 4.261520675e-05 | CC62: 2.829927414e-05 | CD62: 1.859782222e-05 | CE62: 1.209553233e-05
B63: -0.8 | C63: 5.449148706e-05 | D63: 8.086945238e-05 | E63: 0.0001187726493 | F63: 0.000172633265 | G63: 0.0002483182415 | H63: 0.0003534832693 | I63: 0.0004979723178 | J63: 0.0006942527973 | K63: 0.0009578691246 | L63: 0.001307888768 | M63: 0.001767305157 | N63: 0.002363351826 | O63: 0.003127672788 | P63: 0.004096286684 | Q63: 0.005309278108 | R63: 0.006810150432 | S63: 0.00864478178 | T63: 0.01085994094 | U63: 0.01350134365 | V63: 0.01661126163 | W63: 0.02022573648 | X63: 0.02437149496 | Y63: 0.02906270905 | Z63: 0.03429778849 | AA63: 0.04005643 | AB63: 0.04629717187 | AC63: 0.05295570855 | AD63: 0.05994420482 | AE63: 0.06715180995 | AF63: 0.07444650967 | AG63: 0.08167836935 | AH63: 0.08868412298 | AI63: 0.09529295433 | AJ63: 0.1013332114 | AK63: 0.1066397015 | AL63: 0.1110611418 | AM63: 0.114467302 | AN63: 0.1167553683 | AO63: 0.1178550968 | AP63: 0.117732395 | AQ63: 0.1163910773 | AR63: 0.113872668 | AS63: 0.1102542663 | AT63: 0.105644626 | AU63: 0.1001787286 | AV63: 0.09401122686 | AW63: 0.0873092031 | AX63: 0.08024471286 | AY63: 0.07298757417 | AZ63: 0.06569881419 | BA63: 0.05852510904 | BB63: 0.05159445522 | BC63: 0.04501320434 | BD63: 0.03886448597 | BE63: 0.03320794684 | BF63: 0.0280806542 | BG63: 0.02349895322 | BH63: 0.019461034 | BI63: 0.0159499529 | BJ63: 0.01293686356 | BK63: 0.01038423935 | BL63: 0.0082489084 | BM63: 0.006484766925 | BN63: 0.005045083526 | BO63: 0.003884350842 | BP63: 0.002959679178 | BQ63: 0.002231757094 | BR63: 0.001665425883 | BS63: 0.001229928302 | BT63: 0.0008988979282 | BU63: 0.0006501552337 | BV63: 0.0004653715671 | BW63: 0.0003296542866 | BX63: 0.000231096681 | BY63: 0.0001603263067 | BZ63: 0.0001100758297 | CA63: 7.479201706e-05 | CB63: 5.029150396e-05 | CC63: 3.346648495e-05 | CD63: 2.203949686e-05 | CE63: 1.436380004e-05
B64: -0.7 | C64: 5.420841504e-05 | D64: 8.06171298e-05 | E64: 0.0001186489922 | F64: 0.000172813185 | G64: 0.0002490954498 | H64: 0.0003553291307 | I64: 0.0005016166364 | J64: 0.000700792022 | K64: 0.0009689078301 | L64: 0.001325720223 | M64: 0.001795136164 | N64: 0.0024055756 | O64: 0.003190191277 | P64: 0.004186880209 | Q64: 0.005438015572 | R64: 0.006989827491 | S64: 0.008891367627 | T64: 0.01119300702 | U64: 0.0139444402 | V64: 0.01719220144 | W64: 0.02097674011 | X64: 0.02532914924 | Y64: 0.03026769211 | Z64: 0.03579431958 | AA64: 0.04189141346 | AB64: 0.04851901954 | AC64: 0.05561284556 | AD64: 0.06308328746 | AE64: 0.07081571055 | AF64: 0.07867214941 | AG64: 0.08649450419 | AH64: 0.09410920624 | AI64: 0.1013332114 | AJ64: 0.1079810638 | AK64: 0.113872668 | AL64: 0.1188413262 | AM64: 0.122741544 | AN64: 0.1254560975 | AO64: 0.1269018826 | AP64: 0.1270341409 | AQ64: 0.125848761 | AR64: 0.1233824906 | AS64: 0.1197110445 | AT64: 0.1149452441 | AU64: 0.1092254626 | AV64: 0.1027147652 | AW64: 0.0955912106 | AX64: 0.0880398198 | AY64: 0.08024471286 | AZ64: 0.07238187165 | BA64: 0.06461290831 | BB64: 0.05708011895 | BC64: 0.04990298779 | BD64: 0.04317619103 | BE64: 0.03696904262 | BF64: 0.03132623347 | BG64: 0.02626964815 | BH64: 0.02180100079 | BI64: 0.01790501563 | BJ64: 0.01455288433 | BK64: 0.01170575822 | BL64: 0.009318073269 | BM64: 0.007340553216 | BN64: 0.005722786725 | BO64: 0.004415322494 | BP64: 0.003371268927 | BQ64: 0.002547419476 | BR64: 0.001904950219 | BS64: 0.001409752574 | BT64: 0.001032471948 | BU64: 0.000748324087 | BV64: 0.000536756469 | BW64: 0.0003810140136 | BX64: 0.0002676582969 | BY64: 0.0001860786602 | BZ64: 0.0001280231562 | CA64: 8.716790101e-05 | CB64: 5.873551026e-05 | CC64: 3.916706267e-05 | CD64: 2.584742946e-05 | CE64: 1.688067521e-05
B65: -0.6 | C65: 5.336799147e-05 | D65: 7.95327979e-05 | E65: 0.0001172972317 | F65: 0.000171200632 | G65: 0.0002472857347 | H65: 0.0003534832693 | I65: 0.0005000515312 | J65: 0.0007000624104 | K65: 0.000969917635 | L65: 0.001329869579 | M65: 0.001804510222 | N65: 0.002423180362 | O65: 0.003220239953 | P65: 0.004235130786 | Q65: 0.005512156228 | R65: 0.007099901257 | S65: 0.009050221294 | T65: 0.01141674202 | U65: 0.0142528356 | V65: 0.01760907175 | W65: 0.02153018441 | X65: 0.02605164402 | Y65: 0.03119597905 | Z65: 0.03696904262 | AA65: 0.04335646714 | AB65: 0.05032058359 | AC65: 0.05779809846 | AD65: 0.06569881419 | AE65: 0.07390564484 | AF65: 0.08227611744 | AG65: 0.09064546211 | AH65: 0.09883128553 | AI65: 0.1066397015 | AJ65: 0.113872668 | AK65: 0.120336166 | AL65: 0.125848761 | AM65: 0.1302500255 | AN65: 0.1334082812 | AO65: 0.1352271391 | AP65: 0.1356503849 | AQ65: 0.1346648649 | AR65: 0.132301165 | AS65: 0.1286320337 | AT65: 0.1237686639 | AU65: 0.1178550968 | AV65: 0.1110611418 | AW65: 0.103574298 | AX65: 0.0955912106 | AY65: 0.0873092031 | AZ65: 0.07891838442 | BA65: 0.07059475687 | BB65: 0.06249464521 | BC65: 0.05475064831 | BD65: 0.04746919036 | BE65: 0.04072963159 | BF65: 0.0345847976 | BG65: 0.02906270905 | BH65: 0.02416924305 | BI65: 0.01989143446 | BJ65: 0.01620112811 | BK65: 0.01305871695 | BL65: 0.01041674086 | BM65: 0.008223170798 | BN65: 0.006424256322 | BO65: 0.004966866756 | BP65: 0.003800303289 | BQ65: 0.002877597879 | BR65: 0.002156344032 | BS65: 0.001599123836 | BT65: 0.001173605784 | BU65: 0.000852390273 | BV65: 0.0006126759433 | BW65: 0.0004358120862 | BX65: 0.0003067918452 | BY65: 0.0002137294912 | BZ65: 0.0001473537496 | CA65: 0.000100538877 | CB65: 6.788642957e-05 | CC65: 4.536365145e-05 | CD65: 2.999916323e-05 | CE65: 1.963298688e-05
B66: -0.5 | C66: 5.19961402e-05 | D66: 7.76499694e-05 | E66: 0.0001147592155 | F66: 0.0001678455966 | G66: 0.0002429452612 | H66: 0.0003480030192 | I66: 0.0004933256427 | J66: 0.0006920866437 | K66: 0.0009608671476 | L66: 0.001320207881 | M66: 0.001795136164 | N66: 0.002415619743 | O66: 0.003216887283 | P66: 0.004239544679 | Q66: 0.005529408659 | R66: 0.007136976375 | S66: 0.00911645367 | T66: 0.01152427726 | U66: 0.01441708858 | V66: 0.01784914979 | W66: 0.02186923548 | X66: 0.02651708414 | Y66: 0.03181954986 | Z66: 0.03778665041 | AA66: 0.04440775915 | AB66: 0.05164822745 | AC66: 0.0594467454 | AD66: 0.06771374652 | AE66: 0.07633113203 | AF66: 0.08515353119 | AG66: 0.09401122686 | AH66: 0.1027147652 | AI66: 0.1110611418 | AJ66: 0.1188413262 | AK66: 0.125848761 | AL66: 0.1318883691 | AM66: 0.136785528 | AN66: 0.1403944382 | AO66: 0.1426053289 | AP66: 0.1433500025 | AQ66: 0.1426053289 | AR66: 0.1403944382 | AS66: 0.136785528 | AT66: 0.1318883691 | AU66: 0.125848761 | AV66: 0.1188413262 | AW66: 0.1110611418 | AX66: 0.1027147652 | AY66: 0.09401122686 | AZ66: 0.08515353119 | BA66: 0.07633113203 | BB66: 0.06771374652 | BC66: 0.0594467454 | BD66: 0.05164822745 | BE66: 0.04440775915 | BF66: 0.03778665041 | BG66: 0.03181954986 | BH66: 0.02651708414 | BI66: 0.02186923548 | BJ66: 0.01784914979 | BK66: 0.01441708858 | BL66: 0.01152427726 | BM66: 0.00911645367 | BN66: 0.007136976375 | BO66: 0.005529408659 | BP66: 0.004239544679 | BQ66: 0.003216887283 | BR66: 0.002415619743 | BS66: 0.001795136164 | BT66: 0.001320207881 | BU66: 0.0009608671476 | BV66: 0.0006920866437 | BW66: 0.0004933256427 | BX66: 0.0003480030192 | BY66: 0.0002429452612 | BZ66: 0.0001678455966 | CA66: 0.0001147592155 | CB66: 7.76499694e-05 | CC66: 5.19961402e-05 | CD66: 3.445696505e-05 | CE66: 2.259742938e-05
B67: -0.4 | C67: 5.013458832e-05 | D67: 7.502610769e-05 | E67: 0.000111112643 | F67: 0.0001628510787 | G67: 0.000236207618 | H67: 0.0003390574252 | I67: 0.0004816468434 | J67: 0.0006771116347 | K67: 0.0009420369405 | L67: 0.001297034982 | M67: 0.001767305157 | N67: 0.002383128713 | O67: 0.00318023749 | P67: 0.004199984675 | Q67: 0.005489236692 | R67: 0.007099901257 | S67: 0.00908800922 | T67: 0.01151227906 | U67: 0.0144321142 | V67: 0.01790501563 | W67: 0.02198343488 | X67: 0.02671114453 | Y67: 0.03211926084 | Z67: 0.03822211252 | AA67: 0.04501320434 | AB67: 0.05246156869 | AC67: 0.06050882425 | AD67: 0.06906726443 | AE67: 0.07801927227 | AF67: 0.08721830336 | AG67: 0.09649159214 | AH67: 0.105644626 | AI67: 0.114467302 | AJ67: 0.122741544 | AK67: 0.1302500255 | AL67: 0.136785528 | AM67: 0.1421603828 | AN67: 0.1462153999 | AO67: 0.1488276924 | AP67: 0.1499168604 | AQ67: 0.1494491015 | AR67: 0.1474389527 | AS67: 0.1439485403 | AT67: 0.1390843907 | AU67: 0.1329920311 | AV67: 0.125848761 | AW67: 0.1178550968 | AX67: 0.1092254626 | AY67: 0.1001787286 | AZ67: 0.09092917225 | BA67: 0.08167836935 | BB67: 0.0726084188 | BC67: 0.06387677754 | BD67: 0.05561284556 | BE67: 0.0479163066 | BF67: 0.04085711077 | BG67: 0.0344768888 | BH67: 0.02879151934 | BI67: 0.02379453367 | BJ67: 0.019461034 | BK67: 0.01575181941 | BL67: 0.01261745126 | BM67: 0.01000204138 | BN67: 0.007846604391 | BO67: 0.006091874759 | BP67: 0.004680543379 | BQ67: 0.003558915546 | BR67: 0.002678028465 | BS67: 0.001994292219 | BT67: 0.001469733184 | BU67: 0.001071924763 | BV67: 0.0007736886168 | BW67: 0.0005526424098 | BX67: 0.0003906594292 | BY67: 0.0002732930025 | BZ67: 0.0001892059597 | CA67: 0.0001296334893 | CB67: 8.789733527e-05 | CC67: 5.898075212e-05 | CD67: 3.916706267e-05 | CE67: 2.57399559e-05
B68: -0.3 | C68: 4.783875837e-05 | D68: 7.173971424e-05 | E68: 0.0001064671147 | F68: 0.0001563678361 | G68: 0.0002272769888 | H68: 0.0003269185821 | I68: 0.0004653715671 | J68: 0.0006555958317 | K68: 0.0009140051038 | L68: 0.001261064085 | M68: 0.001721875683 | N68: 0.002326711452 | O68: 0.003111425174 | P68: 0.004117677167 | Q68: 0.005392887073 | R68: 0.006989827491 | S68: 0.008965771945 | T68: 0.01138112039 | U68: 0.01429744538 | V68: 0.01777493306 | W68: 0.02186923548 | X68: 0.02662780249 | Y68: 0.0320858207 | Z68: 0.03826194796 | AA68: 0.04515409062 | AB68: 0.05273551881 | AC68: 0.06095164693 | AD68: 0.06971781472 | AE68: 0.07891838442 | AF68: 0.08840741768 | AG68: 0.09801111362 | AH68: 0.1075320787 | AI68: 0.1167553683 | AJ68: 0.1254560975 | AK68: 0.1334082812 | AL68: 0.1403944382 | AM68: 0.1462153999 | AN68: 0.1506997143 | AO68: 0.1537120238 | AP68: 0.1551598501 | AQ68: 0.1549983094 | AR68: 0.1532324235 | AS68: 0.1499168604 | AT68: 0.1451531236 | AU68: 0.1390843907 | AV68: 0.1318883691 | AW68: 0.1237686639 | AX68: 0.1149452441 | AY68: 0.105644626 | AZ68: 0.09609038028 | BA68: 0.08649450419 | BB68: 0.0770501013 | BC68: 0.06792568296 | BD68: 0.05926126429 | BE68: 0.05116628794 | BF68: 0.04371928066 | BG68: 0.03696904262 | BH68: 0.03093709275 | BI68: 0.02562104822 | BJ68: 0.02099860226 | BK68: 0.01703177772 | BL68: 0.01367116964 | BM68: 0.01085994094 | BN68: 0.008537394576 | BO68: 0.006642007219 | BP68: 0.005113867036 | BQ68: 0.003896508425 | BR68: 0.002938176673 | BS68: 0.002192584262 | BT68: 0.001619238337 | BU68: 0.001183426696 | BV68: 0.0008559493086 | BW68: 0.0006126759433 | BX68: 0.0004339999803 | BY68: 0.0003042458694 | BZ68: 0.0002110745008 | CA68: 0.0001449182063 | CB68: 9.846598469e-05 | CC68: 6.621030765e-05 | CD68: 4.405965402e-05 | CE68: 2.901567367e-05
B69: -0.2 | C69: 4.517502947e-05 | D69: 6.788642957e-05 | E69: 0.000100958663 | F69: 0.0001485868282 | G69: 0.0002164178772 | H69: 0.0003119478903 | I69: 0.0004449867422 | J69: 0.0006281859086 | K69: 0.0008776177685 | L69: 0.001213385286 | M69: 0.001660229551 | N69: 0.002248089797 | O69: 0.00301255697 | P69: 0.003995149005 | Q69: 0.005243325196 | R69: 0.006810150432 | S69: 0.008753519749 | T69: 0.01113486166 | U69: 0.01401725695 | V69: 0.01746293922 | W69: 0.02153018441 | X69: 0.02626964815 | Y69: 0.03172026898 | Z69: 0.03790491839 | AA69: 0.04482603952 | AB69: 0.05246156869 | AC69: 0.06076147034 | AD69: 0.06964522981 | AE69: 0.0790006339 | AF69: 0.08868412298 | AG69: 0.09852291984 | AH69: 0.1083190324 | AI69: 0.1178550968 | AJ69: 0.1269018826 | AK69: 0.1352271391 | AL69: 0.1426053289 | AM69: 0.1488276924 | AN69: 0.1537120238 | AO69: 0.1571115208 | AP69: 0.1589221103 | AQ69: 0.1590877404 | AR69: 0.1576032622 | AS69: 0.1545146957 | AT69: 0.1499168604 | AU69: 0.1439485403 | AV69: 0.136785528 | AW69: 0.1286320337 | AX69: 0.1197110445 | AY69: 0.1102542663 | AZ69: 0.1004922768 | BA69: 0.09064546211 | BB69: 0.08091621283 | BC69: 0.0714827296 | BD69: 0.06249464521 | BE69: 0.05407052483 | BF69: 0.04629717187 | BG69: 0.03923055379 | BH69: 0.03289807712 | BI69: 0.02730188852 | BJ69: 0.02242285781 | BK69: 0.01822490763 | BL69: 0.01465938693 | BM69: 0.01166923483 | BN69: 0.009192741542 | BO69: 0.007166775816 | BP69: 0.005529408659 | BQ69: 0.00422191666 | BR69: 0.003190191277 | BS69: 0.002385612433 | BT69: 0.001765465173 | BU69: 0.001292988074 | BV69: 0.0009371432532 | BW69: 0.0006721923192 | BX69: 0.0004771525044 | BY69: 0.0003351945654 | BZ69: 0.0002330305332 | CA69: 0.0001603263067 | CB69: 0.0001091623426 | CC69: 7.355581375e-05 | CD69: 4.90498023e-05 | CE69: 3.236932307e-05
B70: -0.1 | C70: 4.221755608e-05 | D70: 6.357441792e-05 | E70: 9.47431446e-05 | F70: 0.0001397298835 | G70: 0.0002039421052 | H70: 0.0002945781959 | I70: 0.0004210856072 | J70: 0.0005956844946 | K70: 0.0008339466978 | L70: 0.001155410713 | M70: 0.001584202105 | N70: 0.002149615975 | O70: 0.002886604438 | P70: 0.003836098661 | Q70: 0.005045083526 | R70: 0.006566335252 | S70: 0.008457730511 | T70: 0.01078104188 | U70: 0.01360015074 | V70: 0.01697863649 | W70: 0.02097674011 | X70: 0.02564775072 | Y70: 0.03103392238 | Z70: 0.03716209201 | AA70: 0.04403923215 | AB70: 0.05164822745 | AC70: 0.05994420482 | AD70: 0.06885176612 | AE70: 0.07826346384 | AF70: 0.0880398198 | AG70: 0.09801111362 | AH70: 0.1079810638 | AI70: 0.117732395 | AJ70: 0.1270341409 | AK70: 0.1356503849 | AL70: 0.1433500025 | AM70: 0.1499168604 | AN70: 0.1551598501 | AO70: 0.1589221103 | AP70: 0.1610888178 | AQ70: 0.1615930078 | AR70: 0.1604190108 | AS70: 0.1576032622 | AT70: 0.1532324235 | AU70: 0.1474389527 | AV70: 0.1403944382 | AW70: 0.132301165 | AX70: 0.1233824906 | AY70: 0.113872668 | AZ70: 0.1040067579 | BA70: 0.09401122686 | BB70: 0.08409573704 | BC70: 0.07444650967 | BD70: 0.06522150265 | BE70: 0.05654749342 | BF70: 0.04851901954 | BG70: 0.0411990093 | BH70: 0.0346208422 | BI70: 0.02879151934 | BJ70: 0.02369559604 | BK70: 0.01929953257 | BL70: 0.01555614716 | BM70: 0.01240890314 | BN70: 0.009795821101 | BO70: 0.007652871038 | BP70: 0.005916761231 | BQ70: 0.004527096915 | BR70: 0.003427927587 | BS70: 0.00256873667 | BT70: 0.001904950219 | BU70: 0.00139805345 | BV70: 0.001015406688 | BW70: 0.0007298478994 | BX70: 0.0005191594988 | BY70: 0.0003654646248 | BZ70: 0.0002546044477 | CA70: 0.0001755345967 | CB70: 0.0001197665569 | CC70: 8.086945238e-05 | CD70: 5.403927816e-05 | CE70: 3.573638969e-05
B71: 0 | C71: =(1/(2*PI()*SQRT(1-rho^2)))*EXP(-(1/(2*(1-rho^2)))*($B71^2+C$30^2-2*rho*$B71*C$30)) -> 3.904485664e-05 | D71: 5.891934583e-05 | E71: 8.79889427e-05 | F71: 0.0001300392276 | G71: 0.0001901939781 | H71: 0.0002752930469 | I71: 0.0003943390828 | J71: 0.0005590111889 | K71: 0.0007842369097 | L71: 0.001088805122 | M71: =(1/(2*PI()*SQRT(1-rho^2)))*EXP(-(1/(2*(1-rho^2)))*($B71^2+M$30^2-2*rho*$B71*M$30)) -> 0.001495991518 | N71: 0.002034155767 | O71: 0.002737255775 | P71: 0.003645210849 | Q71: 0.004804033495 | R71: 0.006265640868 | S71: 0.008087253739 | T71: 0.01033029537 | U71: 0.01305871695 | V71: 0.01633670162 | W71: =(1/(2*PI()*SQRT(1-rho^2)))*EXP(-(1/(2*(1-rho^2)))*($B71^2+W$30^2-2*rho*$B71*W$30)) -> 0.02022573648 | X71: 0.02478109035 | Y71: 0.03004779287 | Z71: 0.03605627371 | AA71: 0.04281788446 | AB71: 0.05032058359 | AC71: 0.05852510904 | AD71: 0.06736198759 | AE71: 0.07672972712 | AF71: 0.08649450419 | AG71: =(1/(2*PI()*SQRT(1-rho^2)))*EXP(-(1/(2*(1-rho^2)))*($B71^2+AG$30^2-2*rho*$B71*AG$30)) -> 0.09649159214 | AH71: 0.1065286763 | AI71: 0.1163910773 | AJ71: 0.125848761 | AK71: 0.1346648649 | AL71: 0.1426053289 | AM71: 0.1494491015 | AN71: 0.1549983094 | AO71: 0.1590877404 | AP71: 0.1615930078 | AQ71: =(1/(2*PI()*SQRT(1-rho^2)))*EXP(-(1/(2*(1-rho^2)))*($B71^2+AQ$30^2-2*rho*$B71*AQ$30)) -> 0.1624368336 | AR71: 0.1615930078 | AS71: 0.1590877404 | AT71: 0.1549983094 | AU71: 0.1494491015 | AV71: 0.1426053289 | AW71: 0.1346648649 | AX71: 0.125848761 | AY71: 0.1163910773 | AZ71: 0.1065286763 | BA71: =(1/(2*PI()*SQRT(1-rho^2)))*EXP(-(1/(2*(1-rho^2)))*($B71^2+BA$30^2-2*rho*$B71*BA$30)) -> 0.09649159214 | BB71: 0.08649450419 | BC71: 0.07672972712 | BD71: 0.06736198759 | BE71: 0.05852510904 | BF71: 0.05032058359 | BG71: 0.04281788446 | BH71: 0.03605627371 | BI71: 0.03004779287 | BJ71: 0.02478109035 | BK71: =(1/(2*PI()*SQRT(1-rho^2)))*EXP(-(1/(2*(1-rho^2)))*($B71^2+BK$30^2-2*rho*$B71*BK$30)) -> 0.02022573648 | BL71: 0.01633670162 | BM71: 0.01305871695 | BN71: 0.01033029537 | BO71: 0.008087253739 | BP71: 0.006265640868 | BQ71: 0.004804033495 | BR71: 0.003645210849 | BS71: 0.002737255775 | BT71: 0.002034155767 | BU71: =(1/(2*PI()*SQRT(1-rho^2)))*EXP(-(1/(2*(1-rho^2)))*($B71^2+BU$30^2-2*rho*$B71*BU$30)) -> 0.001495991518 | BV71: 0.001088805122 | BW71: 0.0007842369097 | BX71: 0.0005590111889 | BY71: 0.0003943390828 | BZ71: 0.0002752930469 | CA71: 0.0001901939781 | CB71: 0.0001300392276 | CC71: 8.79889427e-05 | CD71: 5.891934583e-05 | CE71: 3.904485664e-05
B72: 0.1 | C72: 3.573638969e-05 | D72: 5.403927816e-05 | E72: 8.086945238e-05 | F72: 0.0001197665569 | G72: 0.0001755345967 | H72: 0.0002546044477 | I72: 0.0003654646248 | J72: 0.0005191594988 | K72: 0.0007298478994 | L72: 0.001015406688 | M72: 0.00139805345 | N72: 0.001904950219 | O72: 0.00256873667 | P72: 0.003427927587 | Q72: 0.004527096915 | R72: 0.005916761231 | S72: 0.007652871038 | T72: 0.009795821101 | U72: 0.01240890314 | V72: 0.01555614716 | W72: 0.01929953257 | X72: 0.02369559604 | Y72: 0.02879151934 | Z72: 0.0346208422 | AA72: 0.0411990093 | AB72: 0.04851901954 | AC72: 0.05654749342 | AD72: 0.06522150265 | AE72: 0.07444650967 | AF72: 0.08409573704 | AG72: 0.09401122686 | AH72: 0.1040067579 | AI72: 0.113872668 | AJ72: 0.1233824906 | AK72: 0.132301165 | AL72: 0.1403944382 | AM72: 0.1474389527 | AN72: 0.1532324235 | AO72: 0.1576032622 | AP72: 0.1604190108 | AQ72: 0.1615930078 | AR72: 0.1610888178 | AS72: 0.1589221103 | AT72: 0.1551598501 | AU72: 0.1499168604 | AV72: 0.1433500025 | AW72: 0.1356503849 | AX72: 0.1270341409 | AY72: 0.117732395 | AZ72: 0.1079810638 | BA72: 0.09801111362 | BB72: 0.0880398198 | BC72: 0.07826346384 | BD72: 0.06885176612 | BE72: 0.05994420482 | BF72: 0.05164822745 | BG72: 0.04403923215 | BH72: 0.03716209201 | BI72: 0.03103392238 | BJ72: 0.02564775072 | BK72: 0.02097674011 | BL72: 0.01697863649 | BM72: 0.01360015074 | BN72: 0.01078104188 | BO72: 0.008457730511 | BP72: 0.006566335252 | BQ72: 0.005045083526 | BR72: 0.003836098661 | BS72: 0.002886604438 | BT72: 0.002149615975 | BU72: 0.001584202105 | BV72: 0.001155410713 | BW72: 0.0008339466978 | BX72: 0.0005956844946 | BY72: 0.0004210856072 | BZ72: 0.0002945781959 | CA72: 0.0002039421052 | CB72: 0.0001397298835 | CC72: 9.47431446e-05 | CD72: 6.357441792e-05 | CE72: 4.221755608e-05
B73: 0.2 | C73: 3.236932307e-05 | D73: 4.90498023e-05 | E73: 7.355581375e-05 | F73: 0.0001091623426 | G73: 0.0001603263067 | H73: 0.0002330305332 | I73: 0.0003351945654 | J73: 0.0004771525044 | K73: 0.0006721923192 | L73: 0.0009371432532 | M73: 0.001292988074 | N73: 0.001765465173 | O73: 0.002385612433 | P73: 0.003190191277 | Q73: 0.00422191666 | R73: 0.005529408659 | S73: 0.007166775816 | T73: 0.009192741542 | U73: 0.01166923483 | V73: 0.01465938693 | W73: 0.01822490763 | X73: 0.02242285781 | Y73: 0.02730188852 | Z73: 0.03289807712 | AA73: 0.03923055379 | AB73: 0.04629717187 | AC73: 0.05407052483 | AD73: 0.06249464521 | AE73: 0.0714827296 | AF73: 0.08091621283 | AG73: 0.09064546211 | AH73: 0.1004922768 | AI73: 0.1102542663 | AJ73: 0.1197110445 | AK73: 0.1286320337 | AL73: 0.136785528 | AM73: 0.1439485403 | AN73: 0.1499168604 | AO73: 0.1545146957 | AP73: 0.1576032622 | AQ73: 0.1590877404 | AR73: 0.1589221103 | AS73: 0.1571115208 | AT73: 0.1537120238 | AU73: 0.1488276924 | AV73: 0.1426053289 | AW73: 0.1352271391 | AX73: 0.1269018826 | AY73: 0.1178550968 | AZ73: 0.1083190324 | BA73: 0.09852291984 | BB73: 0.08868412298 | BC73: 0.0790006339 | BD73: 0.06964522981 | BE73: 0.06076147034 | BF73: 0.05246156869 | BG73: 0.04482603952 | BH73: 0.03790491839 | BI73: 0.03172026898 | BJ73: 0.02626964815 | BK73: 0.02153018441 | BL73: 0.01746293922 | BM73: 0.01401725695 | BN73: 0.01113486166 | BO73: 0.008753519749 | BP73: 0.006810150432 | BQ73: 0.005243325196 | BR73: 0.003995149005 | BS73: 0.00301255697 | BT73: 0.002248089797 | BU73: 0.001660229551 | BV73: 0.001213385286 | BW73: 0.0008776177685 | BX73: 0.0006281859086 | BY73: 0.0004449867422 | BZ73: 0.0003119478903 | CA73: 0.0002164178772 | CB73: 0.0001485868282 | CC73: 0.000100958663 | CD73: 6.788642957e-05 | CE73: 4.517502947e-05
B74: 0.3 | C74: 2.901567367e-05 | D74: 4.405965402e-05 | E74: 6.621030765e-05 | F74: 9.846598469e-05 | G74: 0.0001449182063 | H74: 0.0002110745008 | I74: 0.0003042458694 | J74: 0.0004339999803 | K74: 0.0006126759433 | L74: 0.0008559493086 | M74: 0.001183426696 | N74: 0.001619238337 | O74: 0.002192584262 | P74: 0.002938176673 | Q74: 0.003896508425 | R74: 0.005113867036 | S74: 0.006642007219 | T74: 0.008537394576 | U74: 0.01085994094 | V74: 0.01367116964 | W74: 0.01703177772 | X74: 0.02099860226 | Y74: 0.02562104822 | Z74: 0.03093709275 | AA74: 0.03696904262 | AB74: 0.04371928066 | AC74: 0.05116628794 | AD74: 0.05926126429 | AE74: 0.06792568296 | AF74: 0.0770501013 | AG74: 0.08649450419 | AH74: 0.09609038028 | AI74: 0.105644626 | AJ74: 0.1149452441 | AK74: 0.1237686639 | AL74: 0.1318883691 | AM74: 0.1390843907 | AN74: 0.1451531236 | AO74: 0.1499168604 | AP74: 0.1532324235 | AQ74: 0.1549983094 | AR74: 0.1551598501 | AS74: 0.1537120238 | AT74: 0.1506997143 | AU74: 0.1462153999 | AV74: 0.1403944382 | AW74: 0.1334082812 | AX74: 0.1254560975 | AY74: 0.1167553683 | AZ74: 0.1075320787 | BA74: 0.09801111362 | BB74: 0.08840741768 | BC74: 0.07891838442 | BD74: 0.06971781472 | BE74: 0.06095164693 | BF74: 0.05273551881 | BG74: 0.04515409062 | BH74: 0.03826194796 | BI74: 0.0320858207 | BJ74: 0.02662780249 | BK74: 0.02186923548 | BL74: 0.01777493306 | BM74: 0.01429744538 | BN74: 0.01138112039 | BO74: 0.008965771945 | BP74: 0.006989827491 | BQ74: 0.005392887073 | BR74: 0.004117677167 | BS74: 0.003111425174 | BT74: 0.002326711452 | BU74: 0.001721875683 | BV74: 0.001261064085 | BW74: 0.0009140051038 | BX74: 0.0006555958317 | BY74: 0.0004653715671 | BZ74: 0.0003269185821 | CA74: 0.0002272769888 | CB74: 0.0001563678361 | CC74: 0.0001064671147 | CD74: 7.173971424e-05 | CE74: 4.783875837e-05
B75: 0.4 | C75: 2.57399559e-05 | D75: 3.916706267e-05 | E75: 5.898075212e-05 | F75: 8.789733527e-05 | G75: 0.0001296334893 | H75: 0.0001892059597 | I75: 0.0002732930025 | J75: 0.0003906594292 | K75: 0.0005526424098 | L75: 0.0007736886168 | M75: 0.001071924763 | N75: 0.001469733184 | O75: 0.001994292219 | P75: 0.002678028465 | Q75: 0.003558915546 | R75: 0.004680543379 | S75: 0.006091874759 | T75: 0.007846604391 | U75: 0.01000204138 | V75: 0.01261745126 | W75: 0.01575181941 | X75: 0.019461034 | Y75: 0.02379453367 | Z75: 0.02879151934 | AA75: 0.0344768888 | AB75: 0.04085711077 | AC75: 0.0479163066 | AD75: 0.05561284556 | AE75: 0.06387677754 | AF75: 0.0726084188 | AG75: 0.08167836935 | AH75: 0.09092917225 | AI75: 0.1001787286 | AJ75: 0.1092254626 | AK75: 0.1178550968 | AL75: 0.125848761 | AM75: 0.1329920311 | AN75: 0.1390843907 | AO75: 0.1439485403 | AP75: 0.1474389527 | AQ75: 0.1494491015 | AR75: 0.1499168604 | AS75: 0.1488276924 | AT75: 0.1462153999 | AU75: 0.1421603828 | AV75: 0.136785528 | AW75: 0.1302500255 | AX75: 0.122741544 | AY75: 0.114467302 | AZ75: 0.105644626 | BA75: 0.09649159214 | BB75: 0.08721830336 | BC75: 0.07801927227 | BD75: 0.06906726443 | BE75: 0.06050882425 | BF75: 0.05246156869 | BG75: 0.04501320434 | BH75: 0.03822211252 | BI75: 0.03211926084 | BJ75: 0.02671114453 | BK75: 0.02198343488 | BL75: 0.01790501563 | BM75: 0.0144321142 | BN75: 0.01151227906 | BO75: 0.00908800922 | BP75: 0.007099901257 | BQ75: 0.005489236692 | BR75: 0.004199984675 | BS75: 0.00318023749 | BT75: 0.002383128713 | BU75: 0.001767305157 | BV75: 0.001297034982 | BW75: 0.0009420369405 | BX75: 0.0006771116347 | BY75: 0.0004816468434 | BZ75: 0.0003390574252 | CA75: 0.000236207618 | CB75: 0.0001628510787 | CC75: 0.000111112643 | CD75: 7.502610769e-05 | CE75: 5.013458832e-05
B76: 0.5 | C76: 2.259742938e-05 | D76: 3.445696505e-05 | E76: 5.19961402e-05 | F76: 7.76499694e-05 | G76: 0.0001147592155 | H76: 0.0001678455966 | I76: 0.0002429452612 | J76: 0.0003480030192 | K76: 0.0004933256427 | L76: 0.0006920866437 | M76: 0.0009608671476 | N76: 0.001320207881 | O76: 0.001795136164 | P76: 0.002415619743 | Q76: 0.003216887283 | R76: 0.004239544679 | S76: 0.005529408659 | T76: 0.007136976375 | U76: 0.00911645367 | V76: 0.01152427726 | W76: 0.01441708858 | X76: 0.01784914979 | Y76: 0.02186923548 | Z76: 0.02651708414 | AA76: 0.03181954986 | AB76: 0.03778665041 | AC76: 0.04440775915 | AD76: 0.05164822745 | AE76: 0.0594467454 | AF76: 0.06771374652 | AG76: 0.07633113203 | AH76: 0.08515353119 | AI76: 0.09401122686 | AJ76: 0.1027147652 | AK76: 0.1110611418 | AL76: 0.1188413262 | AM76: 0.125848761 | AN76: 0.1318883691 | AO76: 0.136785528 | AP76: 0.1403944382 | AQ76: 0.1426053289 | AR76: 0.1433500025 | AS76: 0.1426053289 | AT76: 0.1403944382 | AU76: 0.136785528 | AV76: 0.1318883691 | AW76: 0.125848761 | AX76: 0.1188413262 | AY76: 0.1110611418 | AZ76: 0.1027147652 | BA76: 0.09401122686 | BB76: 0.08515353119 | BC76: 0.07633113203 | BD76: 0.06771374652 | BE76: 0.0594467454 | BF76: 0.05164822745 | BG76: 0.04440775915 | BH76: 0.03778665041 | BI76: 0.03181954986 | BJ76: 0.02651708414 | BK76: 0.02186923548 | BL76: 0.01784914979 | BM76: 0.01441708858 | BN76: 0.01152427726 | BO76: 0.00911645367 | BP76: 0.007136976375 | BQ76: 0.005529408659 | BR76: 0.004239544679 | BS76: 0.003216887283 | BT76: 0.002415619743 | BU76: 0.001795136164 | BV76: 0.001320207881 | BW76: 0.0009608671476 | BX76: 0.0006920866437 | BY76: 0.0004933256427 | BZ76: 0.0003480030192 | CA76: 0.0002429452612 | CB76: 0.0001678455966 | CC76: 0.0001147592155 | CD76: 7.76499694e-05 | CE76: 5.19961402e-05
B77: 0.6 | C77: 1.963298688e-05 | D77: 2.999916323e-05 | E77: 4.536365145e-05 | F77: 6.788642957e-05 | G77: 0.000100538877 | H77: 0.0001473537496 | I77: 0.0002137294912 | J77: 0.0003067918452 | K77: 0.0004358120862 | L77: 0.0006126759433 | M77: 0.000852390273 | N77: 0.001173605784 | O77: 0.001599123836 | P77: 0.002156344032 | Q77: 0.002877597879 | R77: 0.003800303289 | S77: 0.004966866756 | T77: 0.006424256322 | U77: 0.008223170798 | V77: 0.01041674086 | W77: 0.01305871695 | X77: 0.01620112811 | Y77: 0.01989143446 | Z77: 0.02416924305 | AA77: 0.02906270905 | AB77: 0.0345847976 | AC77: 0.04072963159 | AD77: 0.04746919036 | AE77: 0.05475064831 | AF77: 0.06249464521 | AG77: 0.07059475687 | AH77: 0.07891838442 | AI77: 0.0873092031 | AJ77: 0.0955912106 | AK77: 0.103574298 | AL77: 0.1110611418 | AM77: 0.1178550968 | AN77: 0.1237686639 | AO77: 0.1286320337 | AP77: 0.132301165 | AQ77: 0.1346648649 | AR77: 0.1356503849 | AS77: 0.1352271391 | AT77: 0.1334082812 | AU77: 0.1302500255 | AV77: 0.125848761 | AW77: 0.120336166 | AX77: 0.113872668 | AY77: 0.1066397015 | AZ77: 0.09883128553 | BA77: 0.09064546211 | BB77: 0.08227611744 | BC77: 0.07390564484 | BD77: 0.06569881419 | BE77: 0.05779809846 | BF77: 0.05032058359 | BG77: 0.04335646714 | BH77: 0.03696904262 | BI77: 0.03119597905 | BJ77: 0.02605164402 | BK77: 0.02153018441 | BL77: 0.01760907175 | BM77: 0.0142528356 | BN77: 0.01141674202 | BO77: 0.009050221294 | BP77: 0.007099901257 | BQ77: 0.005512156228 | BR77: 0.004235130786 | BS77: 0.003220239953 | BT77: 0.002423180362 | BU77: 0.001804510222 | BV77: 0.001329869579 | BW77: 0.000969917635 | BX77: 0.0007000624104 | BY77: 0.0005000515312 | BZ77: 0.0003534832693 | CA77: 0.0002472857347 | CB77: 0.000171200632 | CC77: 0.0001172972317 | CD77: 7.95327979e-05 | CE77: 5.336799147e-05
B78: 0.7 | C78: 1.688067521e-05 | D78: 2.584742946e-05 | E78: 3.916706267e-05 | F78: 5.873551026e-05 | G78: 8.716790101e-05 | H78: 0.0001280231562 | I78: 0.0001860786602 | J78: 0.0002676582969 | K78: 0.0003810140136 | L78: 0.000536756469 | M78: 0.000748324087 | N78: 0.001032471948 | O78: 0.001409752574 | P78: 0.001904950219 | Q78: 0.002547419476 | R78: 0.003371268927 | S78: 0.004415322494 | T78: 0.005722786725 | U78: 0.007340553216 | V78: 0.009318073269 | W78: 0.01170575822 | X78: 0.01455288433 | Y78: 0.01790501563 | Z78: 0.02180100079 | AA78: 0.02626964815 | AB78: 0.03132623347 | AC78: 0.03696904262 | AD78: 0.04317619103 | AE78: 0.04990298779 | AF78: 0.05708011895 | AG78: 0.06461290831 | AH78: 0.07238187165 | AI78: 0.08024471286 | AJ78: 0.0880398198 | AK78: 0.0955912106 | AL78: 0.1027147652 | AM78: 0.1092254626 | AN78: 0.1149452441 | AO78: 0.1197110445 | AP78: 0.1233824906 | AQ78: 0.125848761 | AR78: 0.1270341409 | AS78: 0.1269018826 | AT78: 0.1254560975 | AU78: 0.122741544 | AV78: 0.1188413262 | AW78: 0.113872668 | AX78: 0.1079810638 | AY78: 0.1013332114 | AZ78: 0.09410920624 | BA78: 0.08649450419 | BB78: 0.07867214941 | BC78: 0.07081571055 | BD78: 0.06308328746 | BE78: 0.05561284556 | BF78: 0.04851901954 | BG78: 0.04189141346 | BH78: 0.03579431958 | BI78: 0.03026769211 | BJ78: 0.02532914924 | BK78: 0.02097674011 | BL78: 0.01719220144 | BM78: 0.0139444402 | BN78: 0.01119300702 | BO78: 0.008891367627 | BP78: 0.006989827491 | BQ78: 0.005438015572 | BR78: 0.004186880209 | BS78: 0.003190191277 | BT78: 0.0024055756 | BU78: 0.001795136164 | BV78: 0.001325720223 | BW78: 0.0009689078301 | BX78: 0.000700792022 | BY78: 0.0005016166364 | BZ78: 0.0003553291307 | CA78: 0.0002490954498 | CB78: 0.000172813185 | CC78: 0.0001186489922 | CD78: 8.06171298e-05 | CE78: 5.420841504e-05
B79: 0.8 | C79: 1.436380004e-05 | D79: 2.203949686e-05 | E79: 3.346648495e-05 | F79: 5.029150396e-05 | G79: 7.479201706e-05 | H79: 0.0001100758297 | I79: 0.0001603263067 | J79: 0.000231096681 | K79: 0.0003296542866 | L79: 0.0004653715671 | M79: 0.0006501552337 | N79: 0.0008988979282 | O79: 0.001229928302 | P79: 0.001665425883 | Q79: 0.002231757094 | R79: 0.002959679178 | S79: 0.003884350842 | T79: 0.005045083526 | U79: 0.006484766925 | V79: 0.0082489084 | W79: 0.01038423935 | X79: 0.01293686356 | Y79: 0.0159499529 | Z79: 0.019461034 | AA79: 0.02349895322 | AB79: 0.0280806542 | AC79: 0.03320794684 | AD79: 0.03886448597 | AE79: 0.04501320434 | AF79: 0.05159445522 | AG79: 0.05852510904 | AH79: 0.06569881419 | AI79: 0.07298757417 | AJ79: 0.08024471286 | AK79: 0.0873092031 | AL79: 0.09401122686 | AM79: 0.1001787286 | AN79: 0.105644626 | AO79: 0.1102542663 | AP79: 0.113872668 | AQ79: 0.1163910773 | AR79: 0.117732395 | AS79: 0.1178550968 | AT79: 0.1167553683 | AU79: 0.114467302 | AV79: 0.1110611418 | AW79: 0.1066397015 | AX79: 0.1013332114 | AY79: 0.09529295433 | AZ79: 0.08868412298 | BA79: 0.08167836935 | BB79: 0.07444650967 | BC79: 0.06715180995 | BD79: 0.05994420482 | BE79: 0.05295570855 | BF79: 0.04629717187 | BG79: 0.04005643 | BH79: 0.03429778849 | BI79: 0.02906270905 | BJ79: 0.02437149496 | BK79: 0.02022573648 | BL79: 0.01661126163 | BM79: 0.01350134365 | BN79: 0.01085994094 | BO79: 0.00864478178 | BP79: 0.006810150432 | BQ79: 0.005309278108 | BR79: 0.004096286684 | BS79: 0.003127672788 | BT79: 0.002363351826 | BU79: 0.001767305157 | BV79: 0.001307888768 | BW79: 0.0009578691246 | BX79: 0.0006942527973 | BY79: 0.0004979723178 | BZ79: 0.0003534832693 | CA79: 0.0002483182415 | CB79: 0.000172633265 | CC79: 0.0001187726493 | CD79: 8.086945238e-05 | CE79: 5.449148706e-05
B80: 0.9 | C80: 1.209553233e-05 | D80: 1.859782222e-05 | E80: 2.829927414e-05 | F80: 4.261520675e-05 | G80: 6.350822905e-05 | H80: 9.366374195e-05 | I80: 0.0001367064813 | J80: 0.0001974616699 | K80: 0.0002822621236 | L80: 0.0003992992579 | M80: 0.0005590111889 | N80: 0.0007744949624 | O80: 0.001061922428 | P80: 0.001440930679 | Q80: 0.00193494882 | R80: 0.002571413831 | S80: 0.003381820621 | T80: 0.004401546148 | U80: 0.005669386305 | V80: 0.007226748487 | W80: 0.00911645367 | X80: 0.01138112039 | Y80: 0.01406112939 | Z80: 0.01719220144 | AA80: 0.02080266028 | AB80: 0.02491049523 | AC80: 0.02952038012 | AD80: 0.0346208422 | AE80: 0.04018180213 | AF80: 0.04615271903 | AG80: 0.05246156869 | AH80: 0.05901485606 | AI80: 0.06569881419 | AJ80: 0.07238187165 | AK80: 0.07891838442 | AL80: 0.08515353119 | AM80: 0.09092917225 | AN80: 0.09609038028 | AO80: 0.1004922768 | AP80: 0.1040067579 | AQ80: 0.1065286763 | AR80: 0.1079810638 | AS80: 0.1083190324 | AT80: 0.1075320787 | AU80: 0.105644626 | AV80: 0.1027147652 | AW80: 0.09883128553 | AX80: 0.09410920624 | AY80: 0.08868412298 | AZ80: 0.08270575677 | BA80: 0.07633113203 | BB80: 0.06971781472 | BC80: 0.06301760992 | BD80: 0.05637105832 | BE80: 0.04990298779 | BF80: 0.04371928066 | BG80: 0.03790491839 | BH80: 0.03252327141 | BI80: 0.02761652181 | BJ80: 0.02320704454 | BK80: 0.01929953257 | BL80: 0.01588363303 | BM80: 0.01293686356 | BN80: 0.01042759728 | BO80: 0.008317936522 | BP80: 0.006566335252 | BQ80: 0.005129872866 | BR80: 0.003966123661 | BS80: 0.003034603813 | BT80: 0.002297808578 | BU80: 0.001721875683 | BV80: 0.001276926319 | BW80: 0.0009371432532 | BX80: 0.0006806474577 | BY80: 0.0004892316775 | BZ80: 0.0003480030192 | CA80: 0.0002449782641 | CB80: 0.0001706664651 | CC80: 0.0001176643589 | CD80: 8.028192392e-05 | CE80: 5.420841504e-05
B81: 1 | C81: =(1/(2*PI()*SQRT(1-rho^2)))*EXP(-(1/(2*(1-rho^2)))*($B81^2+C$30^2-2*rho*$B81*C$30)) -> 1.007991156e-05 | D81: 1.553097094e-05 | E81: 2.368190266e-05 | F81: 3.573638969e-05 | G81: 5.336799147e-05 | H81: 7.887277849e-05 | I81: 0.000115358479 | J81: 0.0001669736734 | K81: 0.0002391787441 | L81: 0.0003390574252 | M81: =(1/(2*PI()*SQRT(1-rho^2)))*EXP(-(1/(2*(1-rho^2)))*($B81^2+M$30^2-2*rho*$B81*M$30)) -> 0.0004756637302 | N81: 0.0006603936889 | O81: 0.0009073647224 | P81: 0.00123377784 | Q81: 0.001660229551 | R81: 0.002210932141 | S81: 0.002913793605 | T81: 0.003800303289 | U81: 0.004905167346 | V81: 0.006265640868 | W81: =(1/(2*PI()*SQRT(1-rho^2)))*EXP(-(1/(2*(1-rho^2)))*($B81^2+W$30^2-2*rho*$B81*W$30)) -> 0.007920512208 | X81: 0.009908710411 | Y81: 0.01226752929 | Z81: 0.01503049108 | AA81: 0.01822490763 | AB81: 0.02186923548 | AC81: 0.02597035971 | AD81: 0.03052097676 | AE81: 0.035497273 | AF81: 0.04085711077 | AG81: =(1/(2*PI()*SQRT(1-rho^2)))*EXP(-(1/(2*(1-rho^2)))*($B81^2+AG$30^2-2*rho*$B81*AG$30)) -> 0.04653893201 | AH81: 0.05246156869 | AI81: 0.05852510904 | AJ81: 0.06461290831 | AK81: 0.07059475687 | AL81: 0.07633113203 | AM81: 0.08167836935 | AN81: 0.08649450419 | AO81: 0.09064546211 | AP81: 0.09401122686 | AQ81: =(1/(2*PI()*SQRT(1-rho^2)))*EXP(-(1/(2*(1-rho^2)))*($B81^2+AQ$30^2-2*rho*$B81*AQ$30)) -> 0.09649159214 | AR81: 0.09801111362 | AS81: 0.09852291984 | AT81: 0.09801111362 | AU81: 0.09649159214 | AV81: 0.09401122686 | AW81: 0.09064546211 | AX81: 0.08649450419 | AY81: 0.08167836935 | AZ81: 0.07633113203 | BA81: =(1/(2*PI()*SQRT(1-rho^2)))*EXP(-(1/(2*(1-rho^2)))*($B81^2+BA$30^2-2*rho*$B81*BA$30)) -> 0.07059475687 | BB81: 0.06461290831 | BC81: 0.05852510904 | BD81: 0.05246156869 | BE81: 0.04653893201 | BF81: 0.04085711077 | BG81: 0.035497273 | BH81: 0.03052097676 | BI81: 0.02597035971 | BJ81: 0.02186923548 | BK81: =(1/(2*PI()*SQRT(1-rho^2)))*EXP(-(1/(2*(1-rho^2)))*($B81^2+BK$30^2-2*rho*$B81*BK$30)) -> 0.01822490763 | BL81: 0.01503049108 | BM81: 0.01226752929 | BN81: 0.009908710411 | BO81: 0.007920512208 | BP81: 0.006265640868 | BQ81: 0.004905167346 | BR81: 0.003800303289 | BS81: 0.002913793605 | BT81: 0.002210932141 | BU81: =(1/(2*PI()*SQRT(1-rho^2)))*EXP(-(1/(2*(1-rho^2)))*($B81^2+BU$30^2-2*rho*$B81*BU$30)) -> 0.001660229551 | BV81: 0.00123377784 | BW81: 0.0009073647224 | BX81: 0.0006603936889 | BY81: 0.0004756637302 | BZ81: 0.0003390574252 | CA81: 0.0002391787441 | CB81: 0.0001669736734 | CC81: 0.000115358479 | CD81: 7.887277849e-05 | CE81: 5.336799147e-05
B82: 1.1 | C82: 8.313129692e-06 | D82: 1.283545361e-05 | E82: 1.96125465e-05 | F82: 2.965738466e-05 | G82: 4.438209647e-05 | H82: 6.572928003e-05 | I82: 9.633542919e-05 | J82: 0.0001397298835 | K82: 0.0002005712387 | L82: 0.0002849207739 | M82: 0.0004005490198 | N82: 0.0005572670056 | O82: 0.0007672680014 | P82: 0.001045458846 | Q82: 0.001409752574 | R82: 0.001881286547 | S82: 0.002484523465 | T82: 0.003247187412 | U82: 0.004199984675 | V82: 0.005376060605 | W82: 0.006810150432 | X82: 0.008537394576 | Y82: 0.01059180805 | Z82: 0.01300441883 | AA82: 0.01580112084 | AB82: 0.01900032105 | AC82: 0.0226104957 | AD82: 0.02662780249 | AE82: 0.03103392238 | AF82: 0.03579431958 | AG82: 0.04085711077 | AH82: 0.04615271903 | AI82: 0.05159445522 | AJ82: 0.05708011895 | AK82: 0.06249464521 | AL82: 0.06771374652 | AM82: 0.0726084188 | AN82: 0.0770501013 | AO82: 0.08091621283 | AP82: 0.08409573704 | AQ82: 0.08649450419 | AR82: 0.0880398198 | AS82: 0.08868412298 | AT82: 0.08840741768 | AU82: 0.08721830336 | AV82: 0.08515353119 | AW82: 0.08227611744 | AX82: 0.07867214941 | AY82: 0.07444650967 | AZ82: 0.06971781472 | BA82: 0.06461290831 | BB82: 0.05926126429 | BC82: 0.05378963962 | BD82: 0.04831727754 | BE82: 0.04295189964 | BF82: 0.03778665041 | BG82: 0.03289807712 | BH82: 0.02834514821 | BI82: 0.02416924305 | BJ82: 0.02039498852 | BK82: 0.01703177772 | BL82: 0.01407578403 | BM82: 0.01151227906 | BN82: 0.009318073269 | BO82: 0.007463920979 | BP82: 0.005916761231 | BQ82: 0.004641700919 | BR82: 0.003603681193 | BS82: 0.002768800544 | BT82: 0.002105295582 | BU82: 0.001584202105 | BV82: 0.00117973426 | BW82: 0.0008694285489 | BX82: 0.0006341028438 | BY82: 0.0004576796516 | BZ82: 0.0003269185821 | CA82: 0.000231096681 | CB82: 0.0001616679417 | CC82: 0.0001119258004 | CD82: 7.668538599e-05 | CE82: 5.19961402e-05
B83: 1.2 | C83: 6.78497871e-06 | D83: 1.049783965e-05 | E83: 1.607413013e-05 | F83: 2.435741098e-05 | G83: 3.652673612e-05 | H83: 5.420841504e-05 | I83: 7.961568773e-05 | J83: 0.0001157195381 | K83: 0.0001664526951 | L83: 0.0002369469213 | M83: 0.000333800827 | N83: 0.0004653715671 | O83: 0.0006420788757 | P83: 0.0008767040593 | Q83: 0.001184660075 | R83: 0.001584202105 | S83: 0.002096541767 | T83: 0.002745823079 | U83: 0.003558915546 | V83: 0.004564980351 | W83: 0.005794770521 | X83: 0.007279636113 | Y83: 0.009050221294 | Z83: 0.01113486166 | AA83: 0.01355771661 | AB83: 0.01633670162 | AC83: 0.01948131647 | AD83: 0.02299049516 | AE83: 0.026850628 | AF83: 0.03103392238 | AG83: 0.035497273 | AH83: 0.04018180213 | AI83: 0.04501320434 | AJ83: 0.04990298779 | AK83: 0.05475064831 | AL83: 0.0594467454 | AM83: 0.06387677754 | AN83: 0.06792568296 | AO83: 0.0714827296 | AP83: 0.07444650967 | AQ83: 0.07672972712 | AR83: 0.07826346384 | AS83: 0.0790006339 | AT83: 0.07891838442 | AU83: 0.07801927227 | AV83: 0.07633113203 | AW83: 0.07390564484 | AX83: 0.07081571055 | AY83: 0.06715180995 | AZ83: 0.06301760992 | BA83: 0.05852510904 | BB83: 0.05378963962 | BC83: 0.04892503408 | BD83: 0.04403923215 | BE83: 0.03923055379 | BF83: 0.0345847976 | BG83: 0.03017325321 | BH83: 0.02605164402 | BI83: 0.02225995245 | BJ83: 0.01882302541 | BK83: 0.01575181941 | BL83: 0.0130451212 | BM83: 0.01069157316 | BN83: 0.008671838978 | BO83: 0.006960763801 | BP83: 0.005529408659 | BQ83: 0.004346869264 | BR83: 0.003381820621 | BS83: 0.002603758235 | BT83: 0.001983932283 | BU83: 0.001495991518 | BV83: 0.001116368355 | BW83: 0.0008244455959 | BX83: 0.0006025493006 | BY83: 0.0004358120862 | BZ83: 0.0003119478903 | CA83: 0.0002209738765 | CB83: 0.0001549087379 | CC83: 0.0001074699373 | CD83: 7.37860352e-05 | CE83: 5.013458832e-05
B84: 1.3 | C84: 5.480352857e-06 | D84: 8.496982967e-06 | E84: 1.303758259e-05 | F84: 1.97972787e-05 | G84: 2.975020895e-05 | H84: 4.42436189e-05 | I84: 6.511594752e-05 | J84: 9.484188679e-05 | K84: 0.0001367064813 | L84: 0.0001950087616 | M84: 0.0002752930469 | N84: 0.0003846028162 | O84: 0.0005317478915 | P84: 0.0007275706847 | Q84: 0.0009851916152 | R84: 0.001320207881 | S84: 0.001750814094 | T84: 0.002297808578 | U84: 0.002984446223 | V84: 0.003836098661 | W84: 0.004879686014 | X84: 0.006142852494 | Y84: 0.007652871038 | Z84: 0.009435280202 | AA84: 0.01151227906 | AB84: 0.01390093184 | AC84: 0.01661126163 | AD84: 0.01964433909 | AE84: 0.02299049516 | AF84: 0.02662780249 | AG84: 0.03052097676 | AH84: 0.0346208422 | AI84: 0.03886448597 | AJ84: 0.04317619103 | AK84: 0.04746919036 | AL84: 0.05164822745 | AM84: 0.05561284556 | AN84: 0.05926126429 | AO84: 0.06249464521 | AP84: 0.06522150265 | AQ84: 0.06736198759 | AR84: 0.06885176612 | AS84: 0.06964522981 | AT84: 0.06971781472 | AU84: 0.06906726443 | AV84: 0.06771374652 | AW84: 0.06569881419 | AX84: 0.06308328746 | AY84: 0.05994420482 | AZ84: 0.05637105832 | BA84: 0.05246156869 | BB84: 0.04831727754 | BC84: 0.04403923215 | BD84: 0.03972401341 | BE84: 0.03546031592 | BF84: 0.03132623347 | BG84: 0.02738734037 | BH84: 0.02369559604 | BI84: 0.02028904077 | BJ84: 0.01719220144 | BK84: 0.01441708858 | BL84: 0.01196464291 | BM84: 0.009826480923 | BN84: 0.00798679226 | BO84: 0.006424256322 | BP84: 0.005113867036 | BQ84: 0.00402858102 | BR84: 0.003140731946 | BS84: 0.002423180362 | BT84: 0.001850191616 | BU84: 0.00139805345 | BV84: 0.001045458846 | BW84: 0.0007736886168 | BX84: 0.000566632619 | BY84: 0.0004106889665 | BZ84: 0.0002945781959 | CA84: 0.0002091049242 | CB84: 0.0001468939878 | CC84: 0.000102122134 | CD84: 7.026059782e-05 | CE84: 4.783875837e-05
B85: 1.4 | C85: 4.380711506e-06 | D85: 6.806214933e-06 | E85: 1.046508511e-05 | F85: 1.592413934e-05 | G85: 2.397978432e-05 | H85: 3.573638969e-05 | I85: 5.270504363e-05 | J85: 7.692540265e-05 | K85: 0.000111112643 | L85: 0.0001588302712 | M85: 0.0002246876365 | N85: 0.0003145583177 | O85: 0.0004358120862 | P85: 0.0005975489203 | Q85: 0.0008108187088 | R85: 0.001088805122 | S85: 0.001446947083 | T85: 0.001902966929 | U85: 0.002476771448 | V85: 0.003190191277 | W85: 0.004066526559 | X85: 0.005129872866 | Y85: 0.006404211857 | Z85: 0.00791226597 | AA85: 0.009674135457 | AB85: 0.01170575822 | AC85: 0.01401725695 | AD85: 0.01661126163 | AE85: 0.01948131647 | AF85: 0.0226104957 | AG85: 0.02597035971 | AH85: 0.02952038012 | AI85: 0.03320794684 | AJ85: 0.03696904262 | AK85: 0.04072963159 | AL85: 0.04440775915 | AM85: 0.0479163066 | AN85: 0.05116628794 | AO85: 0.05407052483 | AP85: 0.05654749342 | AQ85: 0.05852510904 | AR85: 0.05994420482 | AS85: 0.06076147034 | AT85: 0.06095164693 | AU85: 0.06050882425 | AV85: 0.0594467454 | AW85: 0.05779809846 | AX85: 0.05561284556 | AY85: 0.05295570855 | AZ85: 0.04990298779 | BA85: 0.04653893201 | BB85: 0.04295189964 | BC85: 0.03923055379 | BD85: 0.03546031592 | BE85: 0.03172026898 | BF85: 0.0280806542 | BG85: 0.02460105209 | BH85: 0.02132928213 | BI85: 0.01830100317 | BJ85: 0.01553995128 | BK85: 0.01305871695 | BL85: 0.01085994094 | BM85: 0.00893779764 | BN85: 0.007279636113 | BO85: 0.005867659761 | BP85: 0.004680543379 | BQ85: 0.003694908816 | BR85: 0.002886604438 | BS85: 0.002231757094 | BT85: 0.00170758634 | BU85: 0.001292988074 | BV85: 0.0009689078301 | BW85: 0.0007185326565 | BX85: 0.0005273350713 | BY85: 0.0003830036384 | BZ85: 0.0002752930469 | CA85: 0.0001958229932 | CB85: 0.000137850462 | CC85: 9.603485087e-05 | CD85: 6.621030765e-05 | CE85: 4.517502947e-05
B86: 1.5 | C86: 3.465428033e-06 | D86: 5.395387861e-06 | E86: 8.313129692e-06 | F86: 1.267600905e-05 | G86: 1.9128311e-05 | H86: 2.856582735e-05 | I86: 4.221755608e-05 | J86: 6.174694427e-05 | K86: 8.937456693e-05 | L86: 0.0001280231562 | M86: 0.0001814843617 | N86: 0.0002546044477 | O86: 0.0003534832693 | P86: 0.0004856773375 | Q86: 0.0006603936889 | R86: 0.0008886568411 | S86: 0.001183426696 | T86: 0.001559641327 | U86: 0.002034155767 | V86: 0.002625546881 | W86: 0.003353755882 | X86: 0.004239544679 | Y86: 0.00530375049 | Z86: 0.006566335252 | AA86: 0.008045242126 | AB86: 0.009755090095 | AC86: 0.01170575822 | AD86: 0.01390093184 | AE86: 0.01633670162 | AF86: 0.01900032105 | AG86: 0.02186923548 | AH86: 0.02491049523 | AI86: 0.0280806542 | AJ86: 0.03132623347 | AK86: 0.0345847976 | AL86: 0.03778665041 | AM86: 0.04085711077 | AN86: 0.04371928066 | AO86: 0.04629717187 | AP86: 0.04851901954 | AQ86: 0.05032058359 | AR86: 0.05164822745 | AS86: 0.05246156869 | AT86: 0.05273551881 | AU86: 0.05246156869 | AV86: 0.05164822745 | AW86: 0.05032058359 | AX86: 0.04851901954 | AY86: 0.04629717187 | AZ86: 0.04371928066 | BA86: 0.04085711077 | BB86: 0.03778665041 | BC86: 0.0345847976 | BD86: 0.03132623347 | BE86: 0.0280806542 | BF86: 0.02491049523 | BG86: 0.02186923548 | BH86: 0.01900032105 | BI86: 0.01633670162 | BJ86: 0.01390093184 | BK86: 0.01170575822 | BL86: 0.009755090095 | BM86: 0.008045242126 | BN86: 0.006566335252 | BO86: 0.00530375049 | BP86: 0.004239544679 | BQ86: 0.003353755882 | BR86: 0.002625546881 | BS86: 0.002034155767 | BT86: 0.001559641327 | BU86: 0.001183426696 | BV86: 0.0008886568411 | BW86: 0.0006603936889 | BX86: 0.0004856773375 | BY86: 0.0003534832693 | BZ86: 0.0002546044477 | CA86: 0.0001814843617 | CB86: 0.0001280231562 | CC86: 8.937456693e-05 | CD86: 6.174694427e-05 | CE86: 4.221755608e-05
B87: 1.6 | C87: 2.712971392e-06 | D87: 4.232683358e-06 | E87: 6.535253618e-06 | F87: 9.985853973e-06 | G87: 1.510024782e-05 | H87: 2.259742938e-05 | I87: 3.346648495e-05 | J87: 4.90498023e-05 | K87: 7.114436734e-05 | L87: 0.000102122134 | M87: 0.0001450692414 | N87: 0.0002039421052 | O87: 0.0002837360739 | P87: 0.0003906594292 | Q87: 0.0005323020841 | R87: 0.0007177845747 | S87: 0.0009578691246 | T87: 0.001265011074 | U87: 0.00165332632 | V87: 0.002138449164 | W87: 0.002737255775 | X87: 0.003467431818 | Y87: 0.004346869264 | Z87: 0.005392887073 | AA87: 0.006621283344 | AB87: 0.008045242126 | AC87: 0.009674135457 | AD87: 0.01151227906 | AE87: 0.01355771661 | AF87: 0.01580112084 | AG87: 0.01822490763 | AH87: 0.02080266028 | AI87: 0.02349895322 | AJ87: 0.02626964815 | AK87: 0.02906270905 | AL87: 0.03181954986 | AM87: 0.0344768888 | AN87: 0.03696904262 | AO87: 0.03923055379 | AP87: 0.0411990093 | AQ87: 0.04281788446 | AR87: 0.04403923215 | AS87: 0.04482603952 | AT87: 0.04515409062 | AU87: 0.04501320434 | AV87: 0.04440775915 | AW87: 0.04335646714 | AX87: 0.04189141346 | AY87: 0.04005643 | AZ87: 0.03790491839 | BA87: 0.035497273 | BB87: 0.03289807712 | BC87: 0.03017325321 | BD87: 0.02738734037 | BE87: 0.02460105209 | BF87: 0.02186923548 | BG87: 0.01923931567 | BH87: 0.01675026719 | BI87: 0.0144321142 | BJ87: 0.01230592528 | BK87: 0.01038423935 | BL87: 0.008671838978 | BM87: 0.007166775816 | BN87: 0.005861550798 | BO87: 0.004744356832 | BP87: 0.003800303289 | BQ87: 0.00301255697 | BR87: 0.002363351826 | BS87: 0.001834837417 | BT87: 0.001409752574 | BU87: 0.001071924763 | BV87: 0.0008066066731 | BW87: 0.0006006692732 | BX87: 0.0004426751279 | BY87: 0.0003228575342 | BZ87: 0.0002330305332 | CA87: 0.0001664526951 | CB87: 0.0001176643589 | CC87: 8.23142705e-05 | CD87: 5.698773991e-05 | CE87: 3.904485664e-05
B88: 1.7 | C88: 2.101888351e-06 | D88: 3.286131889e-06 | E88: 5.084361666e-06 | F88: 7.785096147e-06 | G88: 1.179689257e-05 | H88: 1.769079573e-05 | I88: 2.625446725e-05 | J88: 3.855983364e-05 | K88: 5.604581542e-05 | L88: 8.06171298e-05 | M88: 0.0001147592155 | N88: 0.0001616679417 | O88: 0.0002253908836 | P88: 0.0003109745747 | Q88: 0.0004246093156 | R88: 0.00057375998 | S88: 0.0007672680014 | T88: 0.001015406688 | U88: 0.001329869579 | V88: 0.001723670238 | W88: 0.002210932141 | X88: 0.002806549735 | Y88: 0.003525706623 | Z88: 0.004383244527 | AA88: 0.005392887073 | AB88: 0.006566335252 | AC88: 0.00791226597 | AD88: 0.009435280202 | AE88: 0.01113486166 | AF88: 0.01300441883 | AG88: 0.01503049108 | AH88: 0.01719220144 | AI88: 0.019461034 | AJ88: 0.02180100079 | AK88: 0.02416924305 | AL88: 0.02651708414 | AM88: 0.02879151934 | AN88: 0.03093709275 | AO88: 0.03289807712 | AP88: 0.0346208422 | AQ88: 0.03605627371 | AR88: 0.03716209201 | AS88: 0.03790491839 | AT88: 0.03826194796 | AU88: 0.03822211252 | AV88: 0.03778665041 | AW88: 0.03696904262 | AX88: 0.03579431958 | AY88: 0.03429778849 | AZ88: 0.03252327141 | BA88: 0.03052097676 | BB88: 0.02834514821 | BC88: 0.02605164402 | BD88: 0.02369559604 | BE88: 0.02132928213 | BF88: 0.01900032105 | BG88: 0.01675026719 | BH88: 0.01461364785 | BI88: 0.01261745126 | BJ88: 0.01078104188 | BK88: 0.00911645367 | BL88: 0.007628993145 | BM88: 0.006318072705 | BN88: 0.005178191565 | BO88: 0.004199984675 | BP88: 0.003371268927 | BQ88: 0.002678028465 | BR88: 0.002105295582 | BS88: 0.001637898815 | BT88: 0.001261064085 | BU88: 0.0009608671476 | BV88: 0.0007245454472 | BW88: 0.0005406846222 | BX88: 0.0003992992579 | BY88: 0.0002918294303 | BZ88: 0.0002110745008 | CA88: 0.0001510840275 | CB88: 0.0001070230775 | CC88: 7.502610769e-05 | CD88: 5.205033106e-05 | CE88: 3.573638969e-05
B89: 1.8 | C89: 1.611573701e-06 | D89: 2.524819282e-06 | E89: 3.91459218e-06 | F89: 6.006463597e-06 | G89: 9.12068115e-06 | H89: 1.370603375e-05 | I89: 2.038320251e-05 | J89: 2.999916323e-05 | K89: 4.369401584e-05 | L89: 6.298119284e-05 | M89: 8.98412738e-05 | N89: 0.0001268285476 | O89: 0.0001771879716 | P89: 0.0002449782641 | Q89: 0.0003351945654 | R89: 0.0004538815021 | S89: 0.0006082247625 | T89: 0.0008066066731 | U89: 0.0010586091 | V89: 0.001374945659 | W89: 0.001767305157 | X89: 0.002248089797 | Y89: 0.00283003537 | Z89: 0.003525706623 | AA89: 0.004346869264 | AB89: 0.00530375049 | AC89: 0.006404211857 | AD89: 0.007652871038 | AE89: 0.009050221294 | AF89: 0.01059180805 | AG89: 0.01226752929 | AH89: 0.01406112939 | AI89: 0.0159499529 | AJ89: 0.01790501563 | AK89: 0.01989143446 | AL89: 0.02186923548 | AM89: 0.02379453367 | AN89: 0.02562104822 | AO89: 0.02730188852 | AP89: 0.02879151934 | AQ89: 0.03004779287 | AR89: 0.03103392238 | AS89: 0.03172026898 | AT89: 0.0320858207 | AU89: 0.03211926084 | AV89: 0.03181954986 | AW89: 0.03119597905 | AX89: 0.03026769211 | AY89: 0.02906270905 | AZ89: 0.02761652181 | BA89: 0.02597035971 | BB89: 0.02416924305 | BC89: 0.02225995245 | BD89: 0.02028904077 | BE89: 0.01830100317 | BF89: 0.01633670162 | BG89: 0.0144321142 | BH89: 0.01261745126 | BI89: 0.01091665069 | BJ89: 0.009347237794 | BK89: 0.007920512208 | BL89: 0.006642007219 | BM89: 0.005512156228 | BN89: 0.004527096915 | BO89: 0.003679545392 | BP89: 0.002959679178 | BQ89: 0.002355977879 | BR89: 0.001855982508 | BS89: 0.001446947083 | BT89: 0.001116368355 | BU89: 0.000852390273 | BV89: 0.0006440885106 | BW89: 0.0004816468434 | BX89: 0.0003564412711 | BY89: 0.00026104979 | BZ89: 0.0001892059597 | CA89: 0.0001357132887 | CB89: 9.633542919e-05 | CC89: 6.767461561e-05 | CD89: 4.704805324e-05 | CE89: 3.236932307e-05
B90: 1.9 | C90: 1.222832011e-06 | D90: 1.919781074e-06 | E90: 2.98272155e-06 | F90: 4.586166495e-06 | G90: 6.978515084e-06 | H90: 1.05087806e-05 | I90: 1.566093647e-05 | J90: 2.30971944e-05 | K90: 3.371140325e-05 | L90: 4.869344828e-05 | M90: 6.960498271e-05 | N90: 9.846598469e-05 | O90: 0.000137850462 | P90: 0.0001909881063 | Q90: 0.0002618668466 | R90: 0.0003553291307 | S90: 0.0004771525044 | T90: 0.0006341028438 | U90: 0.0008339466978 | V90: 0.001085407917 | W90: 0.00139805345 | X90: 0.001782094236 | Y90: 0.002248089797 | Z90: 0.002806549735 | AA90: 0.003467431818 | AB90: 0.004239544679 | AC90: 0.005129872866 | AD90: 0.006142852494 | AE90: 0.007279636113 | AF90: 0.008537394576 | AG90: 0.009908710411 | AH90: 0.01138112039 | AI90: 0.01293686356 | AJ90: 0.01455288433 | AK90: 0.01620112811 | AL90: 0.01784914979 | AM90: 0.019461034 | AN90: 0.02099860226 | AO90: 0.02242285781 | AP90: 0.02369559604 | AQ90: 0.02478109035 | AR90: 0.02564775072 | AS90: 0.02626964815 | AT90: 0.02662780249 | AU90: 0.02671114453 | AV90: 0.02651708414 | AW90: 0.02605164402 | AX90: 0.02532914924 | AY90: 0.02437149496 | AZ90: 0.02320704454 | BA90: 0.02186923548 | BB90: 0.02039498852 | BC90: 0.01882302541 | BD90: 0.01719220144 | BE90: 0.01553995128 | BF90: 0.01390093184 | BG90: 0.01230592528 | BH90: 0.01078104188 | BI90: 0.009347237794 | BJ90: 0.008020139987 | BK90: 0.006810150432 | BL90: 0.005722786725 | BM90: 0.004759206138 | BN90: 0.003916855681 | BO90: 0.003190191277 | BP90: 0.002571413831 | BQ90: 0.002051177892 | BR90: 0.001619238337 | BS90: 0.001265011074 | BT90: 0.0009780340534 | BU90: 0.000748324087 | BV90: 0.000566632619 | BW90: 0.0004246093156 | BX90: 0.0003148861533 | BY90: 0.000231096681 | BZ90: 0.0001678455966 | CA90: 0.0001206430463 | CB90: 8.581648797e-05 | CC90: 6.041089617e-05 | CD90: 4.208583215e-05 | CE90: 2.901567367e-05
B91: 2 | C91: =(1/(2*PI()*SQRT(1-rho^2)))*EXP(-(1/(2*(1-rho^2)))*($B91^2+C$30^2-2*rho*$B91*C$30)) -> 9.182470155e-07 | D91: 1.444605329e-06 | E91: 2.249132281e-06 | F91: 3.465428033e-06 | G91: 5.284146732e-06 | H91: 7.973866356e-06 | I91: 1.190800848e-05 | J91: 1.75988957e-05 | K91: 2.57399559e-05 | L91: 3.725686248e-05 | M91: =(1/(2*PI()*SQRT(1-rho^2)))*EXP(-(1/(2*(1-rho^2)))*($B91^2+M$30^2-2*rho*$B91*M$30)) -> 5.336799147e-05 | N91: 7.565393758e-05 | O91: 0.0001061349243 | P91: 0.0001473537496 | Q91: 0.0002024604358 | R91: 0.0002752930469 | S91: 0.0003704472856 | T91: 0.0004933256427 | U91: 0.0006501552337 | V91: 0.0008479622815 | W91: =(1/(2*PI()*SQRT(1-rho^2)))*EXP(-(1/(2*(1-rho^2)))*($B91^2+W$30^2-2*rho*$B91*W$30)) -> 0.001094490775 | X91: 0.00139805345 | Y91: 0.001767305157 | Z91: 0.002210932141 | AA91: 0.002737255775 | AB91: 0.003353755882 | AC91: 0.004066526559 | AD91: 0.004879686014 | AE91: 0.005794770521 | AF91: 0.006810150432 | AG91: =(1/(2*PI()*SQRT(1-rho^2)))*EXP(-(1/(2*(1-rho^2)))*($B91^2+AG$30^2-2*rho*$B91*AG$30)) -> 0.007920512208 | AH91: 0.00911645367 | AI91: 0.01038423935 | AJ91: 0.01170575822 | AK91: 0.01305871695 | AL91: 0.01441708858 | AM91: 0.01575181941 | AN91: 0.01703177772 | AO91: 0.01822490763 | AP91: 0.01929953257 | AQ91: =(1/(2*PI()*SQRT(1-rho^2)))*EXP(-(1/(2*(1-rho^2)))*($B91^2+AQ$30^2-2*rho*$B91*AQ$30)) -> 0.02022573648 | AR91: 0.02097674011 | AS91: 0.02153018441 | AT91: 0.02186923548 | AU91: 0.02198343488 | AV91: 0.02186923548 | AW91: 0.02153018441 | AX91: 0.02097674011 | AY91: 0.02022573648 | AZ91: 0.01929953257 | BA91: =(1/(2*PI()*SQRT(1-rho^2)))*EXP(-(1/(2*(1-rho^2)))*($B91^2+BA$30^2-2*rho*$B91*BA$30)) -> 0.01822490763 | BB91: 0.01703177772 | BC91: 0.01575181941 | BD91: 0.01441708858 | BE91: 0.01305871695 | BF91: 0.01170575822 | BG91: 0.01038423935 | BH91: 0.00911645367 | BI91: 0.007920512208 | BJ91: 0.006810150432 | BK91: =(1/(2*PI()*SQRT(1-rho^2)))*EXP(-(1/(2*(1-rho^2)))*($B91^2+BK$30^2-2*rho*$B91*BK$30)) -> 0.005794770521 | BL91: 0.004879686014 | BM91: 0.004066526559 | BN91: 0.003353755882 | BO91: 0.002737255775 | BP91: 0.002210932141 | BQ91: 0.001767305157 | BR91: 0.00139805345 | BS91: 0.001094490775 | BT91: 0.0008479622815 | BU91: =(1/(2*PI()*SQRT(1-rho^2)))*EXP(-(1/(2*(1-rho^2)))*($B91^2+BU$30^2-2*rho*$B91*BU$30)) -> 0.0006501552337 | BV91: 0.0004933256427 | BW91: 0.0003704472856 | BX91: 0.0002752930469 | BY91: 0.0002024604358 | BZ91: 0.0001473537496 | CA91: 0.0001061349243 | CB91: 7.565393758e-05 | CC91: 5.336799147e-05 | CD91: 3.725686248e-05 | CE91: 2.57399559e-05
B92: 2.1 | C92: 6.823832393e-07 | D92: 1.075778396e-06 | E92: 1.678391938e-06 | F92: 2.591433391e-06 | G92: 3.959704847e-06 | H92: 5.987722696e-06 | I92: 8.960590739e-06 | J92: 1.327051277e-05 | K92: 1.944978771e-05 | L92: 2.821097694e-05 | M92: 4.04946347e-05 | N92: 5.752451216e-05 | O92: 8.086945238e-05 | P92: 0.000112510268 | Q92: 0.0001549087379 | R92: 0.0002110745008 | S92: 0.000284624136 | T92: 0.0003798252033 | U92: 0.0005016166364 | V92: 0.0006555958317 | W92: 0.0008479622815 | X92: 0.001085407917 | Y92: 0.001374945659 | Z92: 0.001723670238 | AA92: 0.002138449164 | AB92: 0.002625546881 | AC92: 0.003190191277 | AD92: 0.003836098661 | AE92: 0.004564980351 | AF92: 0.005376060605 | AG92: 0.006265640868 | AH92: 0.007226748487 | AI92: 0.0082489084 | AJ92: 0.009318073269 | AK92: 0.01041674086 | AL92: 0.01152427726 | AM92: 0.01261745126 | AN92: 0.01367116964 | AO92: 0.01465938693 | AP92: 0.01555614716 | AQ92: 0.01633670162 | AR92: 0.01697863649 | AS92: 0.01746293922 | AT92: 0.01777493306 | AU92: 0.01790501563 | AV92: 0.01784914979 | AW92: 0.01760907175 | AX92: 0.01719220144 | AY92: 0.01661126163 | AZ92: 0.01588363303 | BA92: 0.01503049108 | BB92: 0.01407578403 | BC92: 0.0130451212 | BD92: 0.01196464291 | BE92: 0.01085994094 | BF92: 0.009755090095 | BG92: 0.008671838978 | BH92: 0.007628993145 | BI92: 0.006642007219 | BJ92: 0.005722786725 | BK92: 0.004879686014 | BL92: 0.004117677167 | BM92: 0.003438656616 | BN92: 0.002841851785 | BO92: 0.002324289056 | BP92: 0.001881286547 | BQ92: 0.001506939656 | BR92: 0.00119457349 | BS92: 0.0009371432532 | BT92: 0.0007275706847 | BU92: 0.0005590111889 | BV92: 0.0004250518474 | BW92: 0.0003198448887 | BX92: 0.0002381842393 | BY92: 0.0001755345967 | BZ92: 0.0001280231562 | CA92: 9.240392802e-05 | CB92: 6.600372339e-05 | CC92: 4.665761522e-05 | CD92: 3.264019449e-05 | CE92: 2.259742938e-05
B93: 2.2 | C93: 5.01849246e-07 | D93: 7.928162141e-07 | E93: 1.239503821e-06 | F93: 1.917782343e-06 | G93: 2.936478738e-06 | H93: 4.449697674e-06 | I93: 6.672832876e-06 | J93: 9.902984293e-06 | K93: 1.45444744e-05 | L93: 2.114005303e-05 | M93: 3.040816493e-05 | N93: 4.32862986e-05 | O93: 6.097991141e-05 | P93: 8.501571787e-05 | Q93: 0.0001172972317 | R93: 0.0001601593871 | S93: 0.0002164178772 | T93: 0.0002894076233 | U93: 0.0003830036384 | V93: 0.0005016166364 | W93: 0.0006501552337 | X93: 0.0008339466978 | Y93: 0.0010586091 | Z93: 0.001329869579 | AA93: 0.00165332632 | AB93: 0.002034155767 | AC93: 0.002476771448 | AD93: 0.002984446223 | AE93: 0.003558915546 | AF93: 0.004199984675 | AG93: 0.004905167346 | AH93: 0.005669386305 | AI93: 0.006484766925 | AJ93: 0.007340553216 | AK93: 0.008223170798 | AL93: 0.00911645367 | AM93: 0.01000204138 | AN93: 0.01085994094 | AO93: 0.01166923483 | AP93: 0.01240890314 | AQ93: 0.01305871695 | AR93: 0.01360015074 | AS93: 0.01401725695 | AT93: 0.01429744538 | AU93: 0.0144321142 | AV93: 0.01441708858 | AW93: 0.0142528356 | AX93: 0.0139444402 | AY93: 0.01350134365 | AZ93: 0.01293686356 | BA93: 0.01226752929 | BB93: 0.01151227906 | BC93: 0.01069157316 | BD93: 0.009826480923 | BE93: 0.00893779764 | BF93: 0.008045242126 | BG93: 0.007166775816 | BH93: 0.006318072705 | BI93: 0.005512156228 | BJ93: 0.004759206138 | BK93: 0.004066526559 | BL93: 0.003438656616 | BM93: 0.002877597879 | BN93: 0.002383128713 | BO93: 0.001953174263 | BP93: 0.001584202105 | BQ93: 0.001271616861 | BR93: 0.00101013186 | BS93: 0.0007941013957 | BT93: 0.0006178029088 | BU93: 0.0004756637302 | BV93: 0.0003624317409 | BW93: 0.0002732930025 | BX93: 0.0002039421052 | BY93: 0.0001506126269 | BZ93: 0.0001100758297 | CA93: 7.961568773e-05 | CB93: 5.698773991e-05 | CC93: 4.036828649e-05 | CD93: 2.829927414e-05 | CE93: 1.963298688e-05
B94: 2.3 | C94: 3.652534275e-07 | D94: 5.782269476e-07 | E94: 9.058962343e-07 | F94: 1.404541838e-06 | G94: 2.155097908e-06 | H94: 3.272468159e-06 | I94: 4.917676464e-06 | J94: 7.313421016e-06 | K94: 1.076359373e-05 | L94: 1.567725844e-05 | M94: 2.259742938e-05 | N94: 3.223473149e-05 | O94: 4.550563459e-05 | P94: 6.357441792e-05 | Q94: 8.789733527e-05 | R94: 0.0001202666253 | S94: 0.0001628510787 | T94: 0.000218228895 | U94: 0.0002894076233 | V94: 0.0003798252033 | W94: 0.0004933256427 | X94: 0.0006341028438 | Y94: 0.0008066066731 | Z94: 0.001015406688 | AA94: 0.001265011074 | AB94: 0.001559641327 | AC94: 0.001902966929 | AD94: 0.002297808578 | AE94: 0.002745823079 | AF94: 0.003247187412 | AG94: 0.003800303289 | AH94: 0.004401546148 | AI94: 0.005045083526 | AJ94: 0.005722786725 | AK94: 0.006424256322 | AL94: 0.007136976375 | AM94: 0.007846604391 | AN94: 0.008537394576 | AO94: 0.009192741542 | AP94: 0.009795821101 | AQ94: 0.01033029537 | AR94: 0.01078104188 | AS94: 0.01113486166 | AT94: 0.01138112039 | AU94: 0.01151227906 | AV94: 0.01152427726 | AW94: 0.01141674202 | AX94: 0.01119300702 | AY94: 0.01085994094 | AZ94: 0.01042759728 | BA94: 0.009908710411 | BB94: 0.009318073269 | BC94: 0.008671838978 | BD94: 0.00798679226 | BE94: 0.007279636113 | BF94: 0.006566335252 | BG94: 0.005861550798 | BH94: 0.005178191565 | BI94: 0.004527096915 | BJ94: 0.003916855681 | BK94: 0.003353755882 | BL94: 0.002841851785 | BM94: 0.002383128713 | BN94: 0.001977742171 | BO94: 0.001624306372 | BP94: 0.001320207881 | BQ94: 0.001061922428 | BR94: 0.0008453165355 | BS94: 0.0006659199638 | BT94: 0.0005191594988 | BU94: 0.0004005490198 | BV94: 0.0003058346171 | BW94: 0.000231096681 | BX94: 0.000172813185 | BY94: 0.0001278898682 | BZ94: 9.366374195e-05 | CA94: 6.788642957e-05 | CB94: 4.869344828e-05 | CC94: 3.456481149e-05 | CD94: 2.428141288e-05 | CE94: 1.688067521e-05
B95: 2.4 | C95: 2.630821746e-07 | D95: 4.173498203e-07 | E95: 6.552169712e-07 | F95: 1.01799617e-06 | G95: 1.56524833e-06 | H95: 2.381751534e-06 | I95: 3.58662323e-06 | J95: 5.345042463e-06 | K95: 7.883020601e-06 | L95: 1.150562626e-05 | M95: 1.66189646e-05 | N95: 2.375602436e-05 | O95: 3.360621955e-05 | P95: 4.704805324e-05 | Q95: 6.518381197e-05 | R95: 8.937456693e-05 | S95: 0.0001212730347 | T95: 0.0001628510787 | U95: 0.0002164178772 | V95: 0.000284624136 | W95: 0.0003704472856 | X95: 0.0004771525044 | Y95: 0.0006082247625 | Z95: 0.0007672680014 | AA95: 0.0009578691246 | AB95: 0.001183426696 | AC95: 0.001446947083 | AD95: 0.001750814094 | AE95: 0.002096541767 | AF95: 0.002484523465 | AG95: 0.002913793605 | AH95: 0.003381820621 | AI95: 0.003884350842 | AJ95: 0.004415322494 | AK95: 0.004966866756 | AL95: 0.005529408659 | AM95: 0.006091874759 | AN95: 0.006642007219 | AO95: 0.007166775816 | AP95: 0.007652871038 | AQ95: 0.008087253739 | AR95: 0.008457730511 | AS95: 0.008753519749 | AT95: 0.008965771945 | AU95: 0.00908800922 | AV95: 0.00911645367 | AW95: 0.009050221294 | AX95: 0.008891367627 | AY95: 0.00864478178 | AZ95: 0.008317936522 | BA95: 0.007920512208 | BB95: 0.007463920979 | BC95: 0.006960763801 | BD95: 0.006424256322 | BE95: 0.005867659761 | BF95: 0.00530375049 | BG95: 0.004744356832 | BH95: 0.004199984675 | BI95: 0.003679545392 | BJ95: 0.003190191277 | BK95: 0.002737255775 | BL95: 0.002324289056 | BM95: 0.001953174263 | BN95: 0.001624306372 | BO95: 0.001336814052 | BP95: 0.001088805122 | BQ95: 0.0008776177685 | BR95: 0.0007000624104 | BS95: 0.0005526424098 | BT95: 0.0004317454401 | BU95: 0.000333800827 | BV95: 0.0002554013311 | BW95: 0.000193390441 | BX95: 0.0001449182063 | BY95: 0.0001074699373 | BZ95: 7.887277849e-05 | CA95: 5.728532535e-05 | CB95: 4.117520091e-05 | CC95: 2.928897471e-05 | CD95: 2.061810326e-05 | CE95: 1.436380004e-05
B96: 2.5 | C96: 1.875273624e-07 | D96: 2.981111592e-07 | E96: 4.689946844e-07 | F96: 7.301863443e-07 | G96: 1.125059761e-06 | H96: 1.715511275e-06 | I96: 2.588735387e-06 | J96: 3.865964335e-06 | K96: 5.71352491e-06 | L96: 8.356540192e-06 | M96: 1.209553233e-05 | N96: 1.732605011e-05 | O96: 2.45612375e-05 | P96: 3.445696505e-05 | Q96: 4.783875837e-05 | R96: 6.572928003e-05 | S96: 8.937456693e-05 | T96: 0.0001202666253 | U96: 0.0001601593871 | V96: 0.0002110745008 | W96: 0.0002752930469 | X96: 0.0003553291307 | Y96: 0.0004538815021 | Z96: 0.00057375998 | AA96: 0.0007177845747 | AB96: 0.0008886568411 | AC96: 0.001088805122 | AD96: 0.001320207881 | AE96: 0.001584202105 | AF96: 0.001881286547 | AG96: 0.002210932141 | AH96: 0.002571413831 | AI96: 0.002959679178 | AJ96: 0.003371268927 | AK96: 0.003800303289 | AL96: 0.004239544679 | AM96: 0.004680543379 | AN96: 0.005113867036 | AO96: 0.005529408659 | AP96: 0.005916761231 | AQ96: 0.006265640868 | AR96: 0.006566335252 | AS96: 0.006810150432 | AT96: 0.006989827491 | AU96: 0.007099901257 | AV96: 0.007136976375 | AW96: 0.007099901257 | AX96: 0.006989827491 | AY96: 0.006810150432 | AZ96: 0.006566335252 | BA96: 0.006265640868 | BB96: 0.005916761231 | BC96: 0.005529408659 | BD96: 0.005113867036 | BE96: 0.004680543379 | BF96: 0.004239544679 | BG96: 0.003800303289 | BH96: 0.003371268927 | BI96: 0.002959679178 | BJ96: 0.002571413831 | BK96: 0.002210932141 | BL96: 0.001881286547 | BM96: 0.001584202105 | BN96: 0.001320207881 | BO96: 0.001088805122 | BP96: 0.0008886568411 | BQ96: 0.0007177845747 | BR96: 0.00057375998 | BS96: 0.0004538815021 | BT96: 0.0003553291307 | BU96: 0.0002752930469 | BV96: 0.0002110745008 | BW96: 0.0001601593871 | BX96: 0.0001202666253 | BY96: 8.937456693e-05 | BZ96: 6.572928003e-05 | CA96: 4.783875837e-05 | CB96: 3.445696505e-05 | CC96: 2.45612375e-05 | CD96: 1.732605011e-05 | CE96: 1.209553233e-05
B97: 2.6 | C97: 1.32286025e-07 | D97: 2.107328957e-07 | E97: 3.322207866e-07 | F97: 5.183192859e-07 | G97: 8.002838158e-07 | H97: 1.222832011e-06 | I97: 1.849122414e-06 | J97: 2.767200489e-06 | K97: 4.098186213e-06 | L97: 6.006463597e-06 | M97: 8.712085115e-06 | N97: 1.250551177e-05 | O97: 1.776466115e-05 | P97: 2.497402177e-05 | Q97: 3.474530618e-05 | R97: 4.783875837e-05 | S97: 6.518381197e-05 | T97: 8.789733527e-05 | U97: 0.0001172972317 | V97: 0.0001549087379 | W97: 0.0002024604358 | X97: 0.0002618668466 | Y97: 0.0003351945654 | Z97: 0.0004246093156 | AA97: 0.0005323020841 | AB97: 0.0006603936889 | AC97: 0.0008108187088 | AD97: 0.0009851916152 | AE97: 0.001184660075 | AF97: 0.001409752574 | AG97: 0.001660229551 | AH97: 0.00193494882 | AI97: 0.002231757094 | AJ97: 0.002547419476 | AK97: 0.002877597879 | AL97: 0.003216887283 | AM97: 0.003558915546 | AN97: 0.003896508425 | AO97: 0.00422191666 | AP97: 0.004527096915 | AQ97: 0.004804033495 | AR97: 0.005045083526 | AS97: 0.005243325196 | AT97: 0.005392887073 | AU97: 0.005489236692 | AV97: 0.005529408659 | AW97: 0.005512156228 | AX97: 0.005438015572 | AY97: 0.005309278108 | AZ97: 0.005129872866 | BA97: 0.004905167346 | BB97: 0.004641700919 | BC97: 0.004346869264 | BD97: 0.00402858102 | BE97: 0.003694908816 | BF97: 0.003353755882 | BG97: 0.00301255697 | BH97: 0.002678028465 | BI97: 0.002355977879 | BJ97: 0.002051177892 | BK97: 0.001767305157 | BL97: 0.001506939656 | BM97: 0.001271616861 | BN97: 0.001061922428 | BO97: 0.0008776177685 | BP97: 0.0007177845747 | BQ97: 0.0005809769921 | BR97: 0.0004653715671 | BS97: 0.0003689069665 | BT97: 0.0002894076233 | BU97: 0.0002246876365 | BV97: 0.000172633265 | BW97: 0.0001312640778 | BX97: 9.877417219e-05 | BY97: 7.355581375e-05 | BZ97: 5.420841504e-05 | CA97: 3.953598048e-05 | CB97: 2.853608677e-05 | CC97: 2.038320251e-05 | CD97: 1.440875713e-05 | CE97: 1.007991156e-05
B98: 2.7 | C98: 9.235052897e-08 | D98: 1.474220804e-07 | E98: 2.328958678e-07 | F98: 3.641137921e-07 | G98: 5.633633308e-07 | H98: 8.626132412e-07 | I98: 1.307132956e-06 | J98: 1.96019604e-06 | K98: 2.909077892e-06 | L98: 4.272551354e-06 | M98: 6.210053362e-06 | N98: 8.9326326e-06 | O98: 1.271568353e-05 | P98: 1.791331854e-05 | Q98: 2.497402177e-05 | R98: 3.445696505e-05 | S98: 4.704805324e-05 | T98: 6.357441792e-05 | U98: 8.501571787e-05 | V98: 0.000112510268 | W98: 0.0001473537496 | X98: 0.0001909881063 | Y98: 0.0002449782641 | Z98: 0.0003109745747 | AA98: 0.0003906594292 | AB98: 0.0004856773375 | AC98: 0.0005975489203 | AD98: 0.0007275706847 | AE98: 0.0008767040593 | AF98: 0.001045458846 | AG98: 0.00123377784 | AH98: 0.001440930679 | AI98: 0.001665425883 | AJ98: 0.001904950219 | AK98: 0.002156344032 | AL98: 0.002415619743 | AM98: 0.002678028465 | AN98: 0.002938176673 | AO98: 0.003190191277 | AP98: 0.003427927587 | AQ98: 0.003645210849 | AR98: 0.003836098661 | AS98: 0.003995149005 | AT98: 0.004117677167 | AU98: 0.004199984675 | AV98: 0.004239544679 | AW98: 0.004235130786 | AX98: 0.004186880209 | AY98: 0.004096286684 | AZ98: 0.003966123661 | BA98: 0.003800303289 | BB98: 0.003603681193 | BC98: 0.003381820621 | BD98: 0.003140731946 | BE98: 0.002886604438 | BF98: 0.002625546881 | BG98: 0.002363351826 | BH98: 0.002105295582 | BI98: 0.001855982508 | BJ98: 0.001619238337 | BK98: 0.00139805345 | BL98: 0.00119457349 | BM98: 0.00101013186 | BN98: 0.0008453165355 | BO98: 0.0007000624104 | BP98: 0.00057375998 | BQ98: 0.0004653715671 | BR98: 0.0003735472449 | BS98: 0.0002967340121 | BT98: 0.0002332733998 | BU98: 0.0001814843617 | BV98: 0.0001397298835 | BW98: 0.0001064671147 | BX98: 8.028192392e-05 | BY98: 5.990956382e-05 | BZ98: 4.42436189e-05 | CA98: 3.233562258e-05 | CB98: 2.338772134e-05 | CC98: 1.674058742e-05 | CD98: 1.185849501e-05 | CE98: 8.313129692e-06
B99: 2.8 | C99: 6.380297171e-08 | D99: 1.020631189e-07 | E99: 1.615745158e-07 | F99: 2.531354619e-07 | G99: 3.924724856e-07 | H99: 6.022010951e-07 | I99: 9.144289461e-07 | J99: 1.374151096e-06 | K99: 2.043596315e-06 | L99: 3.007681418e-06 | M99: 4.380711506e-06 | N99: 6.31442157e-06 | O99: 9.007382229e-06 | P99: 1.271568353e-05 | Q99: 1.776466115e-05 | R99: 2.45612375e-05 | S99: 3.360621955e-05 | T99: 4.550563459e-05 | U99: 6.097991141e-05 | V99: 8.086945238e-05 | W99: 0.0001061349243 | X99: 0.000137850462 | Y99: 0.0001771879716 | Z99: 0.0002253908836 | AA99: 0.0002837360739 | AB99: 0.0003534832693 | AC99: 0.0004358120862 | AD99: 0.0005317478915 | AE99: 0.0006420788757 | AF99: 0.0007672680014 | AG99: 0.0009073647224 | AH99: 0.001061922428 | AI99: 0.001229928302 | AJ99: 0.001409752574 | AK99: 0.001599123836 | AL99: 0.001795136164 | AM99: 0.001994292219 | AN99: 0.002192584262 | AO99: 0.002385612433 | AP99: 0.00256873667 | AQ99: 0.002737255775 | AR99: 0.002886604438 | AS99: 0.00301255697 | AT99: 0.003111425174 | AU99: 0.00318023749 | AV99: 0.003216887283 | AW99: 0.003220239953 | AX99: 0.003190191277 | AY99: 0.003127672788 | AZ99: 0.003034603813 | BA99: 0.002913793605 | BB99: 0.002768800544 | BC99: 0.002603758235 | BD99: 0.002423180362 | BE99: 0.002231757094 | BF99: 0.002034155767 | BG99: 0.001834837417 | BH99: 0.001637898815 | BI99: 0.001446947083 | BJ99: 0.001265011074 | BK99: 0.001094490775 | BL99: 0.0009371432532 | BM99: 0.0007941013957 | BN99: 0.0006659199638 | BO99: 0.0005526424098 | BP99: 0.0004538815021 | BQ99: 0.0003689069665 | BR99: 0.0002967340121 | BS99: 0.000236207618 | BT99: 0.0001860786602 | BU99: 0.0001450692414 | BV99: 0.0001119258004 | BW99: 8.545966317e-05 | BX99: 6.457556933e-05 | BY99: 4.82893556e-05 | BZ99: 3.573638969e-05 | CA99: 2.61725501e-05 | CB99: 1.896957074e-05 | CC99: 1.36064574e-05 | CD99: 9.65847874e-06 | CE99: 6.78497871e-06
B100: 2.9 | C100: 4.362330101e-08 | D100: 6.99280205e-08 | E100: 1.109328172e-07 | F100: 1.741586098e-07 | G100: 2.705863942e-07 | H100: 4.160476379e-07 | I100: 6.330766054e-07 | J100: 9.533350678e-07 | K100: 1.420728103e-06 | L100: 2.095330202e-06 | M100: 3.058229505e-06 | N100: 4.417369967e-06 | O100: 6.31442157e-06 | P100: 8.9326326e-06 | Q100: 1.250551177e-05 | R100: 1.732605011e-05 | S100: 2.375602436e-05 | T100: 3.223473149e-05 | U100: 4.32862986e-05 | V100: 5.752451216e-05 | W100: 7.565393758e-05 | X100: 9.846598469e-05 | Y100: 0.0001268285476 | Z100: 0.0001616679417 | AA100: 0.0002039421052 | AB100: 0.0002546044477 | AC100: 0.0003145583177 | AD100: 0.0003846028162 | AE100: 0.0004653715671 | AF100: 0.0005572670056 | AG100: 0.0006603936889 | AH100: 0.0007744949624 | AI100: 0.0008988979282 | AJ100: 0.001032471948 | AK100: 0.001173605784 | AL100: 0.001320207881 | AM100: 0.001469733184 | AN100: 0.001619238337 | AO100: 0.001765465173 | AP100: 0.001904950219 | AQ100: 0.002034155767 | AR100: 0.002149615975 | AS100: 0.002248089797 | AT100: 0.002326711452 | AU100: 0.002383128713 | AV100: 0.002415619743 | AW100: 0.002423180362 | AX100: 0.0024055756 | AY100: 0.002363351826 | AZ100: 0.002297808578 | BA100: 0.002210932141 | BB100: 0.002105295582 | BC100: 0.001983932283 | BD100: 0.001850191616 | BE100: 0.00170758634 | BF100: 0.001559641327 | BG100: 0.001409752574 | BH100: 0.001261064085 | BI100: 0.001116368355 | BJ100: 0.0009780340534 | BK100: 0.0008479622815 | BL100: 0.0007275706847 | BM100: 0.0006178029088 | BN100: 0.0005191594988 | BO100: 0.0004317454401 | BP100: 0.0003553291307 | BQ100: 0.0002894076233 | BR100: 0.0002332733998 | BS100: 0.0001860786602 | BT100: 0.0001468939878 | BU100: 0.0001147592155 | BV100: 8.872524757e-05 | BW100: 6.788642957e-05 | BX100: 5.140375146e-05 | BY100: 3.851968806e-05 | BZ100: 2.856582735e-05 | CA100: 2.096461791e-05 | CB100: 1.522660899e-05 | CC100: 1.094449024e-05 | CD100: 7.785096147e-06 | CE100: 5.480352857e-06
B101: 3 | C101: =(1/(2*PI()*SQRT(1-rho^2)))*EXP(-(1/(2*(1-rho^2)))*($B101^2+C$30^2-2*rho*$B101*C$30)) -> 2.951700195e-08 | D101: 4.741434252e-08 | E101: 7.5374305e-08 | F101: 1.185804264e-07 | G101: 1.846200202e-07 | H101: 2.844596553e-07 | I101: 4.337491773e-07 | J101: 6.545348088e-07 | K101: 9.774688599e-07 | L101: 1.444605329e-06 | M101: =(1/(2*PI()*SQRT(1-rho^2)))*EXP(-(1/(2*(1-rho^2)))*($B101^2+M$30^2-2*rho*$B101*M$30)) -> 2.112864244e-06 | N101: 3.058229505e-06 | O101: 4.380711506e-06 | P101: 6.210053362e-06 | Q101: 8.712085115e-06 | R101: 1.209553233e-05 | S101: 1.66189646e-05 | T101: 2.259742938e-05 | U101: 3.040816493e-05 | V101: 4.04946347e-05 | W101: =(1/(2*PI()*SQRT(1-rho^2)))*EXP(-(1/(2*(1-rho^2)))*($B101^2+W$30^2-2*rho*$B101*W$30)) -> 5.336799147e-05 | X101: 6.960498271e-05 | Y101: 8.98412738e-05 | Z101: 0.0001147592155 | AA101: 0.0001450692414 | AB101: 0.0001814843617 | AC101: 0.0002246876365 | AD101: 0.0002752930469 | AE101: 0.000333800827 | AF101: 0.0004005490198 | AG101: =(1/(2*PI()*SQRT(1-rho^2)))*EXP(-(1/(2*(1-rho^2)))*($B101^2+AG$30^2-2*rho*$B101*AG$30)) -> 0.0004756637302 | AH101: 0.0005590111889 | AI101: 0.0006501552337 | AJ101: 0.000748324087 | AK101: 0.000852390273 | AL101: 0.0009608671476 | AM101: 0.001071924763 | AN101: 0.001183426696 | AO101: 0.001292988074 | AP101: 0.00139805345 | AQ101: =(1/(2*PI()*SQRT(1-rho^2)))*EXP(-(1/(2*(1-rho^2)))*($B101^2+AQ$30^2-2*rho*$B101*AQ$30)) -> 0.001495991518 | AR101: 0.001584202105 | AS101: 0.001660229551 | AT101: 0.001721875683 | AU101: 0.001767305157 | AV101: 0.001795136164 | AW101: 0.001804510222 | AX101: 0.001795136164 | AY101: 0.001767305157 | AZ101: 0.001721875683 | BA101: =(1/(2*PI()*SQRT(1-rho^2)))*EXP(-(1/(2*(1-rho^2)))*($B101^2+BA$30^2-2*rho*$B101*BA$30)) -> 0.001660229551 | BB101: 0.001584202105 | BC101: 0.001495991518 | BD101: 0.00139805345 | BE101: 0.001292988074 | BF101: 0.001183426696 | BG101: 0.001071924763 | BH101: 0.0009608671476 | BI101: 0.000852390273 | BJ101: 0.000748324087 | BK101: =(1/(2*PI()*SQRT(1-rho^2)))*EXP(-(1/(2*(1-rho^2)))*($B101^2+BK$30^2-2*rho*$B101*BK$30)) -> 0.0006501552337 | BL101: 0.0005590111889 | BM101: 0.0004756637302 | BN101: 0.0004005490198 | BO101: 0.000333800827 | BP101: 0.0002752930469 | BQ101: 0.0002246876365 | BR101: 0.0001814843617 | BS101: 0.0001450692414 | BT101: 0.0001147592155 | BU101: =(1/(2*PI()*SQRT(1-rho^2)))*EXP(-(1/(2*(1-rho^2)))*($B101^2+BU$30^2-2*rho*$B101*BU$30)) -> 8.98412738e-05 | BV101: 6.960498271e-05 | BW101: 5.336799147e-05 | BX101: 4.04946347e-05 | BY101: 3.040816493e-05 | BZ101: 2.259742938e-05 | CA101: 1.66189646e-05 | CB101: 1.209553233e-05 | CC101: 8.712085115e-06 | CD101: 6.210053362e-06 | CE101: 4.380711506e-06
B102: 3.1 | C102: 1.976523859e-08 | D102: 3.181590858e-08 | E102: 5.06830449e-08 | F102: 7.990191083e-08 | G102: 1.246601749e-07 | H102: 1.924750307e-07 | I102: 2.941014476e-07 | J102: 4.4472959e-07 | K102: 6.655351371e-07 | L102: 9.856484681e-07 | M102: 1.444605329e-06 | N102: 2.095330202e-06 | O102: 3.007681418e-06 | P102: 4.272551354e-06 | Q102: 6.006463597e-06 | R102: 8.356540192e-06 | S102: 1.150562626e-05 | T102: 1.567725844e-05 | U102: 2.114005303e-05 | V102: 2.821097694e-05 | W102: 3.725686248e-05 | X102: 4.869344828e-05 | Y102: 6.298119284e-05 | Z102: 8.06171298e-05 | AA102: 0.000102122134 | AB102: 0.0001280231562 | AC102: 0.0001588302712 | AD102: 0.0001950087616 | AE102: 0.0002369469213 | AF102: 0.0002849207739 | AG102: 0.0003390574252 | AH102: 0.0003992992579 | AI102: 0.0004653715671 | AJ102: 0.000536756469 | AK102: 0.0006126759433 | AL102: 0.0006920866437 | AM102: 0.0007736886168 | AN102: 0.0008559493086 | AO102: 0.0009371432532 | AP102: 0.001015406688 | AQ102: 0.001088805122 | AR102: 0.001155410713 | AS102: 0.001213385286 | AT102: 0.001261064085 | AU102: 0.001297034982 | AV102: 0.001320207881 | AW102: 0.001329869579 | AX102: 0.001325720223 | AY102: 0.001307888768 | AZ102: 0.001276926319 | BA102: 0.00123377784 | BB102: 0.00117973426 | BC102: 0.001116368355 | BD102: 0.001045458846 | BE102: 0.0009689078301 | BF102: 0.0008886568411 | BG102: 0.0008066066731 | BH102: 0.0007245454472 | BI102: 0.0006440885106 | BJ102: 0.000566632619 | BK102: 0.0004933256427 | BL102: 0.0004250518474 | BM102: 0.0003624317409 | BN102: 0.0003058346171 | BO102: 0.0002554013311 | BP102: 0.0002110745008 | BQ102: 0.000172633265 | BR102: 0.0001397298835 | BS102: 0.0001119258004 | BT102: 8.872524757e-05 | BU102: 6.960498271e-05 | BV102: 5.403927816e-05 | BW102: 4.151976126e-05 | BX102: 3.157012164e-05 | BY102: 2.375602436e-05 | BZ102: 1.769079573e-05 | CA102: 1.303758259e-05 | CB102: 9.508737906e-06 | CC102: 6.863170375e-06 | CD102: 4.902332712e-06 | CE102: 3.465428033e-06
B103: 3.2 | C103: 1.309809021e-08 | D103: 2.112783646e-08 | E103: 3.372703589e-08 | F103: 5.328162018e-08 | G103: 8.330148986e-08 | H103: 1.288855457e-07 | I103: 1.973475593e-07 | J103: 2.990442137e-07 | K103: 4.484511549e-07 | L103: 6.655351371e-07 | M103: 9.774688599e-07 | N103: 1.420728103e-06 | O103: 2.043596315e-06 | P103: 2.909077892e-06 | Q103: 4.098186213e-06 | R103: 5.71352491e-06 | S103: 7.883020601e-06 | T103: 1.076359373e-05 | U103: 1.45444744e-05 | V103: 1.944978771e-05 | W103: 2.57399559e-05 | X103: 3.371140325e-05 | Y103: 4.369401584e-05 | Z103: 5.604581542e-05 | AA103: 7.114436734e-05 | AB103: 8.937456693e-05 | AC103: 0.000111112643 | AD103: 0.0001367064813 | AE103: 0.0001664526951 | AF103: 0.0002005712387 | AG103: 0.0002391787441 | AH103: 0.0002822621236 | AI103: 0.0003296542866 | AJ103: 0.0003810140136 | AK103: 0.0004358120862 | AL103: 0.0004933256427 | AM103: 0.0005526424098 | AN103: 0.0006126759433 | AO103: 0.0006721923192 | AP103: 0.0007298478994 | AQ103: 0.0007842369097 | AR103: 0.0008339466978 | AS103: 0.0008776177685 | AT103: 0.0009140051038 | AU103: 0.0009420369405 | AV103: 0.0009608671476 | AW103: 0.000969917635 | AX103: 0.0009689078301 | AY103: 0.0009578691246 | AZ103: 0.0009371432532 | BA103: 0.0009073647224 | BB103: 0.0008694285489 | BC103: 0.0008244455959 | BD103: 0.0007736886168 | BE103: 0.0007185326565 | BF103: 0.0006603936889 | BG103: 0.0006006692732 | BH103: 0.0005406846222 | BI103: 0.0004816468434 | BJ103: 0.0004246093156 | BK103: 0.0003704472856 | BL103: 0.0003198448887 | BM103: 0.0002732930025 | BN103: 0.000231096681 | BO103: 0.000193390441 | BP103: 0.0001601593871 | BQ103: 0.0001312640778 | BR103: 0.0001064671147 | BS103: 8.545966317e-05 | BT103: 6.788642957e-05 | BU103: 5.336799147e-05 | BV103: 4.151976126e-05 | BW103: 3.196722488e-05 | BX103: 2.435741098e-05 | BY103: 1.836679636e-05 | BZ103: 1.370603375e-05 | CA103: 1.012199881e-05 | CB103: 7.397702572e-06 | CC103: 5.350613116e-06 | CD103: 3.829890281e-06 | CE103: 2.712971392e-06
B104: 3.3 | C104: 8.58993728e-09 | D104: 1.388487013e-08 | E104: 2.22110838e-08 | F104: 3.516201689e-08 | G104: 5.508760674e-08 | H104: 8.541027711e-08 | I104: 1.310516388e-07 | J104: 1.989989937e-07 | K104: 2.990442137e-07 | L104: 4.4472959e-07 | M104: 6.545348088e-07 | N104: 9.533350678e-07 | O104: 1.374151096e-06 | P104: 1.96019604e-06 | Q104: 2.767200489e-06 | R104: 3.865964335e-06 | S104: 5.345042463e-06 | T104: 7.313421016e-06 | U104: 9.902984293e-06 | V104: 1.327051277e-05 | W104: 1.75988957e-05 | X104: 2.30971944e-05 | Y104: 2.999916323e-05 | Z104: 3.855983364e-05 | AA104: 4.90498023e-05 | AB104: 6.174694427e-05 | AC104: 7.692540265e-05 | AD104: 9.484188679e-05 | AE104: 0.0001157195381 | AF104: 0.0001397298835 | AG104: 0.0001669736734 | AH104: 0.0001974616699 | AI104: 0.000231096681 | AJ104: 0.0002676582969 | AK104: 0.0003067918452 | AL104: 0.0003480030192 | AM104: 0.0003906594292 | AN104: 0.0004339999803 | AO104: 0.0004771525044 | AP104: 0.0005191594988 | AQ104: 0.0005590111889 | AR104: 0.0005956844946 | AS104: 0.0006281859086 | AT104: 0.0006555958317 | AU104: 0.0006771116347 | AV104: 0.0006920866437 | AW104: 0.0007000624104 | AX104: 0.000700792022 | AY104: 0.0006942527973 | AZ104: 0.0006806474577 | BA104: 0.0006603936889 | BB104: 0.0006341028438 | BC104: 0.0006025493006 | BD104: 0.000566632619 | BE104: 0.0005273350713 | BF104: 0.0004856773375 | BG104: 0.0004426751279 | BH104: 0.0003992992579 | BI104: 0.0003564412711 | BJ104: 0.0003148861533 | BK104: 0.0002752930469 | BL104: 0.0002381842393 | BM104: 0.0002039421052 | BN104: 0.000172813185 | BO104: 0.0001449182063 | BP104: 0.0001202666253 | BQ104: 9.877417219e-05 | BR104: 8.028192392e-05 | BS104: 6.457556933e-05 | BT104: 5.140375146e-05 | BU104: 4.04946347e-05 | BV104: 3.157012164e-05 | BW104: 2.435741098e-05 | BX104: 1.859782222e-05 | BY104: 1.405300364e-05 | BZ104: 1.05087806e-05 | CA104: 7.776990894e-06 | CB104: 5.695698014e-06 | CC104: 4.128178033e-06 | CD104: 2.961051639e-06 | CE104: 2.101888351e-06
B105: 3.4 | C105: 5.575041536e-09 | D105: 9.030352782e-09 | E105: 1.447562839e-08 | F105: 2.2963931e-08 | G105: 3.605214759e-08 | H105: 5.601342726e-08 | I105: 8.612500331e-08 | J105: 1.310516388e-07 | K105: 1.973475593e-07 | L105: 2.941014476e-07 | M105: 4.337491773e-07 | N105: 6.330766054e-07 | O105: 9.144289461e-07 | P105: 1.307132956e-06 | Q105: 1.849122414e-06 | R105: 2.588735387e-06 | S105: 3.58662323e-06 | T105: 4.917676464e-06 | U105: 6.672832876e-06 | V105: 8.960590739e-06 | W105: 1.190800848e-05 | X105: 1.566093647e-05 | Y105: 2.038320251e-05 | Z105: 2.625446725e-05 | AA105: 3.346648495e-05 | AB105: 4.221755608e-05 | AC105: 5.270504363e-05 | AD105: 6.511594752e-05 | AE105: 7.961568773e-05 | AF105: 9.633542919e-05 | AG105: 0.000115358479 | AH105: 0.0001367064813 | AI105: 0.0001603263067 | AJ105: 0.0001860786602 | AK105: 0.0002137294912 | AL105: 0.0002429452612 | AM105: 0.0002732930025 | AN105: 0.0003042458694 | AO105: 0.0003351945654 | AP105: 0.0003654646248 | AQ105: 0.0003943390828 | AR105: 0.0004210856072 | AS105: 0.0004449867422 | AT105: 0.0004653715671 | AU105: 0.0004816468434 | AV105: 0.0004933256427 | AW105: 0.0005000515312 | AX105: 0.0005016166364 | AY105: 0.0004979723178 | AZ105: 0.0004892316775 | BA105: 0.0004756637302 | BB105: 0.0004576796516 | BC105: 0.0004358120862 | BD105: 0.0004106889665 | BE105: 0.0003830036384 | BF105: 0.0003534832693 | BG105: 0.0003228575342 | BH105: 0.0002918294303 | BI105: 0.00026104979 | BJ105: 0.000231096681 | BK105: 0.0002024604358 | BL105: 0.0001755345967 | BM105: 0.0001506126269 | BN105: 0.0001278898682 | BO105: 0.0001074699373 | BP105: 8.937456693e-05 | BQ105: 7.355581375e-05 | BR105: 5.990956382e-05 | BS105: 4.82893556e-05 | BT105: 3.851968806e-05 | BU105: 3.040816493e-05 | BV105: 2.375602436e-05 | BW105: 1.836679636e-05 | BX105: 1.405300364e-05 | BY105: 1.064096479e-05 | BZ105: 7.973866356e-06 | CA105: 5.91334201e-06 | CB105: 4.339834247e-06 | CC105: 3.152023063e-06 | CD105: 2.265592141e-06 | CE105: 1.611573701e-06
B106: 3.5 | C106: 3.580818603e-09 | D106: 5.8122423e-09 | E106: 9.336437615e-09 | F106: 1.484208067e-08 | G106: 2.334987042e-08 | H106: 3.635383745e-08 | I106: 5.601342726e-08 | J106: 8.541027711e-08 | K106: 1.288855457e-07 | L106: 1.924750307e-07 | M106: 2.844596553e-07 | N106: 4.160476379e-07 | O106: 6.022010951e-07 | P106: 8.626132412e-07 | Q106: 1.222832011e-06 | R106: 1.715511275e-06 | S106: 2.381751534e-06 | T106: 3.272468159e-06 | U106: 4.449697674e-06 | V106: 5.987722696e-06 | W106: 7.973866356e-06 | X106: 1.05087806e-05 | Y106: 1.370603375e-05 | Z106: 1.769079573e-05 | AA106: 2.259742938e-05 | AB106: 2.856582735e-05 | AC106: 3.573638969e-05 | AD106: 4.42436189e-05 | AE106: 5.420841504e-05 | AF106: 6.572928003e-05 | AG106: 7.887277849e-05 | AH106: 9.366374195e-05 | AI106: 0.0001100758297 | AJ106: 0.0001280231562 | AK106: 0.0001473537496 | AL106: 0.0001678455966 | AM106: 0.0001892059597 | AN106: 0.0002110745008 | AO106: 0.0002330305332 | AP106: 0.0002546044477 | AQ106: 0.0002752930469 | AR106: 0.0002945781959 | AS106: 0.0003119478903 | AT106: 0.0003269185821 | AU106: 0.0003390574252 | AV106: 0.0003480030192 | AW106: 0.0003534832693 | AX106: 0.0003553291307 | AY106: 0.0003534832693 | AZ106: 0.0003480030192 | BA106: 0.0003390574252 | BB106: 0.0003269185821 | BC106: 0.0003119478903 | BD106: 0.0002945781959 | BE106: 0.0002752930469 | BF106: 0.0002546044477 | BG106: 0.0002330305332 | BH106: 0.0002110745008 | BI106: 0.0001892059597 | BJ106: 0.0001678455966 | BK106: 0.0001473537496 | BL106: 0.0001280231562 | BM106: 0.0001100758297 | BN106: 9.366374195e-05 | BO106: 7.887277849e-05 | BP106: 6.572928003e-05 | BQ106: 5.420841504e-05 | BR106: 4.42436189e-05 | BS106: 3.573638969e-05 | BT106: 2.856582735e-05 | BU106: 2.259742938e-05 | BV106: 1.769079573e-05 | BW106: 1.370603375e-05 | BX106: 1.05087806e-05 | BY106: 7.973866356e-06 | BZ106: 5.987722696e-06 | CA106: 4.449697674e-06 | CB106: 3.272468159e-06 | CC106: 2.381751534e-06 | CD106: 1.715511275e-06 | CE106: 1.222832011e-06
B107: 3.6 | C107: 2.276106788e-09 | D107: 3.702190857e-09 | E107: 5.959379914e-09 | F107: 9.49334887e-09 | G107: 1.496628146e-08 | H107: 2.334987042e-08 | I107: 3.605214759e-08 | J107: 5.508760674e-08 | K107: 8.330148986e-08 | L107: 1.246601749e-07 | M107: 1.846200202e-07 | N107: 2.705863942e-07 | O107: 3.924724856e-07 | P107: 5.633633308e-07 | Q107: 8.002838158e-07 | R107: 1.125059761e-06 | S107: 1.56524833e-06 | T107: 2.155097908e-06 | U107: 2.936478738e-06 | V107: 3.959704847e-06 | W107: 5.284146732e-06 | X107: 6.978515084e-06 | Y107: 9.12068115e-06 | Z107: 1.179689257e-05 | AA107: 1.510024782e-05 | AB107: 1.9128311e-05 | AC107: 2.397978432e-05 | AD107: 2.975020895e-05 | AE107: 3.652673612e-05 | AF107: 4.438209647e-05 | AG107: 5.336799147e-05 | AH107: 6.350822905e-05 | AI107: 7.479201706e-05 | AJ107: 8.716790101e-05 | AK107: 0.000100538877 | AL107: 0.0001147592155 | AM107: 0.0001296334893 | AN107: 0.0001449182063 | AO107: 0.0001603263067 | AP107: 0.0001755345967 | AQ107: 0.0001901939781 | AR107: 0.0002039421052 | AS107: 0.0002164178772 | AT107: 0.0002272769888 | AU107: 0.000236207618 | AV107: 0.0002429452612 | AW107: 0.0002472857347 | AX107: 0.0002490954498 | AY107: 0.0002483182415 | AZ107: 0.0002449782641 | BA107: 0.0002391787441 | BB107: 0.000231096681 | BC107: 0.0002209738765 | BD107: 0.0002091049242 | BE107: 0.0001958229932 | BF107: 0.0001814843617 | BG107: 0.0001664526951 | BH107: 0.0001510840275 | BI107: 0.0001357132887 | BJ107: 0.0001206430463 | BK107: 0.0001061349243 | BL107: 9.240392802e-05 | BM107: 7.961568773e-05 | BN107: 6.788642957e-05 | BO107: 5.728532535e-05 | BP107: 4.783875837e-05 | BQ107: 3.953598048e-05 | BR107: 3.233562258e-05 | BS107: 2.61725501e-05 | BT107: 2.096461791e-05 | BU107: 1.66189646e-05 | BV107: 1.303758259e-05 | BW107: 1.012199881e-05 | BX107: 7.776990894e-06 | BY107: 5.91334201e-06 | BZ107: 4.449697674e-06 | CA107: 3.313630741e-06 | CB107: 2.442045861e-06 | CC107: 1.781064386e-06 | CD107: 1.285527948e-06 | CE107: 9.182470155e-07
B108: 3.7 | C108: 1.431789081e-09 | D108: 2.333726706e-09 | E108: 3.764411099e-09 | F108: 6.009248913e-09 | G108: 9.49334887e-09 | H108: 1.484208067e-08 | I108: 2.2963931e-08 | J108: 3.516201689e-08 | K108: 5.328162018e-08 | L108: 7.990191083e-08 | M108: 1.185804264e-07 | N108: 1.741586098e-07 | O108: 2.531354619e-07 | P108: 3.641137921e-07 | Q108: 5.183192859e-07 | R108: 7.301863443e-07 | S108: 1.01799617e-06 | T108: 1.404541838e-06 | U108: 1.917782343e-06 | V108: 2.591433391e-06 | W108: 3.465428033e-06 | X108: 4.586166495e-06 | Y108: 6.006463597e-06 | Z108: 7.785096147e-06 | AA108: 9.985853973e-06 | AB108: 1.267600905e-05 | AC108: 1.592413934e-05 | AD108: 1.97972787e-05 | AE108: 2.435741098e-05 | AF108: 2.965738466e-05 | AG108: 3.573638969e-05 | AH108: 4.261520675e-05 | AI108: 5.029150396e-05 | AJ108: 5.873551026e-05 | AK108: 6.788642957e-05 | AL108: 7.76499694e-05 | AM108: 8.789733527e-05 | AN108: 9.846598469e-05 | AO108: 0.0001091623426 | AP108: 0.0001197665569 | AQ108: 0.0001300392276 | AR108: 0.0001397298835 | AS108: 0.0001485868282 | AT108: 0.0001563678361 | AU108: 0.0001628510787 | AV108: 0.0001678455966 | AW108: 0.000171200632 | AX108: 0.000172813185 | AY108: 0.000172633265 | AZ108: 0.0001706664651 | BA108: 0.0001669736734 | BB108: 0.0001616679417 | BC108: 0.0001549087379 | BD108: 0.0001468939878 | BE108: 0.000137850462 | BF108: 0.0001280231562 | BG108: 0.0001176643589 | BH108: 0.0001070230775 | BI108: 9.633542919e-05 | BJ108: 8.581648797e-05 | BK108: 7.565393758e-05 | BL108: 6.600372339e-05 | BM108: 5.698773991e-05 | BN108: 4.869344828e-05 | BO108: 4.117520091e-05 | BP108: 3.445696505e-05 | BQ108: 2.853608677e-05 | BR108: 2.338772134e-05 | BS108: 1.896957074e-05 | BT108: 1.522660899e-05 | BU108: 1.209553233e-05 | BV108: 9.508737906e-06 | BW108: 7.397702572e-06 | BX108: 5.695698014e-06 | BY108: 4.339834247e-06 | BZ108: 3.272468159e-06 | CA108: 2.442045861e-06 | CB108: 1.803467418e-06 | CC108: 1.318071243e-06 | CD108: 9.533350678e-07 | CE108: 6.823832393e-07
B109: 3.8 | C109: 8.913362252e-10 | D109: 1.455852201e-09 | E109: 2.353255686e-09 | F109: 3.764411099e-09 | G109: 5.959379914e-09 | H109: 9.336437615e-09 | I109: 1.447562839e-08 | J109: 2.22110838e-08 | K109: 3.372703589e-08 | L109: 5.06830449e-08 | M109: 7.5374305e-08 | N109: 1.109328172e-07 | O109: 1.615745158e-07 | P109: 2.328958678e-07 | Q109: 3.322207866e-07 | R109: 4.689946844e-07 | S109: 6.552169712e-07 | T109: 9.058962343e-07 | U109: 1.239503821e-06 | V109: 1.678391938e-06 | W109: 2.249132281e-06 | X109: 2.98272155e-06 | Y109: 3.91459218e-06 | Z109: 5.084361666e-06 | AA109: 6.535253618e-06 | AB109: 8.313129692e-06 | AC109: 1.046508511e-05 | AD109: 1.303758259e-05 | AE109: 1.607413013e-05 | AF109: 1.96125465e-05 | AG109: 2.368190266e-05 | AH109: 2.829927414e-05 | AI109: 3.346648495e-05 | AJ109: 3.916706267e-05 | AK109: 4.536365145e-05 | AL109: 5.19961402e-05 | AM109: 5.898075212e-05 | AN109: 6.621030765e-05 | AO109: 7.355581375e-05 | AP109: 8.086945238e-05 | AQ109: 8.79889427e-05 | AR109: 9.47431446e-05 | AS109: 0.000100958663 | AT109: 0.0001064671147 | AU109: 0.000111112643 | AV109: 0.0001147592155 | AW109: 0.0001172972317 | AX109: 0.0001186489922 | AY109: 0.0001187726493 | AZ109: 0.0001176643589 | BA109: 0.000115358479 | BB109: 0.0001119258004 | BC109: 0.0001074699373 | BD109: 0.000102122134 | BE109: 9.603485087e-05 | BF109: 8.937456693e-05 | BG109: 8.23142705e-05 | BH109: 7.502610769e-05 | BI109: 6.767461561e-05 | BJ109: 6.041089617e-05 | BK109: 5.336799147e-05 | BL109: 4.665761522e-05 | BM109: 4.036828649e-05 | BN109: 3.456481149e-05 | BO109: 2.928897471e-05 | BP109: 2.45612375e-05 | BQ109: 2.038320251e-05 | BR109: 1.674058742e-05 | BS109: 1.36064574e-05 | BT109: 1.094449024e-05 | BU109: 8.712085115e-06 | BV109: 6.863170375e-06 | BW109: 5.350613116e-06 | BX109: 4.128178033e-06 | BY109: 3.152023063e-06 | BZ109: 2.381751534e-06 | CA109: 1.781064386e-06 | CB109: 1.318071243e-06 | CC109: 9.653265467e-07 | CD109: 6.996578532e-07 | CE109: 5.01849246e-07
B110: 3.9 | C110: 5.491363182e-10 | D110: 8.987950624e-10 | E110: 1.455852201e-09 | F110: 2.333726706e-09 | G110: 3.702190857e-09 | H110: 5.8122423e-09 | I110: 9.030352782e-09 | J110: 1.388487013e-08 | K110: 2.112783646e-08 | L110: 3.181590858e-08 | M110: 4.741434252e-08 | N110: 6.99280205e-08 | O110: 1.020631189e-07 | P110: 1.474220804e-07 | Q110: 2.107328957e-07 | R110: 2.981111592e-07 | S110: 4.173498203e-07 | T110: 5.782269476e-07 | U110: 7.928162141e-07 | V110: 1.075778396e-06 | W110: 1.444605329e-06 | X110: 1.919781074e-06 | Y110: 2.524819282e-06 | Z110: 3.286131889e-06 | AA110: 4.232683358e-06 | AB110: 5.395387861e-06 | AC110: 6.806214933e-06 | AD110: 8.496982967e-06 | AE110: 1.049783965e-05 | AF110: 1.283545361e-05 | AG110: 1.553097094e-05 | AH110: 1.859782222e-05 | AI110: 2.203949686e-05 | AJ110: 2.584742946e-05 | AK110: 2.999916323e-05 | AL110: 3.445696505e-05 | AM110: 3.916706267e-05 | AN110: 4.405965402e-05 | AO110: 4.90498023e-05 | AP110: 5.403927816e-05 | AQ110: 5.891934583e-05 | AR110: 6.357441792e-05 | AS110: 6.788642957e-05 | AT110: 7.173971424e-05 | AU110: 7.502610769e-05 | AV110: 7.76499694e-05 | AW110: 7.95327979e-05 | AX110: 8.06171298e-05 | AY110: 8.086945238e-05 | AZ110: 8.028192392e-05 | BA110: 7.887277849e-05 | BB110: 7.668538599e-05 | BC110: 7.37860352e-05 | BD110: 7.026059782e-05 | BE110: 6.621030765e-05 | BF110: 6.174694427e-05 | BG110: 5.698773991e-05 | BH110: 5.205033106e-05 | BI110: 4.704805324e-05 | BJ110: 4.208583215e-05 | BK110: 3.725686248e-05 | BL110: 3.264019449e-05 | BM110: 2.829927414e-05 | BN110: 2.428141288e-05 | BO110: 2.061810326e-05 | BP110: 1.732605011e-05 | BQ110: 1.440875713e-05 | BR110: 1.185849501e-05 | BS110: 9.65847874e-06 | BT110: 7.785096147e-06 | BU110: 6.210053362e-06 | BV110: 4.902332712e-06 | BW110: 3.829890281e-06 | BX110: 2.961051639e-06 | BY110: 2.265592141e-06 | BZ110: 1.715511275e-06 | CA110: 1.285527948e-06 | CB110: 9.533350678e-07 | CC110: 6.996578532e-07 | CD110: 5.081617324e-07 | CE110: 3.652534275e-07
B111: 4 | C111: 3.34807268e-10 | D111: 5.491363182e-10 | E111: 8.913362252e-10 | F111: 1.431789081e-09 | G111: 2.276106788e-09 | H111: 3.580818603e-09 | I111: 5.575041536e-09 | J111: 8.58993728e-09 | K111: 1.309809021e-08 | L111: 1.976523859e-08 | M111: 2.951700195e-08 | N111: 4.362330101e-08 | O111: 6.380297171e-08 | P111: 9.235052897e-08 | Q111: 1.32286025e-07 | R111: 1.875273624e-07 | S111: 2.630821746e-07 | T111: 3.652534275e-07 | U111: 5.01849246e-07 | V111: 6.823832393e-07 | W111: 9.182470155e-07 | X111: 1.222832011e-06 | Y111: 1.611573701e-06 | Z111: 2.101888351e-06 | AA111: 2.712971392e-06 | AB111: 3.465428033e-06 | AC111: 4.380711506e-06 | AD111: 5.480352857e-06 | AE111: 6.78497871e-06 | AF111: 8.313129692e-06 | AG111: 1.007991156e-05 | AH111: 1.209553233e-05 | AI111: 1.436380004e-05 | AJ111: 1.688067521e-05 | AK111: 1.963298688e-05 | AL111: 2.259742938e-05 | AM111: 2.57399559e-05 | AN111: 2.901567367e-05 | AO111: 3.236932307e-05 | AP111: 3.573638969e-05 | AQ111: 3.904485664e-05 | AR111: 4.221755608e-05 | AS111: 4.517502947e-05 | AT111: 4.783875837e-05 | AU111: 5.013458832e-05 | AV111: 5.19961402e-05 | AW111: 5.336799147e-05 | AX111: 5.420841504e-05 | AY111: 5.449148706e-05 | AZ111: 5.420841504e-05 | BA111: 5.336799147e-05 | BB111: 5.19961402e-05 | BC111: 5.013458832e-05 | BD111: 4.783875837e-05 | BE111: 4.517502947e-05 | BF111: 4.221755608e-05 | BG111: 3.904485664e-05 | BH111: 3.573638969e-05 | BI111: 3.236932307e-05 | BJ111: 2.901567367e-05 | BK111: 2.57399559e-05 | BL111: 2.259742938e-05 | BM111: 1.963298688e-05 | BN111: 1.688067521e-05 | BO111: 1.436380004e-05 | BP111: 1.209553233e-05 | BQ111: 1.007991156e-05 | BR111: 8.313129692e-06 | BS111: 6.78497871e-06 | BT111: 5.480352857e-06 | BU111: 4.380711506e-06 | BV111: 3.465428033e-06 | BW111: 2.712971392e-06 | BX111: 2.101888351e-06 | BY111: 1.611573701e-06 | BZ111: 1.222832011e-06 | CA111: 9.182470155e-07 | CB111: 6.823832393e-07 | CC111: 5.01849246e-07 | CD111: 3.652534275e-07 | CE111: 2.630821746e-07

Sheet ripartizione F(x,y)
E12: Variable 1 | F12: 1
E13: Variable 2 | F13: 1.6
E14: Correlazione | F14: 0.2
E18: Ad esempio in una v.c. bivariata normale standardizzata con parametri mx=my=0 sx=sy=1 e rho=0.2
E19: P(X<1 e Y <1.6)= | G19: =bivar(F12,F13,F14) -> 0.8014625635
